Department,Entity,Transaction Date,Expense Type,Expense Area,PES Category,Supplier,Transaction No.,Amount
DEPARTMENT OF ENERGY AND CLIMATE CHANGE,THE COAL AUTHORITY,01/02/2016,CONTRACTORS AND CLAIM COSTS,SUBSIDENCE,PROF SER-OPERATIONAL SERVICES,J H PICKUP & CO,98090,1509.00
DEPARTMENT OF ENERGY AND CLIMATE CHANGE,THE COAL AUTHORITY,01/02/2016,CONTRACTORS AND CLAIM COSTS,DAW MILL,PROF SER-OPERATIONAL SERVICES,MR & MRS EVANS,98091,3099.00
DEPARTMENT OF ENERGY AND CLIMATE CHANGE,THE COAL AUTHORITY,01/02/2016,CONTRACTORS AND CLAIM COSTS,DAW MILL,PROF SER-OPERATIONAL SERVICES,MRS GILLAN,98092,1442.14
DEPARTMENT OF ENERGY AND CLIMATE CHANGE,THE COAL AUTHORITY,01/02/2016,CONTRACTORS AND CLAIM COSTS,DAW MILL,PROF SER-OPERATIONAL SERVICES,MR G GILBERT,98093,2850.00
DEPARTMENT OF ENERGY AND CLIMATE CHANGE,THE COAL AUTHORITY,01/02/2016,CONTRACTORS AND CLAIM COSTS,DAW MILL,PROF SER-OPERATIONAL SERVICES,MRS PITTAWAY,98094,2536.95
DEPARTMENT OF ENERGY AND CLIMATE CHANGE,THE COAL AUTHORITY,01/02/2016,CONTRACTORS AND CLAIM COSTS,DAW MILL,PROF SER-OPERATIONAL SERVICES,MR & MRS PARGETTER,98095,5176.17
DEPARTMENT OF ENERGY AND CLIMATE CHANGE,THE COAL AUTHORITY,01/02/2016,CONTRACTORS AND CLAIM COSTS,DAW MILL,PROF SER-OPERATIONAL SERVICES,MRS MACDONALD,98097,1433.10
DEPARTMENT OF ENERGY AND CLIMATE CHANGE,THE COAL AUTHORITY,01/02/2016,CONTRACTORS AND CLAIM COSTS,SUBSIDENCE,"CONSTRUCTION-BLD,REPR&MAINTNCE",C GOLDTHORPE & SONS,98098,6667.06
DEPARTMENT OF ENERGY AND CLIMATE CHANGE,THE COAL AUTHORITY,01/02/2016,IT-APPLICATIONS MANAGEMENT,LICENSING,ICT-MAINTENANCE & SUPPORT,OPEN PROJECTS LIMITED,98100,1623.50
DEPARTMENT OF ENERGY AND CLIMATE CHANGE,THE COAL AUTHORITY,29/01/2016,CONTRACTORS AND CLAIM COSTS,HATFIELD COLLIERY,CONSTRUCTION-CNSTRN SER PROVDR,CORNERSTONE  PROJECTS LTD,98101,78.00
DEPARTMENT OF ENERGY AND CLIMATE CHANGE,THE COAL AUTHORITY,29/01/2016,CONTRACTORS AND CLAIM COSTS,SURFACE HAZARDS,CONSTRUCTION-CNSTRN SER PROVDR,CORNERSTONE  PROJECTS LTD,98102,78.00
DEPARTMENT OF ENERGY AND CLIMATE CHANGE,THE COAL AUTHORITY,29/01/2016,CONTRACTORS AND CLAIM COSTS,SURFACE HAZARDS,CONSTRUCTION-CNSTRN SER PROVDR,CORNERSTONE  PROJECTS LTD,98103,58.00
DEPARTMENT OF ENERGY AND CLIMATE CHANGE,THE COAL AUTHORITY,29/01/2016,CONTRACTORS AND CLAIM COSTS,SUBSIDENCE,CONSTRUCTION-CNSTRN SER PROVDR,CORNERSTONE  PROJECTS LTD,98104,237.90
DEPARTMENT OF ENERGY AND CLIMATE CHANGE,THE COAL AUTHORITY,29/01/2016,CONTRACTORS AND CLAIM COSTS,SURFACE HAZARDS,CONSTRUCTION-CNSTRN SER PROVDR,CORNERSTONE  PROJECTS LTD,98106,280.90
DEPARTMENT OF ENERGY AND CLIMATE CHANGE,THE COAL AUTHORITY,29/01/2016,CONTRACTORS AND CLAIM COSTS,SURFACE HAZARDS,CONSTRUCTION-CNSTRN SER PROVDR,CORNERSTONE  PROJECTS LTD,98107,312.90
DEPARTMENT OF ENERGY AND CLIMATE CHANGE,THE COAL AUTHORITY,29/01/2016,CONTRACTORS AND CLAIM COSTS,MINE ENTRY INSPECTIONS,CONSTRUCTION-CNSTRN SER PROVDR,CORNERSTONE  PROJECTS LTD,98108,117.54
DEPARTMENT OF ENERGY AND CLIMATE CHANGE,THE COAL AUTHORITY,29/01/2016,CONTRACTORS AND CLAIM COSTS,KELLINGLEY COLLIERY,PROF SER-OPERATIONAL SERVICES,VALUATION OFFICE AGENCY,98109,3000.00
DEPARTMENT OF ENERGY AND CLIMATE CHANGE,THE COAL AUTHORITY,01/02/2016,COURIER SERVICES,FACILITIES MANAGEMENT,FACILITIES - SECURITY,SECURITY PLUS LIMITED,98110,46.00
DEPARTMENT OF ENERGY AND CLIMATE CHANGE,THE COAL AUTHORITY,01/02/2016,COURIER SERVICES,MINING INFORMATION COMMERCIAL,FACILITIES - SECURITY,SECURITY PLUS LIMITED,98110,46.00
DEPARTMENT OF ENERGY AND CLIMATE CHANGE,THE COAL AUTHORITY,01/02/2016,M/W RENTS PAYABLE,MINE WATER TREATMENT SCHEMES,FACILITIES-BUILDING MANAGEMENT,THWAITES BREWERY,98111,1750.00
DEPARTMENT OF ENERGY AND CLIMATE CHANGE,THE COAL AUTHORITY,27/01/2016,CONTRACTORS AND CLAIM COSTS,SURFACE HAZARDS,CONSTRUCTION-MAIN CONTRACTORS,BALFOUR BEATTY CIVIL ENG LTD,98112,1148.80
DEPARTMENT OF ENERGY AND CLIMATE CHANGE,THE COAL AUTHORITY,27/01/2016,CONTRACTORS AND CLAIM COSTS,TIP MAINTENANCE/IMPROVEMENTS,CONSTRUCTION-MAIN CONTRACTORS,BALFOUR BEATTY CIVIL ENG LTD,98114,688.20
DEPARTMENT OF ENERGY AND CLIMATE CHANGE,THE COAL AUTHORITY,27/01/2016,CONTRACTORS AND CLAIM COSTS,TIP MAINTENANCE/IMPROVEMENTS,CONSTRUCTION-MAIN CONTRACTORS,BALFOUR BEATTY CIVIL ENG LTD,98115,732.60
DEPARTMENT OF ENERGY AND CLIMATE CHANGE,THE COAL AUTHORITY,29/01/2016,PROPERTY /TIP MAINTENANCE,PROPERTY MANAGEMENT & SALES,PROF SER TECH-ENGINEERING SER,MOTT MACDONALD LTD,98128,1107.00
DEPARTMENT OF ENERGY AND CLIMATE CHANGE,THE COAL AUTHORITY,29/01/2016,OFFICE MACHINERY PURCHASED,SURFACE HAZARDS,OPRTNL GOODS&SERV-ELEC MNTRING,ENVIRONMENTAL SCIENTIFICS GRP,98129,554.56
DEPARTMENT OF ENERGY AND CLIMATE CHANGE,THE COAL AUTHORITY,29/01/2016,LEGAL COSTS,HISTORIC LIABILITIES,PROF SER-OPERATIONAL SERVICES,LAND REGISTRY,98130,3.00
DEPARTMENT OF ENERGY AND CLIMATE CHANGE,THE COAL AUTHORITY,29/01/2016,LEGAL COSTS,LEGAL,PROF SER-OPERATIONAL SERVICES,LAND REGISTRY,98130,3.00
DEPARTMENT OF ENERGY AND CLIMATE CHANGE,THE COAL AUTHORITY,29/01/2016,LEGAL COSTS,SURFACE HAZARDS,PROF SER-OPERATIONAL SERVICES,LAND REGISTRY,98130,12.00
DEPARTMENT OF ENERGY AND CLIMATE CHANGE,THE COAL AUTHORITY,26/01/2016,PAYMENTS TO AGENCIES FOR TEMPS,FACILITIES MANAGEMENT,PROF SER TMP STFF-TEMP WRKERS,THORN BAKER LIMITED,98131,84.00
DEPARTMENT OF ENERGY AND CLIMATE CHANGE,THE COAL AUTHORITY,27/01/2016,CONSULTANCY,PROCUREMENT,PROF SER CNSLTNCY-PROCUREMENT,AECOM INFRASTRUCTURE & ENV,98132,19735.18
DEPARTMENT OF ENERGY AND CLIMATE CHANGE,THE COAL AUTHORITY,28/01/2016,CURR YR ADDNS SUBS PMPNG STNS,SUBSIDENCE PUMPING STATIONS,"CONSTRUCTION-BLD,REPR&MAINTNCE",DANVM DRAINAGE COMMISSIONERS,98133,7603.90
DEPARTMENT OF ENERGY AND CLIMATE CHANGE,THE COAL AUTHORITY,08/01/2016,OUTSOURCED MGT- PROP SALES,PROPERTY MANAGEMENT & SALES,PROF SER-LEGAL SERVICES,SVA PROPERTY AUCTIONS LTD,98134,500.00
DEPARTMENT OF ENERGY AND CLIMATE CHANGE,THE COAL AUTHORITY,29/01/2016,M/W REMEDIATION,MINE WATER TREATMENT SCHEMES,CONSTRUCTION-MAIN CONTRACTORS,SOIL ENGINEERING GEOSERVICES L,98135,8147.07
DEPARTMENT OF ENERGY AND CLIMATE CHANGE,THE COAL AUTHORITY,29/01/2016,CONSULTANCY,PROCUREMENT,PROF SER TMP STFF-SPCLST CNTRT,CAROLINE ROBERTS,98136,3750.00
DEPARTMENT OF ENERGY AND CLIMATE CHANGE,THE COAL AUTHORITY,29/01/2016,OFFICE MACHINERY PURCHASED,SURFACE HAZARDS,CONSTRUCTION-CNSTRN SUPPLIES,LLETTYSHENKIN CONS CO LTD,98137,1200.00
DEPARTMENT OF ENERGY AND CLIMATE CHANGE,THE COAL AUTHORITY,29/01/2016,PRINTING,HUMAN RESRCES&ORGNSTL DEVLPMNT,OFFICE SOLUTIONS-PRINT,PROLOG PRINT MEDIA,98138,2850.00
DEPARTMENT OF ENERGY AND CLIMATE CHANGE,THE COAL AUTHORITY,29/01/2016,IT-INFRASTRUCTURE MANAGEMENT,ICT -  SERVICE MANAGEMENT,ICT-MAINTENANCE & SUPPORT,SOFTWARE BOX LIMITED,98139,90428.10
DEPARTMENT OF ENERGY AND CLIMATE CHANGE,THE COAL AUTHORITY,29/01/2015,CONSULTANTS-INVESTIGATIONS,MINE WATER TREATMENT SCHEMES,PROF SER TECH-ENGINEERING SER,MOTT MACDONALD LTD,98140,2302.28
DEPARTMENT OF ENERGY AND CLIMATE CHANGE,THE COAL AUTHORITY,31/01/2016,SALARY PROCESSING FEES,FINANCE,PROF SER FNCL-BUS PROC O/SRCE,CGI IT UK LTD,98141,840.61
DEPARTMENT OF ENERGY AND CLIMATE CHANGE,THE COAL AUTHORITY,01/02/2016,PAYMENTS TO AGENCIES FOR TEMPS,ICT-TECH SUPPORT&SYSTM DVLPMNT,PROF SER TMP STFF-SPCLST CNTRT,PLAYCOOL LIMITED,98142,6000.00
DEPARTMENT OF ENERGY AND CLIMATE CHANGE,THE COAL AUTHORITY,29/01/2016,CONTRACT HIRE VEHICLES,FACILITIES MANAGEMENT,VEHICLES-VEHICLE MAINTENANCE,PENTAGON,98143,21.15
DEPARTMENT OF ENERGY AND CLIMATE CHANGE,THE COAL AUTHORITY,29/01/2016,CONTRACT HIRE VEHICLES,FACILITIES MANAGEMENT,VEHICLES-VEHICLE MAINTENANCE,PENTAGON,98144,21.15
DEPARTMENT OF ENERGY AND CLIMATE CHANGE,THE COAL AUTHORITY,20/01/2016,M/W WATER CHARGES,MINE WATER TREATMENT SCHEMES,ENERGY&UTILITIES-WATER,SEVERN TRENT WATER,98145,239.50
DEPARTMENT OF ENERGY AND CLIMATE CHANGE,THE COAL AUTHORITY,28/01/2016,CONSULTANCY,BOSS PROGRAMME,ICT-SYSTEMS DELIVERY,SAPPHIRE SYSTEMS PLC,98148,44.16
DEPARTMENT OF ENERGY AND CLIMATE CHANGE,THE COAL AUTHORITY,28/01/2016,CURR YR ADD-INTNGBLE INFO TECH,BOSS PROGRAMME,ICT-SYSTEMS DELIVERY,SAPPHIRE SYSTEMS PLC,98149,6197.50
DEPARTMENT OF ENERGY AND CLIMATE CHANGE,THE COAL AUTHORITY,28/01/2016,PUBLIC RELATIONS,BOSS PROGRAMME,ICT-SYSTEMS DELIVERY,SAPPHIRE SYSTEMS PLC,98149,162.92
DEPARTMENT OF ENERGY AND CLIMATE CHANGE,THE COAL AUTHORITY,28/01/2016,TRAINING AND EDUCATION,HISTORIC LIABILITIES,PROF SER LRNG&DEV-STAFF TRNING,PUBLIC SECTOR CONNECT LTD,98151,50.00
DEPARTMENT OF ENERGY AND CLIMATE CHANGE,THE COAL AUTHORITY,23/01/2016,CALL CHARGES,ICT -  SERVICE MANAGEMENT,ICT-TELECOMS,VODAFONE LIMITED (CORPORATE),98152,438.38
DEPARTMENT OF ENERGY AND CLIMATE CHANGE,THE COAL AUTHORITY,23/01/2016,LINE RENTAL,ICT -  SERVICE MANAGEMENT,ICT-TELECOMS,VODAFONE LIMITED (CORPORATE),98152,5724.75
DEPARTMENT OF ENERGY AND CLIMATE CHANGE,THE COAL AUTHORITY,01/02/2016,CONSULTANCY,PERMISSIONS,PROF SER CNSLTNCY-PROP/CNSTRCN,ANTHONY NORTHCOTE PLANNING,98153,4425.85
DEPARTMENT OF ENERGY AND CLIMATE CHANGE,THE COAL AUTHORITY,01/02/2016,CONSULTANCY,PLANNING & LOCAL AUTH LIAISON,PROF SER CNSLTNCY-PROP/CNSTRCN,ANTHONY NORTHCOTE PLANNING,98154,804.70
DEPARTMENT OF ENERGY AND CLIMATE CHANGE,THE COAL AUTHORITY,27/01/2016,CONTRACTORS AND CLAIM COSTS,THORESBY COLLIERY,CONSTRUCTION-MAIN CONTRACTORS,NAL PLANT LIMITED,98155,42494.17
DEPARTMENT OF ENERGY AND CLIMATE CHANGE,THE COAL AUTHORITY,27/01/2016,CONTRACTORS AND CLAIM COSTS,THORESBY COLLIERY,CONSTRUCTION-MAIN CONTRACTORS,NAL PLANT LIMITED,98157,6087.74
DEPARTMENT OF ENERGY AND CLIMATE CHANGE,THE COAL AUTHORITY,25/01/2016,SAFETY CLOTHING,SHE,OPRTNL GOODS&SERV-CLOTHING,ARCO LIMITED,98158,21.30
DEPARTMENT OF ENERGY AND CLIMATE CHANGE,THE COAL AUTHORITY,26/01/2016,SAFETY CLOTHING,SHE,OPRTNL GOODS&SERV-CLOTHING,ARCO LIMITED,98173,63.32
DEPARTMENT OF ENERGY AND CLIMATE CHANGE,THE COAL AUTHORITY,27/01/2016,STATIONERY,FACILITIES MANAGEMENT,OFFICE SOLUTIONS-OFFCE SPPLIES,BANNER BUSINESS SOLUTIONS,98174,9.52
DEPARTMENT OF ENERGY AND CLIMATE CHANGE,THE COAL AUTHORITY,27/01/2016,STATIONERY,FACILITIES MANAGEMENT,OFFICE SOLUTIONS-OFFCE SPPLIES,BANNER BUSINESS SOLUTIONS,98175,463.94
DEPARTMENT OF ENERGY AND CLIMATE CHANGE,THE COAL AUTHORITY,31/01/2016,INNOVATION COSTS,ENVIRONMENT - ZERO COST PROG,PROF SER CNSLTNCY-STRATEGY,CARTER JONAS,98176,2500.00
DEPARTMENT OF ENERGY AND CLIMATE CHANGE,THE COAL AUTHORITY,31/01/2016,INNOVATION COSTS,ENVIRONMENT - ZERO COST PROG,PROF SER CNSLTNCY-STRATEGY,CARTER JONAS,98177,500.00
DEPARTMENT OF ENERGY AND CLIMATE CHANGE,THE COAL AUTHORITY,29/01/2016,MEETINGS,BOSS PROGRAMME,TRAVEL&EVENTS-VEHICLE HIRE,RANSOMWOOD ESTATES LTD,98178,138.60
DEPARTMENT OF ENERGY AND CLIMATE CHANGE,THE COAL AUTHORITY,29/01/2016,MEETINGS,BOSS PROGRAMME,FACILITIES - FOOD,RANSOMWOOD ESTATES LTD,98178,161.40
DEPARTMENT OF ENERGY AND CLIMATE CHANGE,THE COAL AUTHORITY,29/01/2015,M/W CNTRCTR-OPRTNL MNTLY TSKS,MINE WATER TREATMENT SCHEMES,CONSTRUCTION-MAIN CONTRACTORS,SEVERN TRENT SERV OPS UK LTD,98179,-55551.84
DEPARTMENT OF ENERGY AND CLIMATE CHANGE,THE COAL AUTHORITY,09/01/2016,PAYMENTS TO AGENCIES FOR TEMPS,MINE WATER TREATMENT SCHEMES,PROF SER TMP STFF-SPCLST CNTRT,ATKINS LIMITED,98180,5988.90
DEPARTMENT OF ENERGY AND CLIMATE CHANGE,THE COAL AUTHORITY,28/01/2016,IT-APPLICATIONS MANAGEMENT,MINING INFORMATION WHOLESALE,ICT-HARDWARE,BENTLEY SYSTEMS (UK) LTD,98181,4000.00
DEPARTMENT OF ENERGY AND CLIMATE CHANGE,THE COAL AUTHORITY,01/02/2016,M/W SCOPING/FEASIBILITY/CONCEP,MINE WATER TREATMENT SCHEMES,PROF SER TECH-ENGINEERING SER,MOUCHEL LTD,98182,56.48
DEPARTMENT OF ENERGY AND CLIMATE CHANGE,THE COAL AUTHORITY,31/01/2016,FARES - PUBLIC TRANSPORT,CUSTOMER SERVICES,TRAVEL&EVENTS-TAXI,ACE OF MANSFIELD LTD,98183,109.00
DEPARTMENT OF ENERGY AND CLIMATE CHANGE,THE COAL AUTHORITY,29/01/2016,PAYMENTS TO AGENCIES FOR TEMPS,SHE,PROF SER TMP STFF-SPCLST CNTRT,MOTT MACDONALD LTD,98191,10749.60
DEPARTMENT OF ENERGY AND CLIMATE CHANGE,THE COAL AUTHORITY,01/02/2016,OTHER RECRUITMENT EXPENSES,HUMAN RESRCES&ORGNSTL DEVLPMNT,PERSONNEL RLTD-HR BUS PRCS O/S,CAROLINE ROBERTS,98192,25.00
DEPARTMENT OF ENERGY AND CLIMATE CHANGE,THE COAL AUTHORITY,01/02/2016,TRAINING AND EDUCATION,MINE WATER TREATMENT SCHEMES,PROF SER LRNG&DEV-STAFF TRNING,THOMAS TELFORD TRAINING,98193,1390.50
DEPARTMENT OF ENERGY AND CLIMATE CHANGE,THE COAL AUTHORITY,29/01/2016,PAYMENTS TO AGENCIES FOR TEMPS,MINING INFORMATION COMMERCIAL,PROF SER TMP STFF-TEMP WRKERS,KEY PERSONNEL SOLUTIONS LTD,98194,499.56
DEPARTMENT OF ENERGY AND CLIMATE CHANGE,THE COAL AUTHORITY,29/01/2016,PAYMENTS TO AGENCIES FOR TEMPS,MINING INFORMATION COMMERCIAL,PROF SER TMP STFF-TEMP WRKERS,KEY PERSONNEL SOLUTIONS LTD,98194,332.35
DEPARTMENT OF ENERGY AND CLIMATE CHANGE,THE COAL AUTHORITY,29/01/2016,PAYMENTS TO AGENCIES FOR TEMPS,MINING INFORMATION COMMERCIAL,PROF SER TMP STFF-TEMP WRKERS,KEY PERSONNEL SOLUTIONS LTD,98194,210.65
DEPARTMENT OF ENERGY AND CLIMATE CHANGE,THE COAL AUTHORITY,29/01/2016,PAYMENTS TO AGENCIES FOR TEMPS,RECORDS STORAGE,PROF SER TMP STFF-TEMP WRKERS,KEY PERSONNEL SOLUTIONS LTD,98194,488.25
DEPARTMENT OF ENERGY AND CLIMATE CHANGE,THE COAL AUTHORITY,01/02/2016,CONTRACTORS AND CLAIM COSTS,SUBSIDENCE,CONSTRUCTION-MAIN CONTRACTORS,ALLIANCE GROUP SOLUTIONS LTD,98195,611.98
DEPARTMENT OF ENERGY AND CLIMATE CHANGE,THE COAL AUTHORITY,01/02/2016,CONTRACTORS AND CLAIM COSTS,SURFACE HAZARDS,CONSTRUCTION-MAIN CONTRACTORS,ALLIANCE GROUP SOLUTIONS LTD,98196,1085.03
DEPARTMENT OF ENERGY AND CLIMATE CHANGE,THE COAL AUTHORITY,01/02/2016,CHILDCARE VCHRS-SERVICE CHARGE,HUMAN RESRCES&ORGNSTL DEVLPMNT,PERSONNEL RLTD-STAFF CHILDCARE,FIDELITI LIMITED,98197,8.73
DEPARTMENT OF ENERGY AND CLIMATE CHANGE,THE COAL AUTHORITY,01/02/2016,CHILDCARE VOUCHERS,BOSS PROGRAMME,PERSONNEL RLTD-STAFF CHILDCARE,FIDELITI LIMITED,98197,124.00
DEPARTMENT OF ENERGY AND CLIMATE CHANGE,THE COAL AUTHORITY,01/02/2016,CHILDCARE VOUCHERS,FINANCE,PERSONNEL RLTD-STAFF CHILDCARE,FIDELITI LIMITED,98197,124.00
DEPARTMENT OF ENERGY AND CLIMATE CHANGE,THE COAL AUTHORITY,01/02/2016,CHILDCARE VOUCHERS,HUMAN RESRCES&ORGNSTL DEVLPMNT,PERSONNEL RLTD-STAFF CHILDCARE,FIDELITI LIMITED,98197,120.00
DEPARTMENT OF ENERGY AND CLIMATE CHANGE,THE COAL AUTHORITY,01/02/2016,CHILDCARE VOUCHERS,HUMAN RESRCES&ORGNSTL DEVLPMNT,PERSONNEL RLTD-STAFF CHILDCARE,FIDELITI LIMITED,98197,243.00
DEPARTMENT OF ENERGY AND CLIMATE CHANGE,THE COAL AUTHORITY,01/02/2016,CHILDCARE VOUCHERS,ICT -  SERVICE MANAGEMENT,PERSONNEL RLTD-STAFF CHILDCARE,FIDELITI LIMITED,98197,243.00
DEPARTMENT OF ENERGY AND CLIMATE CHANGE,THE COAL AUTHORITY,01/02/2016,CHILDCARE VOUCHERS,ICT-BUSINESS ANALYSIS&DESIGN,PERSONNEL RLTD-STAFF CHILDCARE,FIDELITI LIMITED,98197,70.00
DEPARTMENT OF ENERGY AND CLIMATE CHANGE,THE COAL AUTHORITY,01/02/2016,CHILDCARE VOUCHERS,ICT-BUSINESS ANALYSIS&DESIGN,PERSONNEL RLTD-STAFF CHILDCARE,FIDELITI LIMITED,98197,243.00
DEPARTMENT OF ENERGY AND CLIMATE CHANGE,THE COAL AUTHORITY,01/02/2016,CHILDCARE VOUCHERS,ICT-TECH SUPPORT&SYSTM DVLPMNT,PERSONNEL RLTD-STAFF CHILDCARE,FIDELITI LIMITED,98197,243.00
DEPARTMENT OF ENERGY AND CLIMATE CHANGE,THE COAL AUTHORITY,01/02/2016,CHILDCARE VOUCHERS,ICT-TECH SUPPORT&SYSTM DVLPMNT,PERSONNEL RLTD-STAFF CHILDCARE,FIDELITI LIMITED,98197,220.00
DEPARTMENT OF ENERGY AND CLIMATE CHANGE,THE COAL AUTHORITY,01/02/2016,CHILDCARE VOUCHERS,MINE WATER TREATMENT SCHEMES,PERSONNEL RLTD-STAFF CHILDCARE,FIDELITI LIMITED,98197,50.00
DEPARTMENT OF ENERGY AND CLIMATE CHANGE,THE COAL AUTHORITY,01/02/2016,CHILDCARE VOUCHERS,MINE WATER TREATMENT SCHEMES,PERSONNEL RLTD-STAFF CHILDCARE,FIDELITI LIMITED,98197,10.00
DEPARTMENT OF ENERGY AND CLIMATE CHANGE,THE COAL AUTHORITY,01/02/2016,CHILDCARE VOUCHERS,MINING INFORMATION WHOLESALE,PERSONNEL RLTD-STAFF CHILDCARE,FIDELITI LIMITED,98197,200.00
DEPARTMENT OF ENERGY AND CLIMATE CHANGE,THE COAL AUTHORITY,01/02/2016,CHILDCARE VOUCHERS,PERMISSIONS,PERSONNEL RLTD-STAFF CHILDCARE,FIDELITI LIMITED,98197,243.00
DEPARTMENT OF ENERGY AND CLIMATE CHANGE,THE COAL AUTHORITY,01/02/2016,CHILDCARE VOUCHERS,SURFACE HAZARDS,PERSONNEL RLTD-STAFF CHILDCARE,FIDELITI LIMITED,98197,50.00
DEPARTMENT OF ENERGY AND CLIMATE CHANGE,THE COAL AUTHORITY,01/02/2016,CURR YR ADDNS SUBS PMPNG STNS,SUBSIDENCE PUMPING STATIONS,"CONSTRUCTION-BLD,REPR&MAINTNCE",DANVM DRAINAGE COMMISSIONERS,98199,8848.50
DEPARTMENT OF ENERGY AND CLIMATE CHANGE,THE COAL AUTHORITY,01/02/2016,CURR YR ADDNS SUBS PMPNG STNS,SUBSIDENCE PUMPING STATIONS,"CONSTRUCTION-BLD,REPR&MAINTNCE",DANVM DRAINAGE COMMISSIONERS,98199,8173.50
DEPARTMENT OF ENERGY AND CLIMATE CHANGE,THE COAL AUTHORITY,13/01/2016,CONTRACTORS AND CLAIM COSTS,SURFACE HAZARDS,TRAVEL&EVENTS-VEHICLE HIRE,ENTERPRISE RENT A CAR,98200,469.84
DEPARTMENT OF ENERGY AND CLIMATE CHANGE,THE COAL AUTHORITY,15/01/2016,CAR HIRE,SURFACE HAZARDS,TRAVEL&EVENTS-VEHICLE HIRE,ENTERPRISE RENT A CAR,98201,469.84
DEPARTMENT OF ENERGY AND CLIMATE CHANGE,THE COAL AUTHORITY,08/01/2016,CAR HIRE,MINE WATER TREATMENT SCHEMES,TRAVEL&EVENTS-VEHICLE HIRE,ENTERPRISE RENT A CAR,98203,124.08
DEPARTMENT OF ENERGY AND CLIMATE CHANGE,THE COAL AUTHORITY,23/01/2016,CAR HIRE,SURFACE HAZARDS,TRAVEL&EVENTS-VEHICLE HIRE,ENTERPRISE RENT A CAR,98204,44.58
DEPARTMENT OF ENERGY AND CLIMATE CHANGE,THE COAL AUTHORITY,16/01/2016,CAR HIRE,SHE,TRAVEL&EVENTS-VEHICLE HIRE,ENTERPRISE RENT A CAR,98206,65.72
DEPARTMENT OF ENERGY AND CLIMATE CHANGE,THE COAL AUTHORITY,08/01/2016,CAR HIRE,MINE WATER TREATMENT SCHEMES,TRAVEL&EVENTS-VEHICLE HIRE,ENTERPRISE RENT A CAR,98207,31.75
DEPARTMENT OF ENERGY AND CLIMATE CHANGE,THE COAL AUTHORITY,01/02/2016,CONTRACT HIRE VEHICLES,FACILITIES MANAGEMENT,VEHICLES-VEHICLE MAINTENANCE,PENTAGON,98208,21.15
DEPARTMENT OF ENERGY AND CLIMATE CHANGE,THE COAL AUTHORITY,01/02/2016,CONTRACT HIRE VEHICLES,FACILITIES MANAGEMENT,VEHICLES-VEHICLE MAINTENANCE,PENTAGON,98209,21.15
DEPARTMENT OF ENERGY AND CLIMATE CHANGE,THE COAL AUTHORITY,01/02/2016,CONTRACT HIRE VEHICLES,FACILITIES MANAGEMENT,VEHICLES-VEHICLE MAINTENANCE,PENTAGON,98210,108.75
DEPARTMENT OF ENERGY AND CLIMATE CHANGE,THE COAL AUTHORITY,30/01/2016,SITE SERVICES,FACILITIES MANAGEMENT,FACILITIES-BUILDING MANAGEMENT,BERRISFORD SWEEPER HIRE LTD,98212,395.00
DEPARTMENT OF ENERGY AND CLIMATE CHANGE,THE COAL AUTHORITY,29/01/2016,M/W SCOPING/FEASIBILITY/CONCEP,MINE WATER TREATMENT SCHEMES,PROF SER TECH-ENGINEERING SER,MOTT MACDONALD LTD,98213,3324.60
DEPARTMENT OF ENERGY AND CLIMATE CHANGE,THE COAL AUTHORITY,02/02/2016,CONTRACTORS AND CLAIM COSTS,SURFACE HAZARDS,CONSTRUCTION-MAIN CONTRACTORS,ALLIANCE GROUP SOLUTIONS LTD,98214,826.00
DEPARTMENT OF ENERGY AND CLIMATE CHANGE,THE COAL AUTHORITY,02/02/2016,CONTRACTORS AND CLAIM COSTS,SURFACE HAZARDS,CONSTRUCTION-MAIN CONTRACTORS,ALLIANCE GROUP SOLUTIONS LTD,98215,499.48
DEPARTMENT OF ENERGY AND CLIMATE CHANGE,THE COAL AUTHORITY,29/01/2016,RESTRTN CLSED CLLRY STE-PROP,PROPERTY MANAGEMENT & SALES,FACILITIES - SECURITY,CRIMEFIGHTER ALARMS LTD,98216,1213.74
DEPARTMENT OF ENERGY AND CLIMATE CHANGE,THE COAL AUTHORITY,02/02/2016,CONSULTANTS-INVESTIGATIONS,MINE WATER TREATMENT SCHEMES,PROF SER TECH-ENGINEERING SER,MOUCHEL LTD,98220,4532.38
DEPARTMENT OF ENERGY AND CLIMATE CHANGE,THE COAL AUTHORITY,02/02/2016,M/W SCOPING/FEASIBILITY/CONCEP,DEFRA PROGRAMME,PROF SER TECH-ENGINEERING SER,MOUCHEL LTD,98221,679.75
DEPARTMENT OF ENERGY AND CLIMATE CHANGE,THE COAL AUTHORITY,02/02/2016,M/W SCOPING/FEASIBILITY/CONCEP,DEFRA PROGRAMME,PROF SER TECH-ENGINEERING SER,MOUCHEL LTD,98222,474.39
DEPARTMENT OF ENERGY AND CLIMATE CHANGE,THE COAL AUTHORITY,02/02/2016,M/W SCOPING/FEASIBILITY/CONCEP,DEFRA PROGRAMME,PROF SER TECH-ENGINEERING SER,MOUCHEL LTD,98223,1050.44
DEPARTMENT OF ENERGY AND CLIMATE CHANGE,THE COAL AUTHORITY,31/01/2016,PROJECT MANAGEMENT-BOREHOLES,MINE WATER TREATMENT SCHEMES,PROF SER CNSLTNCY-TCHNL CNSLTY,JMC ENGINEERING (UK) LTD,98224,2894.50
DEPARTMENT OF ENERGY AND CLIMATE CHANGE,THE COAL AUTHORITY,31/01/2016,OTHER CONTRACTOR COSTS,PROPERTY MANAGEMENT & SALES,PROF SER CNSLTNCY-PPM CNSLTNCY,JMC ENGINEERING (UK) LTD,98225,1127.00
DEPARTMENT OF ENERGY AND CLIMATE CHANGE,THE COAL AUTHORITY,31/01/2016,M/W LANDSCAPING SUPERVISION,MINE WATER TREATMENT SCHEMES,PROF SER TECH-ENGINEERING SER,JMC ENGINEERING (UK) LTD,98227,466.20
DEPARTMENT OF ENERGY AND CLIMATE CHANGE,THE COAL AUTHORITY,31/01/2016,M/W LAND AGENTS (AQUISITIONS),MINE WATER TREATMENT SCHEMES,PROF SER TECH-ENGINEERING SER,JMC ENGINEERING (UK) LTD,98228,614.20
DEPARTMENT OF ENERGY AND CLIMATE CHANGE,THE COAL AUTHORITY,31/01/2016,PROJECT MANAGEMENT-BOREHOLES,MINE WATER TREATMENT SCHEMES,PROF SER TECH-ENGINEERING SER,JMC ENGINEERING (UK) LTD,98229,910.20
DEPARTMENT OF ENERGY AND CLIMATE CHANGE,THE COAL AUTHORITY,31/01/2016,CURR YR ADDNS NON COAL MINES,DEFRA PROGRAMME,PROF SER TECH-ENGINEERING SER,JMC ENGINEERING (UK) LTD,98230,703.00
DEPARTMENT OF ENERGY AND CLIMATE CHANGE,THE COAL AUTHORITY,31/01/2016,PROJECT MANAGEMENT-BOREHOLES,MINE WATER TREATMENT SCHEMES,PROF SER TECH-ENGINEERING SER,JMC ENGINEERING (UK) LTD,98232,481.00
DEPARTMENT OF ENERGY AND CLIMATE CHANGE,THE COAL AUTHORITY,02/02/2016,CONTRACTORS AND CLAIM COSTS,HATFIELD COLLIERY,"CONSTRUCTION-BLD,REPR&MAINTNCE",DANVM DRAINAGE COMMISSIONERS,98233,7879.50
DEPARTMENT OF ENERGY AND CLIMATE CHANGE,THE COAL AUTHORITY,02/02/2016,CONTRACTORS AND CLAIM COSTS,HATFIELD COLLIERY,"CONSTRUCTION-BLD,REPR&MAINTNCE",DANVM DRAINAGE COMMISSIONERS,98234,3720.00
DEPARTMENT OF ENERGY AND CLIMATE CHANGE,THE COAL AUTHORITY,02/02/2016,CONTRACTORS AND CLAIM COSTS,HATFIELD COLLIERY,"CONSTRUCTION-BLD,REPR&MAINTNCE",DANVM DRAINAGE COMMISSIONERS,98235,1326.00
DEPARTMENT OF ENERGY AND CLIMATE CHANGE,THE COAL AUTHORITY,02/02/2016,CONTRACTORS AND CLAIM COSTS,HATFIELD COLLIERY,"CONSTRUCTION-BLD,REPR&MAINTNCE",DANVM DRAINAGE COMMISSIONERS,98236,916.75
DEPARTMENT OF ENERGY AND CLIMATE CHANGE,THE COAL AUTHORITY,11/01/2016,CONTRACTORS AND CLAIM COSTS,HATFIELD COLLIERY,"CONSTRUCTION-BLD,REPR&MAINTNCE",DANVM DRAINAGE COMMISSIONERS,98237,1160.00
DEPARTMENT OF ENERGY AND CLIMATE CHANGE,THE COAL AUTHORITY,03/02/2016,CONTRACTORS AND CLAIM COSTS,SUBSIDENCE,FACILITIES-ACCOMDTN SERVICES,SARAH MAINS RESIDENTIAL LTD,98251,675.00
DEPARTMENT OF ENERGY AND CLIMATE CHANGE,THE COAL AUTHORITY,01/02/2016,CURR YR ADD-INTNGBLE INFO TECH,BOSS PROGRAMME,ICT-SYSTEMS DELIVERY,SAPPHIRE SYSTEMS PLC,98252,462.50
DEPARTMENT OF ENERGY AND CLIMATE CHANGE,THE COAL AUTHORITY,01/02/2016,CONSULTANCY,BOSS PROGRAMME,ICT-SYSTEMS DELIVERY,SAPPHIRE SYSTEMS PLC,98253,36.80
DEPARTMENT OF ENERGY AND CLIMATE CHANGE,THE COAL AUTHORITY,31/01/2016,CURR YR ADD-INTNGBLE INFO TECH,BOSS PROGRAMME,ICT-SYSTEMS DELIVERY,SAPPHIRE SYSTEMS PLC,98255,1387.50
DEPARTMENT OF ENERGY AND CLIMATE CHANGE,THE COAL AUTHORITY,31/01/2016,IT-APPLICATIONS MANAGEMENT,FINANCE,ICT-MAINTENANCE & SUPPORT,BOTTOMLINE TECHNOLOGIES,98256,91.00
DEPARTMENT OF ENERGY AND CLIMATE CHANGE,THE COAL AUTHORITY,29/01/2016,R&D-EXTERNAL COSTS,MINE WATER TREATMENT SCHEMES,PROF SER TECH-ENGINEERING SER,AECOM INFRASTRUCTURE & ENV,98257,540.00
DEPARTMENT OF ENERGY AND CLIMATE CHANGE,THE COAL AUTHORITY,27/11/2015,IT-APPLICATIONS MANAGEMENT,ICT-BUSINESS ANALYSIS&DESIGN,ICT-MAINTENANCE & SUPPORT,MAYTECH,98258,330.00
DEPARTMENT OF ENERGY AND CLIMATE CHANGE,THE COAL AUTHORITY,29/01/2016,CURR YR ADD-INTNGBLE INFO TECH,HISTORIC LIABILITIES,ICT-SYSTEMS DELIVERY,SCISYS UK LTD,98259,4428.00
DEPARTMENT OF ENERGY AND CLIMATE CHANGE,THE COAL AUTHORITY,29/01/2016,CURR YR ADD-INTNGBLE INFO TECH,MINE ENTRY INSPECTIONS,ICT-SYSTEMS DELIVERY,SCISYS UK LTD,98259,4428.00
DEPARTMENT OF ENERGY AND CLIMATE CHANGE,THE COAL AUTHORITY,29/01/2016,CURR YR ADD-INTNGBLE INFO TECH,MINING INFORMATION COMMERCIAL,ICT-SYSTEMS DELIVERY,SCISYS UK LTD,98259,4428.00
DEPARTMENT OF ENERGY AND CLIMATE CHANGE,THE COAL AUTHORITY,29/01/2016,CURR YR ADD-INTNGBLE INFO TECH,MINING INFORMATION WHOLESALE,ICT-SYSTEMS DELIVERY,SCISYS UK LTD,98259,4428.00
DEPARTMENT OF ENERGY AND CLIMATE CHANGE,THE COAL AUTHORITY,29/01/2016,CURR YR ADD-INTNGBLE INFO TECH,PLANNING & LOCAL AUTH LIAISON,ICT-SYSTEMS DELIVERY,SCISYS UK LTD,98259,4428.00
DEPARTMENT OF ENERGY AND CLIMATE CHANGE,THE COAL AUTHORITY,29/01/2016,CURR YR ADD-INTNGBLE INFO TECH,SURFACE HAZARDS,ICT-SYSTEMS DELIVERY,SCISYS UK LTD,98259,22140.00
DEPARTMENT OF ENERGY AND CLIMATE CHANGE,THE COAL AUTHORITY,28/01/2016,IT-APPLICATIONS MANAGEMENT,HISTORIC LIABILITIES,ICT-TELECOMS,BRITISH TELECOMMUNICATIONS PLC,98260,216.85
DEPARTMENT OF ENERGY AND CLIMATE CHANGE,THE COAL AUTHORITY,28/01/2016,IT-APPLICATIONS MANAGEMENT,MINE ENTRY INSPECTIONS,ICT-TELECOMS,BRITISH TELECOMMUNICATIONS PLC,98260,433.70
DEPARTMENT OF ENERGY AND CLIMATE CHANGE,THE COAL AUTHORITY,28/01/2016,IT-APPLICATIONS MANAGEMENT,MINING INFORMATION COMMERCIAL,ICT-TELECOMS,BRITISH TELECOMMUNICATIONS PLC,98260,1084.25
DEPARTMENT OF ENERGY AND CLIMATE CHANGE,THE COAL AUTHORITY,28/01/2016,IT-APPLICATIONS MANAGEMENT,MINING INFORMATION WHOLESALE,ICT-TELECOMS,BRITISH TELECOMMUNICATIONS PLC,98260,1084.25
DEPARTMENT OF ENERGY AND CLIMATE CHANGE,THE COAL AUTHORITY,28/01/2016,IT-APPLICATIONS MANAGEMENT,PLANNING & LOCAL AUTH LIAISON,ICT-TELECOMS,BRITISH TELECOMMUNICATIONS PLC,98260,216.85
DEPARTMENT OF ENERGY AND CLIMATE CHANGE,THE COAL AUTHORITY,28/01/2016,IT-APPLICATIONS MANAGEMENT,SURFACE HAZARDS,ICT-TELECOMS,BRITISH TELECOMMUNICATIONS PLC,98260,1301.10
DEPARTMENT OF ENERGY AND CLIMATE CHANGE,THE COAL AUTHORITY,02/02/2016,CONTRACTORS AND CLAIM COSTS,SUBSIDENCE,CONSTRUCTION-MAIN CONTRACTORS,SOIL ENGINEERING GEOSERVICES L,98261,4200.00
DEPARTMENT OF ENERGY AND CLIMATE CHANGE,THE COAL AUTHORITY,01/02/2016,M/W POWER COSTS,MINE WATER TREATMENT SCHEMES,ENERGY&UTILITIES-ELECTRICITY,EDF ENERGY CUSTOMERS PLC,98263,414.64
DEPARTMENT OF ENERGY AND CLIMATE CHANGE,THE COAL AUTHORITY,03/02/2016,COMMISSION CHARGES-E-COMMERCE,MINING INFORMATION COMMERCIAL,PROF SER FNCL-BANKING&INVSTMNT,WORLDPAY LIMITED,98264,659.14
DEPARTMENT OF ENERGY AND CLIMATE CHANGE,THE COAL AUTHORITY,03/02/2016,COMMISSION CHARGES-E-COMMERCE,PERMISSIONS,PROF SER FNCL-BANKING&INVSTMNT,WORLDPAY LIMITED,98265,18.08
DEPARTMENT OF ENERGY AND CLIMATE CHANGE,THE COAL AUTHORITY,31/01/2016,OUTSOURCED MANAGEMENT-PS&S,MINE ENTRY INSPECTIONS,SOCIAL CARE-EMERGENCY SERVICES,INTERLOCK SURVEYS,98267,16537.50
DEPARTMENT OF ENERGY AND CLIMATE CHANGE,THE COAL AUTHORITY,03/02/2016,M/W RENTS PAYABLE,MINE WATER TREATMENT SCHEMES,FACILITIES-BUILDING MANAGEMENT,MR B T NEWTON,98268,400.00
DEPARTMENT OF ENERGY AND CLIMATE CHANGE,THE COAL AUTHORITY,04/02/2016,CONTRACTORS AND CLAIM COSTS,HATFIELD COLLIERY,"CONSTRUCTION-BLD,REPR&MAINTNCE",97150 MR P WAITE,98303,428.00
DEPARTMENT OF ENERGY AND CLIMATE CHANGE,THE COAL AUTHORITY,04/02/2016,CONTRACTORS AND CLAIM COSTS,HATFIELD COLLIERY,"CONSTRUCTION-BLD,REPR&MAINTNCE",97743 C GOLDTHORPE & SONS,98303,900.00
DEPARTMENT OF ENERGY AND CLIMATE CHANGE,THE COAL AUTHORITY,04/02/2016,CONTRACTORS AND CLAIM COSTS,HATFIELD COLLIERY,PROF SER-OPERATIONAL SERVICES,97776 J H PICKUP & CO,98303,1160.00
DEPARTMENT OF ENERGY AND CLIMATE CHANGE,THE COAL AUTHORITY,04/02/2016,CONTRACTORS AND CLAIM COSTS,HATFIELD COLLIERY,"CONSTRUCTION-BLD,REPR&MAINTNCE",96089 G GOLDTHORPE & SONS,98303,1380.00
DEPARTMENT OF ENERGY AND CLIMATE CHANGE,THE COAL AUTHORITY,04/02/2016,CONTRACTORS AND CLAIM COSTS,HATFIELD COLLIERY,"CONSTRUCTION-BLD,REPR&MAINTNCE",96671 G GOLDTHORPE & SONS,98303,2035.80
DEPARTMENT OF ENERGY AND CLIMATE CHANGE,THE COAL AUTHORITY,04/02/2016,CONTRACTORS AND CLAIM COSTS,HATFIELD COLLIERY,"CONSTRUCTION-BLD,REPR&MAINTNCE",97744 MR M WHITELEY,98303,7418.00
DEPARTMENT OF ENERGY AND CLIMATE CHANGE,THE COAL AUTHORITY,04/02/2016,CONTRACTORS AND CLAIM COSTS,HATFIELD COLLIERY,"CONSTRUCTION-BLD,REPR&MAINTNCE",222892 SECTION 8 PAYMENT,98303,12192.58
DEPARTMENT OF ENERGY AND CLIMATE CHANGE,THE COAL AUTHORITY,04/02/2016,CONTRACTORS AND CLAIM COSTS,HATFIELD COLLIERY,"CONSTRUCTION-BLD,REPR&MAINTNCE",97777 MR P WAITE,98303,13000.00
DEPARTMENT OF ENERGY AND CLIMATE CHANGE,THE COAL AUTHORITY,04/02/2016,CONTRACTORS AND CLAIM COSTS,HATFIELD COLLIERY,CONSTRUCTION-MAIN CONTRACTORS,97111 NAL PLANT LIMITED,98303,-490.14
DEPARTMENT OF ENERGY AND CLIMATE CHANGE,THE COAL AUTHORITY,04/02/2016,CONTRACTORS AND CLAIM COSTS,SUBSIDENCE,"CONSTRUCTION-BLD,REPR&MAINTNCE",97150 MR P WAITE,98303,-428.00
DEPARTMENT OF ENERGY AND CLIMATE CHANGE,THE COAL AUTHORITY,04/02/2016,CONTRACTORS AND CLAIM COSTS,SUBSIDENCE,"CONSTRUCTION-BLD,REPR&MAINTNCE",97743 C GOLDTHORPE & SONS,98303,-900.00
DEPARTMENT OF ENERGY AND CLIMATE CHANGE,THE COAL AUTHORITY,04/02/2016,CONTRACTORS AND CLAIM COSTS,SUBSIDENCE,PROF SER-OPERATIONAL SERVICES,97776 J H PICKUP & CO,98303,-1160.00
DEPARTMENT OF ENERGY AND CLIMATE CHANGE,THE COAL AUTHORITY,04/02/2016,CONTRACTORS AND CLAIM COSTS,SUBSIDENCE,"CONSTRUCTION-BLD,REPR&MAINTNCE",96089 G GOLDTHORPE & SONS,98303,-1380.00
DEPARTMENT OF ENERGY AND CLIMATE CHANGE,THE COAL AUTHORITY,04/02/2016,CONTRACTORS AND CLAIM COSTS,SUBSIDENCE,"CONSTRUCTION-BLD,REPR&MAINTNCE",96671 G GOLDTHORPE & SONS,98303,-2035.80
DEPARTMENT OF ENERGY AND CLIMATE CHANGE,THE COAL AUTHORITY,04/02/2016,CONTRACTORS AND CLAIM COSTS,SUBSIDENCE,"CONSTRUCTION-BLD,REPR&MAINTNCE",97744 MR M WHITELEY,98303,-7418.00
DEPARTMENT OF ENERGY AND CLIMATE CHANGE,THE COAL AUTHORITY,04/02/2016,CONTRACTORS AND CLAIM COSTS,SUBSIDENCE,"CONSTRUCTION-BLD,REPR&MAINTNCE",222892 SECTION 8 PAYMENT,98303,-12192.58
DEPARTMENT OF ENERGY AND CLIMATE CHANGE,THE COAL AUTHORITY,04/02/2016,CONTRACTORS AND CLAIM COSTS,SUBSIDENCE,"CONSTRUCTION-BLD,REPR&MAINTNCE",97777 MR P WAITE,98303,-13000.00
DEPARTMENT OF ENERGY AND CLIMATE CHANGE,THE COAL AUTHORITY,04/02/2016,CONTRACTORS AND CLAIM COSTS,SUBSIDENCE,CONSTRUCTION-MAIN CONTRACTORS,97111 NAL PLANT LIMITED,98303,490.14
DEPARTMENT OF ENERGY AND CLIMATE CHANGE,THE COAL AUTHORITY,03/02/2016,FUEL (VEHICLE),FACILITIES MANAGEMENT,FUELS/LUBRCNT/GAS-FUELS,ALLSTAR BUSINESS SOLUTIONS LTD,98332,97.43
DEPARTMENT OF ENERGY AND CLIMATE CHANGE,THE COAL AUTHORITY,03/02/2016,FUEL (VEHICLE),FACILITIES MANAGEMENT,FUELS/LUBRCNT/GAS-FUELS,ALLSTAR BUSINESS SOLUTIONS LTD,98333,93.66
DEPARTMENT OF ENERGY AND CLIMATE CHANGE,THE COAL AUTHORITY,03/02/2016,FUEL (VEHICLE),FACILITIES MANAGEMENT,FUELS/LUBRCNT/GAS-FUELS,ALLSTAR BUSINESS SOLUTIONS LTD,98334,99.88
DEPARTMENT OF ENERGY AND CLIMATE CHANGE,THE COAL AUTHORITY,03/02/2016,FUEL (VEHICLE),FACILITIES MANAGEMENT,FUELS/LUBRCNT/GAS-FUELS,ALLSTAR BUSINESS SOLUTIONS LTD,98335,25.91
DEPARTMENT OF ENERGY AND CLIMATE CHANGE,THE COAL AUTHORITY,03/02/2016,FUEL (VEHICLE),FACILITIES MANAGEMENT,FUELS/LUBRCNT/GAS-FUELS,ALLSTAR BUSINESS SOLUTIONS LTD,98336,28.18
DEPARTMENT OF ENERGY AND CLIMATE CHANGE,THE COAL AUTHORITY,03/02/2016,FUEL (VEHICLE),SURFACE HAZARDS,FUELS/LUBRCNT/GAS-FUELS,ALLSTAR BUSINESS SOLUTIONS LTD,98337,52.28
DEPARTMENT OF ENERGY AND CLIMATE CHANGE,THE COAL AUTHORITY,03/02/2016,FUEL (VEHICLE),SURFACE HAZARDS,FUELS/LUBRCNT/GAS-FUELS,ALLSTAR BUSINESS SOLUTIONS LTD,98338,66.89
DEPARTMENT OF ENERGY AND CLIMATE CHANGE,THE COAL AUTHORITY,03/02/2016,FUEL (VEHICLE),SURFACE HAZARDS,FUELS/LUBRCNT/GAS-FUELS,ALLSTAR BUSINESS SOLUTIONS LTD,98339,52.81
DEPARTMENT OF ENERGY AND CLIMATE CHANGE,THE COAL AUTHORITY,03/02/2016,FUEL (VEHICLE),SURFACE HAZARDS,FUELS/LUBRCNT/GAS-FUELS,ALLSTAR BUSINESS SOLUTIONS LTD,98340,53.13
DEPARTMENT OF ENERGY AND CLIMATE CHANGE,THE COAL AUTHORITY,03/02/2016,FUEL (VEHICLE),SURFACE HAZARDS,FUELS/LUBRCNT/GAS-FUELS,ALLSTAR BUSINESS SOLUTIONS LTD,98341,68.73
DEPARTMENT OF ENERGY AND CLIMATE CHANGE,THE COAL AUTHORITY,03/02/2016,FUEL (VEHICLE),SURFACE HAZARDS,FUELS/LUBRCNT/GAS-FUELS,ALLSTAR BUSINESS SOLUTIONS LTD,98342,58.74
DEPARTMENT OF ENERGY AND CLIMATE CHANGE,THE COAL AUTHORITY,03/02/2016,FUEL (VEHICLE),SURFACE HAZARDS,FUELS/LUBRCNT/GAS-FUELS,ALLSTAR BUSINESS SOLUTIONS LTD,98343,48.28
DEPARTMENT OF ENERGY AND CLIMATE CHANGE,THE COAL AUTHORITY,03/02/2016,FUEL (VEHICLE),SURFACE HAZARDS,FUELS/LUBRCNT/GAS-FUELS,ALLSTAR BUSINESS SOLUTIONS LTD,98344,163.28
DEPARTMENT OF ENERGY AND CLIMATE CHANGE,THE COAL AUTHORITY,03/02/2016,FUEL (VEHICLE),SURFACE HAZARDS,FUELS/LUBRCNT/GAS-FUELS,ALLSTAR BUSINESS SOLUTIONS LTD,98345,77.14
DEPARTMENT OF ENERGY AND CLIMATE CHANGE,THE COAL AUTHORITY,03/02/2016,CONTRACTORS AND CLAIM COSTS,SURFACE HAZARDS,CONSTRUCTION-MAIN CONTRACTORS,LLETTYSHENKIN CONS CO LTD,98347,297.80
DEPARTMENT OF ENERGY AND CLIMATE CHANGE,THE COAL AUTHORITY,04/02/2016,CONTRACTORS AND CLAIM COSTS,SURFACE HAZARDS,CONSTRUCTION-MAIN CONTRACTORS,ALLIANCE GROUP SOLUTIONS LTD,98348,248.00
DEPARTMENT OF ENERGY AND CLIMATE CHANGE,THE COAL AUTHORITY,04/02/2016,CONTRACTORS AND CLAIM COSTS,SURFACE HAZARDS,CONSTRUCTION-MAIN CONTRACTORS,ALLIANCE GROUP SOLUTIONS LTD,98349,313.50
DEPARTMENT OF ENERGY AND CLIMATE CHANGE,THE COAL AUTHORITY,04/02/2016,CONTRACTORS AND CLAIM COSTS,SURFACE HAZARDS,CONSTRUCTION-MAIN CONTRACTORS,ALLIANCE GROUP SOLUTIONS LTD,98350,339.25
DEPARTMENT OF ENERGY AND CLIMATE CHANGE,THE COAL AUTHORITY,04/02/2016,CONTRACTORS AND CLAIM COSTS,SURFACE HAZARDS,CONSTRUCTION-MAIN CONTRACTORS,ALLIANCE GROUP SOLUTIONS LTD,98351,148.20
DEPARTMENT OF ENERGY AND CLIMATE CHANGE,THE COAL AUTHORITY,04/02/2016,CONTRACTORS AND CLAIM COSTS,SURFACE HAZARDS,CONSTRUCTION-MAIN CONTRACTORS,ALLIANCE GROUP SOLUTIONS LTD,98352,216.25
DEPARTMENT OF ENERGY AND CLIMATE CHANGE,THE COAL AUTHORITY,04/02/2016,CONTRACTORS AND CLAIM COSTS,SURFACE HAZARDS,CONSTRUCTION-MAIN CONTRACTORS,ALLIANCE GROUP SOLUTIONS LTD,98353,431.25
DEPARTMENT OF ENERGY AND CLIMATE CHANGE,THE COAL AUTHORITY,29/01/2016,CONTRACTORS AND CLAIM COSTS,SURFACE HAZARDS,CONSTRUCTION-MAIN CONTRACTORS,BALFOUR BEATTY CIVIL ENG LTD,98354,146.40
DEPARTMENT OF ENERGY AND CLIMATE CHANGE,THE COAL AUTHORITY,29/01/2016,CONTRACTORS AND CLAIM COSTS,SURFACE HAZARDS,CONSTRUCTION-MAIN CONTRACTORS,BALFOUR BEATTY CIVIL ENG LTD,98355,146.40
DEPARTMENT OF ENERGY AND CLIMATE CHANGE,THE COAL AUTHORITY,29/01/2016,CONTRACTORS AND CLAIM COSTS,SURFACE HAZARDS,CONSTRUCTION-MAIN CONTRACTORS,BALFOUR BEATTY CIVIL ENG LTD,98356,150.81
DEPARTMENT OF ENERGY AND CLIMATE CHANGE,THE COAL AUTHORITY,27/01/2016,CONTRACTORS AND CLAIM COSTS,SURFACE HAZARDS,CONSTRUCTION-MAIN CONTRACTORS,BALFOUR BEATTY CIVIL ENG LTD,98357,1336.15
DEPARTMENT OF ENERGY AND CLIMATE CHANGE,THE COAL AUTHORITY,28/01/2016,CONTRACTORS AND CLAIM COSTS,SURFACE HAZARDS,CONSTRUCTION-MAIN CONTRACTORS,BALFOUR BEATTY CIVIL ENG LTD,98358,5652.08
DEPARTMENT OF ENERGY AND CLIMATE CHANGE,THE COAL AUTHORITY,26/08/2015,CONTRACTORS AND CLAIM COSTS,SURFACE HAZARDS,CONSTRUCTION-MAIN CONTRACTORS,BALFOUR BEATTY CIVIL ENG LTD,98359,170.80
DEPARTMENT OF ENERGY AND CLIMATE CHANGE,THE COAL AUTHORITY,28/01/2016,CONTRACTORS AND CLAIM COSTS,SURFACE HAZARDS,CONSTRUCTION-MAIN CONTRACTORS,BALFOUR BEATTY CIVIL ENG LTD,98360,219.60
DEPARTMENT OF ENERGY AND CLIMATE CHANGE,THE COAL AUTHORITY,31/01/2016,CONTRACTORS AND CLAIM COSTS,DAW MILL,CONSTRUCTION-CNSTRN SER PROVDR,STUDIO-G ARCHITECTURE LLP,98362,4648.50
DEPARTMENT OF ENERGY AND CLIMATE CHANGE,THE COAL AUTHORITY,29/01/2016,CONTRACTORS AND CLAIM COSTS,MINE ENTRY INSPECTIONS,CONSTRUCTION-MAIN CONTRACTORS,JIM DAVIES CIVIL ENGINEERING,98363,262.80
DEPARTMENT OF ENERGY AND CLIMATE CHANGE,THE COAL AUTHORITY,03/02/2016,CONTRACTORS AND CLAIM COSTS,PLANNING & LOCAL AUTH LIAISON,CONSTRUCTION-MAIN CONTRACTORS,JIM DAVIES CIVIL ENGINEERING,98364,20796.36
DEPARTMENT OF ENERGY AND CLIMATE CHANGE,THE COAL AUTHORITY,02/02/2016,CONTRACTORS AND CLAIM COSTS,SURFACE HAZARDS,CONSTRUCTION-MAIN CONTRACTORS,JIM DAVIES CIVIL ENGINEERING,98365,46445.41
DEPARTMENT OF ENERGY AND CLIMATE CHANGE,THE COAL AUTHORITY,29/01/2016,CONTRACTORS AND CLAIM COSTS,MINE ENTRY INSPECTIONS,CONSTRUCTION-MAIN CONTRACTORS,JIM DAVIES CIVIL ENGINEERING,98366,268.50
DEPARTMENT OF ENERGY AND CLIMATE CHANGE,THE COAL AUTHORITY,03/02/2016,CONTRACTORS AND CLAIM COSTS,SUBSIDENCE,CONSTRUCTION-MAIN CONTRACTORS,NAL PLANT LIMITED,98367,178.03
DEPARTMENT OF ENERGY AND CLIMATE CHANGE,THE COAL AUTHORITY,03/02/2016,CONTRACTORS AND CLAIM COSTS,SUBSIDENCE,CONSTRUCTION-MAIN CONTRACTORS,NAL PLANT LIMITED,98368,30738.28
DEPARTMENT OF ENERGY AND CLIMATE CHANGE,THE COAL AUTHORITY,31/01/2016,CONTRACTORS AND CLAIM COSTS,SUBSIDENCE,CONSTRUCTION-MAIN CONTRACTORS,HARDYMAN & CO LTD,98369,22244.87
DEPARTMENT OF ENERGY AND CLIMATE CHANGE,THE COAL AUTHORITY,03/02/2016,CONTRACTORS AND CLAIM COSTS,HATFIELD COLLIERY,PSPES NOT APPLICABLE,JEREMY BENN ASSOCIATES LTD,98370,2963.50
DEPARTMENT OF ENERGY AND CLIMATE CHANGE,THE COAL AUTHORITY,29/01/2016,CONTRACTORS AND CLAIM COSTS,SURFACE HAZARDS,CONSTRUCTION-MAIN CONTRACTORS,JIM HASTINGS LIMITED,98371,2642.25
DEPARTMENT OF ENERGY AND CLIMATE CHANGE,THE COAL AUTHORITY,05/02/2016,CNTRCTR & CLAIM CSTS-BRDGEWATR,SUBSIDENCE,CONSTRUCTION-MAIN CONTRACTORS,THE BRIDGEWATER CANAL CO LTD,98372,5267.50
DEPARTMENT OF ENERGY AND CLIMATE CHANGE,THE COAL AUTHORITY,05/02/2016,CNTRCTR & CLAIM CSTS-BRDGEWATR,SUBSIDENCE,CONSTRUCTION-MAIN CONTRACTORS,THE BRIDGEWATER CANAL CO LTD,98373,877.97
DEPARTMENT OF ENERGY AND CLIMATE CHANGE,THE COAL AUTHORITY,03/02/2016,CONTRACTORS AND CLAIM COSTS,HATFIELD COLLIERY,CONSTRUCTION-MAIN CONTRACTORS,JEREMY BENN ASSOCIATES LTD,98374,5251.25
DEPARTMENT OF ENERGY AND CLIMATE CHANGE,THE COAL AUTHORITY,31/01/2016,FARES - AIR,CHIEF EXECUTIVE,TRAVEL&EVENTS-AIR,REDFERN TRAVEL LTD,98378,189.72
DEPARTMENT OF ENERGY AND CLIMATE CHANGE,THE COAL AUTHORITY,31/01/2016,FARES - AIR,MINING INFORMATION COMMERCIAL,TRAVEL&EVENTS-AIR,REDFERN TRAVEL LTD,98378,189.72
DEPARTMENT OF ENERGY AND CLIMATE CHANGE,THE COAL AUTHORITY,31/01/2016,FARES - RAIL,BUSINESS DEVELOPMENT,TRAVEL&EVENTS-RAIL,REDFERN TRAVEL LTD,98378,125.45
DEPARTMENT OF ENERGY AND CLIMATE CHANGE,THE COAL AUTHORITY,31/01/2016,FARES - RAIL,CHIEF EXECUTIVE,TRAVEL&EVENTS-RAIL,REDFERN TRAVEL LTD,98378,506.12
DEPARTMENT OF ENERGY AND CLIMATE CHANGE,THE COAL AUTHORITY,31/01/2016,FARES - RAIL,CORPORATE MANAGEMENT,TRAVEL&EVENTS-RAIL,REDFERN TRAVEL LTD,98378,282.20
DEPARTMENT OF ENERGY AND CLIMATE CHANGE,THE COAL AUTHORITY,31/01/2016,FARES - RAIL,CORPORATE PROJECT OFFICE,TRAVEL&EVENTS-RAIL,REDFERN TRAVEL LTD,98378,46.20
DEPARTMENT OF ENERGY AND CLIMATE CHANGE,THE COAL AUTHORITY,31/01/2016,FARES - RAIL,ENVIRONMENT - ZERO COST PROG,TRAVEL&EVENTS-RAIL,REDFERN TRAVEL LTD,98378,153.67
DEPARTMENT OF ENERGY AND CLIMATE CHANGE,THE COAL AUTHORITY,31/01/2016,FARES - RAIL,FACILITIES MANAGEMENT,TRAVEL&EVENTS-RAIL,REDFERN TRAVEL LTD,98378,40.83
DEPARTMENT OF ENERGY AND CLIMATE CHANGE,THE COAL AUTHORITY,31/01/2016,FARES - RAIL,ICT-TECH SUPPORT&SYSTM DVLPMNT,TRAVEL&EVENTS-RAIL,REDFERN TRAVEL LTD,98378,459.57
DEPARTMENT OF ENERGY AND CLIMATE CHANGE,THE COAL AUTHORITY,31/01/2016,FARES - RAIL,LEGAL,TRAVEL&EVENTS-RAIL,REDFERN TRAVEL LTD,98378,251.92
DEPARTMENT OF ENERGY AND CLIMATE CHANGE,THE COAL AUTHORITY,31/01/2016,FARES - RAIL,MINE WATER TREATMENT SCHEMES,TRAVEL&EVENTS-RAIL,REDFERN TRAVEL LTD,98378,840.46
DEPARTMENT OF ENERGY AND CLIMATE CHANGE,THE COAL AUTHORITY,31/01/2016,FARES - RAIL,MINING INFORMATION COMMERCIAL,TRAVEL&EVENTS-RAIL,REDFERN TRAVEL LTD,98378,43.19
DEPARTMENT OF ENERGY AND CLIMATE CHANGE,THE COAL AUTHORITY,31/01/2016,FARES - RAIL,SURFACE HAZARDS,TRAVEL&EVENTS-RAIL,REDFERN TRAVEL LTD,98378,423.75
DEPARTMENT OF ENERGY AND CLIMATE CHANGE,THE COAL AUTHORITY,31/01/2016,FARES - RAIL,ICT -  SERVICE MANAGEMENT,TRAVEL&EVENTS-RAIL,REDFERN TRAVEL LTD,98379,-175.03
DEPARTMENT OF ENERGY AND CLIMATE CHANGE,THE COAL AUTHORITY,31/01/2016,HOTEL ACCOMMODATION,BOARD,TRAVEL&EVENTS-HOTELS,REDFERN TRAVEL LTD,98380,250.21
DEPARTMENT OF ENERGY AND CLIMATE CHANGE,THE COAL AUTHORITY,31/01/2016,HOTEL ACCOMMODATION,CHIEF EXECUTIVE,TRAVEL&EVENTS-HOTELS,REDFERN TRAVEL LTD,98380,76.76
DEPARTMENT OF ENERGY AND CLIMATE CHANGE,THE COAL AUTHORITY,31/01/2016,HOTEL ACCOMMODATION,ENVIRONMENT - ZERO COST PROG,TRAVEL&EVENTS-HOTELS,REDFERN TRAVEL LTD,98380,88.17
DEPARTMENT OF ENERGY AND CLIMATE CHANGE,THE COAL AUTHORITY,31/01/2016,HOTEL ACCOMMODATION,ICT -  SERVICE MANAGEMENT,TRAVEL&EVENTS-HOTELS,REDFERN TRAVEL LTD,98380,765.74
DEPARTMENT OF ENERGY AND CLIMATE CHANGE,THE COAL AUTHORITY,31/01/2016,HOTEL ACCOMMODATION,ICT-BUSINESS ANALYSIS&DESIGN,TRAVEL&EVENTS-HOTELS,REDFERN TRAVEL LTD,98380,1.17
DEPARTMENT OF ENERGY AND CLIMATE CHANGE,THE COAL AUTHORITY,31/01/2016,HOTEL ACCOMMODATION,MINE WATER TREATMENT SCHEMES,TRAVEL&EVENTS-HOTELS,REDFERN TRAVEL LTD,98380,432.21
DEPARTMENT OF ENERGY AND CLIMATE CHANGE,THE COAL AUTHORITY,31/01/2016,HOTEL ACCOMMODATION,MINE WATER TREATMENT SCHEMES,TRAVEL&EVENTS-HOTELS,REDFERN TRAVEL LTD,98380,109.39
DEPARTMENT OF ENERGY AND CLIMATE CHANGE,THE COAL AUTHORITY,31/01/2016,HOTEL ACCOMMODATION,MINING INFORMATION COMMERCIAL,TRAVEL&EVENTS-HOTELS,REDFERN TRAVEL LTD,98380,76.76
DEPARTMENT OF ENERGY AND CLIMATE CHANGE,THE COAL AUTHORITY,31/01/2016,HOTEL ACCOMMODATION,MINING INFORMATION WHOLESALE,TRAVEL&EVENTS-HOTELS,REDFERN TRAVEL LTD,98380,195.37
DEPARTMENT OF ENERGY AND CLIMATE CHANGE,THE COAL AUTHORITY,31/01/2016,HOTEL ACCOMMODATION,PERMISSIONS,TRAVEL&EVENTS-HOTELS,REDFERN TRAVEL LTD,98380,71.17
DEPARTMENT OF ENERGY AND CLIMATE CHANGE,THE COAL AUTHORITY,31/01/2016,HOTEL ACCOMMODATION,SHE,TRAVEL&EVENTS-HOTELS,REDFERN TRAVEL LTD,98380,141.17
DEPARTMENT OF ENERGY AND CLIMATE CHANGE,THE COAL AUTHORITY,31/01/2016,HOTEL ACCOMMODATION,SURFACE HAZARDS,TRAVEL&EVENTS-HOTELS,REDFERN TRAVEL LTD,98380,490.92
DEPARTMENT OF ENERGY AND CLIMATE CHANGE,THE COAL AUTHORITY,05/02/2016,LEGAL COSTS,HISTORIC LIABILITIES,PROF SER-LEGAL SERVICES,WALKER MORRIS,98381,2400.00
DEPARTMENT OF ENERGY AND CLIMATE CHANGE,THE COAL AUTHORITY,05/02/2016,CONTRACTORS AND CLAIM COSTS,SUBSIDENCE,PROF SER-OPERATIONAL SERVICES,MRS J NESS,98382,240.00
DEPARTMENT OF ENERGY AND CLIMATE CHANGE,THE COAL AUTHORITY,05/02/2016,CONTRACTORS AND CLAIM COSTS,DAW MILL,PROF SER-OPERATIONAL SERVICES,G H SPEIRS,98383,240.00
DEPARTMENT OF ENERGY AND CLIMATE CHANGE,THE COAL AUTHORITY,05/02/2016,M/W RENTS PAYABLE,MINE WATER TREATMENT SCHEMES,FACILITIES-BUILDING MANAGEMENT,ALLIANCE FAMILY FOUNDATION LTD,98384,196.18
DEPARTMENT OF ENERGY AND CLIMATE CHANGE,THE COAL AUTHORITY,05/02/2016,CONTRACTORS AND CLAIM COSTS,SURFACE HAZARDS,PROF SER-OPERATIONAL SERVICES,GILMORE ESTATES LTD,98385,50.00
DEPARTMENT OF ENERGY AND CLIMATE CHANGE,THE COAL AUTHORITY,04/02/2016,LEGAL COSTS,HUMAN RESRCES&ORGNSTL DEVLPMNT,PROF SER-LEGAL SERVICES,DLA PIPER UK LLP,98386,528.00
DEPARTMENT OF ENERGY AND CLIMATE CHANGE,THE COAL AUTHORITY,04/02/2016,LEGAL COSTS,LEGAL,PROF SER-LEGAL SERVICES,DLA PIPER UK LLP,98386,216.00
DEPARTMENT OF ENERGY AND CLIMATE CHANGE,THE COAL AUTHORITY,04/02/2016,LEGAL COSTS,MINE WATER TREATMENT SCHEMES,PROF SER-LEGAL SERVICES,DLA PIPER UK LLP,98386,772.15
DEPARTMENT OF ENERGY AND CLIMATE CHANGE,THE COAL AUTHORITY,04/02/2016,LEGAL COSTS,MINING INFORMATION COMMERCIAL,PROF SER-LEGAL SERVICES,DLA PIPER UK LLP,98386,4670.00
DEPARTMENT OF ENERGY AND CLIMATE CHANGE,THE COAL AUTHORITY,04/02/2016,LEGAL COSTS,PROPERTY MANAGEMENT & SALES,PROF SER-LEGAL SERVICES,DLA PIPER UK LLP,98386,104.00
DEPARTMENT OF ENERGY AND CLIMATE CHANGE,THE COAL AUTHORITY,04/02/2016,LEGAL COSTS,SUBSIDENCE,PROF SER-LEGAL SERVICES,DLA PIPER UK LLP,98386,25949.60
DEPARTMENT OF ENERGY AND CLIMATE CHANGE,THE COAL AUTHORITY,28/01/2016,LEGAL COSTS,MINE WATER TREATMENT SCHEMES,PROF SER-LEGAL SERVICES,WALKER MORRIS,98387,695.87
DEPARTMENT OF ENERGY AND CLIMATE CHANGE,THE COAL AUTHORITY,28/01/2016,LEGAL COSTS,MINE WATER TREATMENT SCHEMES,PROF SER-LEGAL SERVICES,WALKER MORRIS,98387,6357.39
DEPARTMENT OF ENERGY AND CLIMATE CHANGE,THE COAL AUTHORITY,01/02/2016,OUTSOURCED CLEANING STAFF,FACILITIES MANAGEMENT,FACILITIES - CLEANING,FLOORBRITE CLEANING & FACILITIES SERVICES,98388,3604.52
DEPARTMENT OF ENERGY AND CLIMATE CHANGE,THE COAL AUTHORITY,05/02/2016,CONTRACT HIRE VEHICLES,FACILITIES MANAGEMENT,VEHICLES-VEHICLE MAINTENANCE,PENTAGON,98389,21.15
DEPARTMENT OF ENERGY AND CLIMATE CHANGE,THE COAL AUTHORITY,29/01/2016,OTHER BANK CHARGES,FINANCE,PROF SER FNCL-BANKING&INVSTMNT,NATIONAL WESTMINSTER BANK PLC,98390,64.45
DEPARTMENT OF ENERGY AND CLIMATE CHANGE,THE COAL AUTHORITY,05/02/2016,BUSINESS ENTERTAINMENT,BUSINESS DEVELOPMENT,FACILITIES - FOOD,IRRCVRBLE VAT CLIENT ENTRTMNT,98391,-1.02
DEPARTMENT OF ENERGY AND CLIMATE CHANGE,THE COAL AUTHORITY,05/02/2016,MEETINGS,FACILITIES MANAGEMENT,FACILITIES - FOOD,IRRCVRBLE VAT CLIENT ENTRTMNT,98391,-30.14
DEPARTMENT OF ENERGY AND CLIMATE CHANGE,THE COAL AUTHORITY,31/01/2016,APPRENTICE COSTS,CORPORATE MANAGEMENT,PROF SER TMP STFF-TEMP WRKERS,FUTURES ADVICE SKILLS & EMP,98392,1137.19
DEPARTMENT OF ENERGY AND CLIMATE CHANGE,THE COAL AUTHORITY,29/01/2016,SAFETY CLOTHING,SHE,OPRTNL GOODS&SERV-CLOTHING,ARCO LIMITED,98393,10.28
DEPARTMENT OF ENERGY AND CLIMATE CHANGE,THE COAL AUTHORITY,30/01/2016,STATIONERY,FACILITIES MANAGEMENT,OFFICE SOLUTIONS-OFFCE SPPLIES,BANNER BUSINESS SOLUTIONS,98394,7.40
DEPARTMENT OF ENERGY AND CLIMATE CHANGE,THE COAL AUTHORITY,30/01/2016,STATIONERY,FACILITIES MANAGEMENT,OFFICE SOLUTIONS-OFFCE SPPLIES,BANNER BUSINESS SOLUTIONS,98396,13.24
DEPARTMENT OF ENERGY AND CLIMATE CHANGE,THE COAL AUTHORITY,01/02/2016,SAFETY CLOTHING,SHE,OPRTNL GOODS&SERV-CLOTHING,ARCO LIMITED,98397,75.63
DEPARTMENT OF ENERGY AND CLIMATE CHANGE,THE COAL AUTHORITY,01/02/2016,SAFETY CLOTHING,SHE,OPRTNL GOODS&SERV-CLOTHING,ARCO LIMITED,98398,53.57
DEPARTMENT OF ENERGY AND CLIMATE CHANGE,THE COAL AUTHORITY,31/01/2016,PAYMENTS TO AGENCIES FOR TEMPS,SURFACE HAZARDS,PROF SER TMP STFF-SPCLST CNTRT,ARCO LIMITED,98399,1113.84
DEPARTMENT OF ENERGY AND CLIMATE CHANGE,THE COAL AUTHORITY,31/01/2016,PUBLIC RELATIONS,CORPORATE MANAGEMENT,MARKETING & MEDIA-PROMOTION,GORKANA GROUP LTD,98400,296.31
DEPARTMENT OF ENERGY AND CLIMATE CHANGE,THE COAL AUTHORITY,31/01/2016,PUBLIC RELATIONS,CORPORATE MANAGEMENT,MARKETING & MEDIA-PROMOTION,GORKANA GROUP LTD,98401,566.34
DEPARTMENT OF ENERGY AND CLIMATE CHANGE,THE COAL AUTHORITY,02/02/2016,PAYMENTS TO AGENCIES FOR TEMPS,FACILITIES MANAGEMENT,PROF SER TMP STFF-TEMP WRKERS,THORN BAKER LIMITED,98402,294.00
DEPARTMENT OF ENERGY AND CLIMATE CHANGE,THE COAL AUTHORITY,05/02/2016,LEGAL COSTS,HISTORIC LIABILITIES,PROF SER-OPERATIONAL SERVICES,LAND REGISTRY,98403,33.00
DEPARTMENT OF ENERGY AND CLIMATE CHANGE,THE COAL AUTHORITY,05/02/2016,LEGAL COSTS,LEGAL,PROF SER-OPERATIONAL SERVICES,LAND REGISTRY,98403,3.00
DEPARTMENT OF ENERGY AND CLIMATE CHANGE,THE COAL AUTHORITY,05/02/2016,LEGAL COSTS,SURFACE HAZARDS,PROF SER-OPERATIONAL SERVICES,LAND REGISTRY,98403,12.00
DEPARTMENT OF ENERGY AND CLIMATE CHANGE,THE COAL AUTHORITY,15/01/2016,LEGAL COSTS,HISTORIC LIABILITIES,PROF SER-OPERATIONAL SERVICES,LAND REGISTRY,98404,6.00
DEPARTMENT OF ENERGY AND CLIMATE CHANGE,THE COAL AUTHORITY,15/01/2016,LEGAL COSTS,LEGAL,PROF SER-OPERATIONAL SERVICES,LAND REGISTRY,98404,3.00
DEPARTMENT OF ENERGY AND CLIMATE CHANGE,THE COAL AUTHORITY,31/01/2016,CONTRACT HIRE VEHICLES,FACILITIES MANAGEMENT,VEHICLES-VEHICLE MAINTENANCE,AUTO SMART VALETING LTD,98405,378.00
DEPARTMENT OF ENERGY AND CLIMATE CHANGE,THE COAL AUTHORITY,29/01/2016,M/W WATER CHARGES,MINE WATER TREATMENT SCHEMES,ENERGY&UTILITIES-WATER,NORTHUMBRIAN WATER LIMITED,98406,2327.56
DEPARTMENT OF ENERGY AND CLIMATE CHANGE,THE COAL AUTHORITY,26/01/2016,CNTRCTR & CLAIM CSTS-BRDGEWATR,SUBSIDENCE,CONSTRUCTION-MAIN CONTRACTORS,THE BRIDGEWATER CANAL CO LTD,98407,111188.65
DEPARTMENT OF ENERGY AND CLIMATE CHANGE,THE COAL AUTHORITY,08/02/2016,CONTRACTORS AND CLAIM COSTS,SURFACE HAZARDS,ENERGY&UTILITIES-ELECTRICITY,Petty Cash PS&S gas meter,98415,40.00
DEPARTMENT OF ENERGY AND CLIMATE CHANGE,THE COAL AUTHORITY,08/02/2016,CONTRACTORS AND CLAIM COSTS,DAW MILL,"CONSTRUCTION-BLD,REPR&MAINTNCE",MRS MACDONALD,98416,338.00
DEPARTMENT OF ENERGY AND CLIMATE CHANGE,THE COAL AUTHORITY,08/02/2016,CONTRACTORS AND CLAIM COSTS,SUBSIDENCE,FACILITIES-ACCOMDTN SERVICES,IRENT,98417,1365.00
DEPARTMENT OF ENERGY AND CLIMATE CHANGE,THE COAL AUTHORITY,08/02/2016,CONTRACTORS AND CLAIM COSTS,SUBSIDENCE,FACILITIES-ACCOMDTN SERVICES,IRENT,98418,406.03
DEPARTMENT OF ENERGY AND CLIMATE CHANGE,THE COAL AUTHORITY,08/02/2016,CONTRACTORS AND CLAIM COSTS,SURFACE HAZARDS,PROF SER-OPERATIONAL SERVICES,SUNDERLAND CITY COUNCIL,98419,840.00
DEPARTMENT OF ENERGY AND CLIMATE CHANGE,THE COAL AUTHORITY,08/02/2016,CONTRACTORS AND CLAIM COSTS,SURFACE HAZARDS,"CONSTRUCTION-BLD,REPR&MAINTNCE",MR T WHITENSTALL,98420,40.00
DEPARTMENT OF ENERGY AND CLIMATE CHANGE,THE COAL AUTHORITY,31/01/2016,M/W LAND AGENTS (AQUISITIONS),DEFRA PROGRAMME,PROF SER TECH-ENGINEERING SER,MARK N CAREY LIMITED,98421,585.00
DEPARTMENT OF ENERGY AND CLIMATE CHANGE,THE COAL AUTHORITY,31/01/2016,M/W LAND AGENTS (AQUISITIONS),DEFRA PROGRAMME,PROF SER TECH-ENGINEERING SER,MARK N CAREY LIMITED,98422,1332.50
DEPARTMENT OF ENERGY AND CLIMATE CHANGE,THE COAL AUTHORITY,31/01/2016,M/W LAND AGENTS (AQUISITIONS),DEFRA PROGRAMME,PROF SER TECH-ENGINEERING SER,MARK N CAREY LIMITED,98423,565.50
DEPARTMENT OF ENERGY AND CLIMATE CHANGE,THE COAL AUTHORITY,02/02/2016,M/W TELECOMS & TELEMETRY,MINE WATER TREATMENT SCHEMES,ICT-TELECOMS,O2 (UK) LIMITED,98424,12.50
DEPARTMENT OF ENERGY AND CLIMATE CHANGE,THE COAL AUTHORITY,02/02/2016,M/W TELECOMS & TELEMETRY,MINE WATER TREATMENT SCHEMES,ICT-TELECOMS,O2 (UK) LIMITED,98425,12.50
DEPARTMENT OF ENERGY AND CLIMATE CHANGE,THE COAL AUTHORITY,02/02/2016,M/W TELECOMS & TELEMETRY,MINE WATER TREATMENT SCHEMES,ICT-TELECOMS,O2 (UK) LIMITED,98426,12.50
DEPARTMENT OF ENERGY AND CLIMATE CHANGE,THE COAL AUTHORITY,31/01/2016,M/W LAND AGENTS (AQUISITIONS),MINE WATER TREATMENT SCHEMES,PROF SER TECH-ENGINEERING SER,MARK N CAREY LIMITED,98427,162.50
DEPARTMENT OF ENERGY AND CLIMATE CHANGE,THE COAL AUTHORITY,08/02/2016,CONTRACTORS AND CLAIM COSTS,DAW MILL,"CONSTRUCTION-BLD,REPR&MAINTNCE",MR & MRS EVANS,98428,41650.00
DEPARTMENT OF ENERGY AND CLIMATE CHANGE,THE COAL AUTHORITY,03/02/2016,STATIONERY,FACILITIES MANAGEMENT,OFFICE SOLUTIONS-OFFCE SPPLIES,BANNER BUSINESS SOLUTIONS,98429,98.98
DEPARTMENT OF ENERGY AND CLIMATE CHANGE,THE COAL AUTHORITY,03/02/2016,SITE SERVICES,FACILITIES MANAGEMENT,WASTE MANAGEMENT-WSTE MNGT SER,BANNER BUSINESS SOLUTIONS,98430,36.00
DEPARTMENT OF ENERGY AND CLIMATE CHANGE,THE COAL AUTHORITY,02/02/2016,M/W POWER COSTS,MINE WATER TREATMENT SCHEMES,ENERGY&UTILITIES-ELECTRICITY,BRITISH GAS BUSINESS,98431,673.71
DEPARTMENT OF ENERGY AND CLIMATE CHANGE,THE COAL AUTHORITY,02/02/2016,M/W POWER COSTS,MINE WATER TREATMENT SCHEMES,ENERGY&UTILITIES-ELECTRICITY,BRITISH GAS BUSINESS,98432,632.68
DEPARTMENT OF ENERGY AND CLIMATE CHANGE,THE COAL AUTHORITY,03/02/2016,PROPERTY RATES PAYABLE,PROPERTY MANAGEMENT & SALES,ENERGY&UTILITIES-ELECTRICITY,BRITISH GAS BUSINESS,98433,40.00
DEPARTMENT OF ENERGY AND CLIMATE CHANGE,THE COAL AUTHORITY,31/01/2016,CURR YR ADD-INTNGBLE INFO TECH,BOSS PROGRAMME,ICT-SYSTEMS DELIVERY,SAPPHIRE SYSTEMS PLC,98434,3237.50
DEPARTMENT OF ENERGY AND CLIMATE CHANGE,THE COAL AUTHORITY,08/02/2016,CONTRACTORS AND CLAIM COSTS,SUBSIDENCE,PROF SER-OPERATIONAL SERVICES,MR P JENKINS,98435,450.00
DEPARTMENT OF ENERGY AND CLIMATE CHANGE,THE COAL AUTHORITY,03/02/2016,IT-APPLICATIONS MANAGEMENT,ICT-BUSINESS ANALYSIS&DESIGN,ICT-MAINTENANCE & SUPPORT,MAYTECH,98436,471.35
DEPARTMENT OF ENERGY AND CLIMATE CHANGE,THE COAL AUTHORITY,18/12/2015,IT-APPLICATIONS MANAGEMENT,ICT -  SERVICE MANAGEMENT,ICT-MAINTENANCE & SUPPORT,ADVANCED LEGAL SOLS LTD,98437,401.00
DEPARTMENT OF ENERGY AND CLIMATE CHANGE,THE COAL AUTHORITY,15/10/2015,MEETINGS,BOARD,TRAVEL&EVENTS-EVENT ORGNSTN,DOUBLETREE BY HILTON,98438,270.83
DEPARTMENT OF ENERGY AND CLIMATE CHANGE,THE COAL AUTHORITY,05/02/2016,SITE SERVICES,FACILITIES MANAGEMENT,FACILITIES-BUILDING MANAGEMENT,AQUAID (SOUTH YORKS),98439,1130.40
DEPARTMENT OF ENERGY AND CLIMATE CHANGE,THE COAL AUTHORITY,31/12/2015,MEETINGS,PROCUREMENT,TRAVEL&EVENTS-VEHICLE HIRE,RANSOMWOOD ESTATES LTD,98440,93.00
DEPARTMENT OF ENERGY AND CLIMATE CHANGE,THE COAL AUTHORITY,31/12/2015,MEETINGS,PROCUREMENT,FACILITIES - FOOD,RANSOMWOOD ESTATES LTD,98440,60.00
DEPARTMENT OF ENERGY AND CLIMATE CHANGE,THE COAL AUTHORITY,31/01/2016,CALL CHARGES,ICT -  SERVICE MANAGEMENT,ICT-TELECOMS,BRITISH TELECOMMUNICATIONS PLC,98441,142.60
DEPARTMENT OF ENERGY AND CLIMATE CHANGE,THE COAL AUTHORITY,31/01/2016,M/W CONTRCTR OPRNTL MTHLY MAIN,MINE WATER TREATMENT SCHEMES,CONSTRUCTION-MAIN CONTRACTORS,NATIONAL COAL MINING MUSEUM,98442,3420.00
DEPARTMENT OF ENERGY AND CLIMATE CHANGE,THE COAL AUTHORITY,31/01/2016,M/W CONTRCTR OPRNTL MTHLY MAIN,MINE WATER TREATMENT SCHEMES,CONSTRUCTION-MAIN CONTRACTORS,NATIONAL COAL MINING MUSEUM,98443,1259.13
DEPARTMENT OF ENERGY AND CLIMATE CHANGE,THE COAL AUTHORITY,04/02/2016,R&D-EXTERNAL COSTS,MINE WATER TREATMENT SCHEMES,PROF SER TECH-ENGINEERING SER,DURHAM UNIVERSITY,98444,15517.00
DEPARTMENT OF ENERGY AND CLIMATE CHANGE,THE COAL AUTHORITY,29/01/2016,M/W SCOPING/FEASIBILITY/CONCEP,DEFRA PROGRAMME,PROF SER TECH-ENGINEERING SER,AMEC ENV & INFRASTRUCTURE UK L,98445,4337.59
DEPARTMENT OF ENERGY AND CLIMATE CHANGE,THE COAL AUTHORITY,05/02/2016,PROPERTY /TIP MAINTENANCE,PROPERTY MANAGEMENT & SALES,PROF SER-ENVIRONMENTAL SRVICES,MARSHALL FARMING LIMITED,98446,345.00
DEPARTMENT OF ENERGY AND CLIMATE CHANGE,THE COAL AUTHORITY,04/02/2016,IT-APPLICATIONS MANAGEMENT,HISTORIC LIABILITIES,ICT-SYSTEMS DELIVERY,SCISYS UK LTD,98447,218.50
DEPARTMENT OF ENERGY AND CLIMATE CHANGE,THE COAL AUTHORITY,04/02/2016,IT-APPLICATIONS MANAGEMENT,MINE ENTRY INSPECTIONS,ICT-SYSTEMS DELIVERY,SCISYS UK LTD,98447,437.00
DEPARTMENT OF ENERGY AND CLIMATE CHANGE,THE COAL AUTHORITY,04/02/2016,IT-APPLICATIONS MANAGEMENT,MINING INFORMATION COMMERCIAL,ICT-SYSTEMS DELIVERY,SCISYS UK LTD,98447,1092.50
DEPARTMENT OF ENERGY AND CLIMATE CHANGE,THE COAL AUTHORITY,04/02/2016,IT-APPLICATIONS MANAGEMENT,MINING INFORMATION WHOLESALE,ICT-SYSTEMS DELIVERY,SCISYS UK LTD,98447,1092.50
DEPARTMENT OF ENERGY AND CLIMATE CHANGE,THE COAL AUTHORITY,04/02/2016,IT-APPLICATIONS MANAGEMENT,PLANNING & LOCAL AUTH LIAISON,ICT-SYSTEMS DELIVERY,SCISYS UK LTD,98447,218.50
DEPARTMENT OF ENERGY AND CLIMATE CHANGE,THE COAL AUTHORITY,04/02/2016,IT-APPLICATIONS MANAGEMENT,SURFACE HAZARDS,ICT-SYSTEMS DELIVERY,SCISYS UK LTD,98447,1311.00
DEPARTMENT OF ENERGY AND CLIMATE CHANGE,THE COAL AUTHORITY,18/12/2015,COURIER SERVICES,CUSTOMER SERVICES,OFFICE SOLUTIONS-POST&COURIER,TNT UK LIMITED,98448,49.65
DEPARTMENT OF ENERGY AND CLIMATE CHANGE,THE COAL AUTHORITY,08/01/2016,COURIER SERVICES,CUSTOMER SERVICES,OFFICE SOLUTIONS-POST&COURIER,TNT UK LIMITED,98449,343.85
DEPARTMENT OF ENERGY AND CLIMATE CHANGE,THE COAL AUTHORITY,15/01/2016,COURIER SERVICES,CUSTOMER SERVICES,OFFICE SOLUTIONS-POST&COURIER,TNT UK LIMITED,98450,100.15
DEPARTMENT OF ENERGY AND CLIMATE CHANGE,THE COAL AUTHORITY,29/01/2016,COURIER SERVICES,CUSTOMER SERVICES,OFFICE SOLUTIONS-POST&COURIER,TNT UK LIMITED,98451,139.01
DEPARTMENT OF ENERGY AND CLIMATE CHANGE,THE COAL AUTHORITY,08/02/2016,CONTRACT HIRE VEHICLES,FACILITIES MANAGEMENT,VEHICLES-VEHICLE MAINTENANCE,PENTAGON,98452,21.15
DEPARTMENT OF ENERGY AND CLIMATE CHANGE,THE COAL AUTHORITY,07/02/2016,ELECTRICITY,FACILITIES MANAGEMENT,ENERGY&UTILITIES-ELECTRICITY,EDF ENERGY,98457,13392.04
DEPARTMENT OF ENERGY AND CLIMATE CHANGE,THE COAL AUTHORITY,07/02/2016,M/W POWER COSTS,DEFRA - WHEAL JANE,ENERGY&UTILITIES-ELECTRICITY,EDF ENERGY,98457,51844.13
DEPARTMENT OF ENERGY AND CLIMATE CHANGE,THE COAL AUTHORITY,07/02/2016,M/W POWER COSTS,DEFRA PROGRAMME,ENERGY&UTILITIES-ELECTRICITY,EDF ENERGY,98457,2262.46
DEPARTMENT OF ENERGY AND CLIMATE CHANGE,THE COAL AUTHORITY,07/02/2016,M/W POWER COSTS,MINE WATER TREATMENT SCHEMES,ENERGY&UTILITIES-ELECTRICITY,EDF ENERGY,98457,1034.48
DEPARTMENT OF ENERGY AND CLIMATE CHANGE,THE COAL AUTHORITY,07/02/2016,M/W POWER COSTS,MINE WATER TREATMENT SCHEMES,ENERGY&UTILITIES-ELECTRICITY,EDF ENERGY,98457,4239.17
DEPARTMENT OF ENERGY AND CLIMATE CHANGE,THE COAL AUTHORITY,07/02/2016,M/W POWER COSTS,MINE WATER TREATMENT SCHEMES,ENERGY&UTILITIES-ELECTRICITY,EDF ENERGY,98457,5141.77
DEPARTMENT OF ENERGY AND CLIMATE CHANGE,THE COAL AUTHORITY,07/02/2016,M/W POWER COSTS,MINE WATER TREATMENT SCHEMES,ENERGY&UTILITIES-ELECTRICITY,EDF ENERGY,98457,9771.42
DEPARTMENT OF ENERGY AND CLIMATE CHANGE,THE COAL AUTHORITY,07/02/2016,M/W POWER COSTS,MINE WATER TREATMENT SCHEMES,ENERGY&UTILITIES-ELECTRICITY,EDF ENERGY,98457,3247.62
DEPARTMENT OF ENERGY AND CLIMATE CHANGE,THE COAL AUTHORITY,07/02/2016,M/W POWER COSTS,MINE WATER TREATMENT SCHEMES,ENERGY&UTILITIES-ELECTRICITY,EDF ENERGY,98457,14813.79
DEPARTMENT OF ENERGY AND CLIMATE CHANGE,THE COAL AUTHORITY,07/02/2016,M/W POWER COSTS,MINE WATER TREATMENT SCHEMES,ENERGY&UTILITIES-ELECTRICITY,EDF ENERGY,98457,6323.56
DEPARTMENT OF ENERGY AND CLIMATE CHANGE,THE COAL AUTHORITY,07/02/2016,M/W POWER COSTS,MINE WATER TREATMENT SCHEMES,ENERGY&UTILITIES-ELECTRICITY,EDF ENERGY,98457,3986.19
DEPARTMENT OF ENERGY AND CLIMATE CHANGE,THE COAL AUTHORITY,07/02/2016,M/W POWER COSTS,MINE WATER TREATMENT SCHEMES,ENERGY&UTILITIES-ELECTRICITY,EDF ENERGY,98457,8788.85
DEPARTMENT OF ENERGY AND CLIMATE CHANGE,THE COAL AUTHORITY,07/02/2016,M/W POWER COSTS,MINE WATER TREATMENT SCHEMES,ENERGY&UTILITIES-ELECTRICITY,EDF ENERGY,98457,14505.31
DEPARTMENT OF ENERGY AND CLIMATE CHANGE,THE COAL AUTHORITY,07/02/2016,M/W POWER COSTS,MINE WATER TREATMENT SCHEMES,ENERGY&UTILITIES-ELECTRICITY,EDF ENERGY,98457,10294.99
DEPARTMENT OF ENERGY AND CLIMATE CHANGE,THE COAL AUTHORITY,07/02/2016,M/W POWER COSTS,MINE WATER TREATMENT SCHEMES,ENERGY&UTILITIES-ELECTRICITY,EDF ENERGY,98457,4375.59
DEPARTMENT OF ENERGY AND CLIMATE CHANGE,THE COAL AUTHORITY,07/02/2016,M/W POWER COSTS,MINE WATER TREATMENT SCHEMES,ENERGY&UTILITIES-ELECTRICITY,EDF ENERGY,98457,11233.83
DEPARTMENT OF ENERGY AND CLIMATE CHANGE,THE COAL AUTHORITY,07/02/2016,M/W POWER COSTS,MINE WATER TREATMENT SCHEMES,ENERGY&UTILITIES-ELECTRICITY,EDF ENERGY,98457,14069.58
DEPARTMENT OF ENERGY AND CLIMATE CHANGE,THE COAL AUTHORITY,07/02/2016,SUB PUMP STTN MAINTENANCE-PWER,SUBSIDENCE PUMPING STATIONS,ENERGY&UTILITIES-ELECTRICITY,EDF ENERGY,98457,2516.18
DEPARTMENT OF ENERGY AND CLIMATE CHANGE,THE COAL AUTHORITY,07/02/2016,SUB PUMP STTN MAINTENANCE-PWER,SUBSIDENCE PUMPING STATIONS,ENERGY&UTILITIES-ELECTRICITY,EDF ENERGY,98457,2213.80
DEPARTMENT OF ENERGY AND CLIMATE CHANGE,THE COAL AUTHORITY,07/02/2016,SUB PUMP STTN MAINTENANCE-PWER,SUBSIDENCE PUMPING STATIONS,ENERGY&UTILITIES-ELECTRICITY,EDF ENERGY,98457,2642.43
DEPARTMENT OF ENERGY AND CLIMATE CHANGE,THE COAL AUTHORITY,07/02/2016,SUB PUMP STTN MAINTENANCE-PWER,SUBSIDENCE PUMPING STATIONS,ENERGY&UTILITIES-ELECTRICITY,EDF ENERGY,98457,675.06
DEPARTMENT OF ENERGY AND CLIMATE CHANGE,THE COAL AUTHORITY,07/02/2016,M/W POWER COSTS,MINE WATER TREATMENT SCHEMES,ENERGY&UTILITIES-ELECTRICITY,EDF ENERGY,98458,-1093.57
DEPARTMENT OF ENERGY AND CLIMATE CHANGE,THE COAL AUTHORITY,31/12/2015,IT-INFRASTRUCTURE MANAGEMENT,ICT-BUSINESS ANALYSIS&DESIGN,ICT-MAINTENANCE & SUPPORT,TRUSTED BUSINESS INTELLIGENCE,98473,5961.67
DEPARTMENT OF ENERGY AND CLIMATE CHANGE,THE COAL AUTHORITY,04/02/2016,STATIONERY,FACILITIES MANAGEMENT,OFFICE SOLUTIONS-OFFCE SPPLIES,BANNER BUSINESS SOLUTIONS,98474,30.60
DEPARTMENT OF ENERGY AND CLIMATE CHANGE,THE COAL AUTHORITY,08/02/2016,CONTRACT HIRE VEHICLES,FACILITIES MANAGEMENT,VEHICLES-VEHICLE MAINTENANCE,PENTAGON,98475,21.15
DEPARTMENT OF ENERGY AND CLIMATE CHANGE,THE COAL AUTHORITY,31/01/2016,CURR YR ADD-INTNGBLE INFO TECH,BOSS PROGRAMME,ICT-SYSTEMS DELIVERY,SAPPHIRE SYSTEMS PLC,98476,1480.00
DEPARTMENT OF ENERGY AND CLIMATE CHANGE,THE COAL AUTHORITY,08/02/2016,IT-APPLICATIONS MANAGEMENT,FINANCE,ICT-MAINTENANCE & SUPPORT,KONTROLLA,98477,2142.00
DEPARTMENT OF ENERGY AND CLIMATE CHANGE,THE COAL AUTHORITY,24/12/2015,PROPERTY MANAGEMENT CONSTLNTS,PROPERTY MANAGEMENT & SALES,PROF SER-LEGAL SERVICES,VALUATION OFFICE AGENCY,98479,9134.78
DEPARTMENT OF ENERGY AND CLIMATE CHANGE,THE COAL AUTHORITY,29/12/2015,SAFETY CLOTHING,SHE,OPRTNL GOODS&SERV-CLOTHING,ARCO LIMITED,98480,51.18
DEPARTMENT OF ENERGY AND CLIMATE CHANGE,THE COAL AUTHORITY,29/12/2015,SAFETY CLOTHING,SHE,OPRTNL GOODS&SERV-CLOTHING,ARCO LIMITED,98481,32.58
DEPARTMENT OF ENERGY AND CLIMATE CHANGE,THE COAL AUTHORITY,10/02/2016,CONTRACTORS AND CLAIM COSTS,SUBSIDENCE,PROF SER-OPERATIONAL SERVICES,ROBERT THOMAS FARMS,98482,265.33
DEPARTMENT OF ENERGY AND CLIMATE CHANGE,THE COAL AUTHORITY,03/02/2016,LEGAL COSTS,LICENSING,PROF SER-LEGAL SERVICES,ANDERSON STRATHERN,98483,442.00
DEPARTMENT OF ENERGY AND CLIMATE CHANGE,THE COAL AUTHORITY,03/02/2016,LEGAL COSTS,MINE WATER TREATMENT SCHEMES,PROF SER-LEGAL SERVICES,ANDERSON STRATHERN,98483,348.00
DEPARTMENT OF ENERGY AND CLIMATE CHANGE,THE COAL AUTHORITY,03/02/2016,LEGAL COSTS,PROPERTY MANAGEMENT & SALES,PROF SER-LEGAL SERVICES,ANDERSON STRATHERN,98483,364.00
DEPARTMENT OF ENERGY AND CLIMATE CHANGE,THE COAL AUTHORITY,03/02/2016,LEGAL FEES - SALES,PROPERTY MANAGEMENT & SALES,PROF SER-LEGAL SERVICES,ANDERSON STRATHERN,98483,129.00
DEPARTMENT OF ENERGY AND CLIMATE CHANGE,THE COAL AUTHORITY,08/02/2016,CLEANING MATERIALS,FACILITIES MANAGEMENT,FACILITIES - CLEANING,FLOORBRITE CLEANING & FACILITIES SERVICES,98485,422.16
DEPARTMENT OF ENERGY AND CLIMATE CHANGE,THE COAL AUTHORITY,09/02/2016,CENTRAL TRAINING BUDGET,HUMAN RESRCES&ORGNSTL DEVLPMNT,PROF SER LRNG&DEV-STAFF TRNING,THE GAP PARTNERSHIP LTD,98486,13775.00
DEPARTMENT OF ENERGY AND CLIMATE CHANGE,THE COAL AUTHORITY,06/02/2016,STATIONERY,FACILITIES MANAGEMENT,OFFICE SOLUTIONS-OFFCE SPPLIES,BANNER BUSINESS SOLUTIONS,98487,8.91
DEPARTMENT OF ENERGY AND CLIMATE CHANGE,THE COAL AUTHORITY,05/02/2016,CONTRACTORS AND CLAIM COSTS,SUBSIDENCE,CONSTRUCTION-CNSTRN SER PROVDR,PMC SURVEYS,98488,9976.51
DEPARTMENT OF ENERGY AND CLIMATE CHANGE,THE COAL AUTHORITY,05/02/2016,CONTRACTORS AND CLAIM COSTS,SUBSIDENCE,CONSTRUCTION-CNSTRN SER PROVDR,PMC SURVEYS,98489,6981.60
DEPARTMENT OF ENERGY AND CLIMATE CHANGE,THE COAL AUTHORITY,05/02/2016,CONTRACTORS AND CLAIM COSTS,SUBSIDENCE,CONSTRUCTION-CNSTRN SER PROVDR,PMC SURVEYS,98490,7162.41
DEPARTMENT OF ENERGY AND CLIMATE CHANGE,THE COAL AUTHORITY,09/02/2016,CNTRCTR & CLAIM CSTS-BRDGEWATR,SUBSIDENCE,CONSTRUCTION-MAIN CONTRACTORS,THE BRIDGEWATER CANAL CO LTD,98491,10105.00
DEPARTMENT OF ENERGY AND CLIMATE CHANGE,THE COAL AUTHORITY,08/02/2016,CONTRACTORS AND CLAIM COSTS,SURFACE HAZARDS,CONSTRUCTION-MAIN CONTRACTORS,DSI DRILLTEK LTD,98492,9875.00
DEPARTMENT OF ENERGY AND CLIMATE CHANGE,THE COAL AUTHORITY,01/02/2016,COMMISSION CHARGES-E-COMMERCE,ENVIRONMENT -OTHER COMMRCL PRJ,PROF SER FNCL-BANKING&INVSTMNT,WORLDPAY,98493,5.86
DEPARTMENT OF ENERGY AND CLIMATE CHANGE,THE COAL AUTHORITY,01/02/2016,COMMISSION CHARGES-E-COMMERCE,MINING INFORMATION COMMERCIAL,PROF SER FNCL-BANKING&INVSTMNT,WORLDPAY,98493,1008.52
DEPARTMENT OF ENERGY AND CLIMATE CHANGE,THE COAL AUTHORITY,01/02/2016,COMMISSION CHARGES-E-COMMERCE,PERMISSIONS,PROF SER FNCL-BANKING&INVSTMNT,WORLDPAY,98493,687.34
DEPARTMENT OF ENERGY AND CLIMATE CHANGE,THE COAL AUTHORITY,01/02/2016,COMMISSION CHARGES-E-COMMERCE,RECORDS STORAGE,PROF SER FNCL-BANKING&INVSTMNT,WORLDPAY,98493,20.27
DEPARTMENT OF ENERGY AND CLIMATE CHANGE,THE COAL AUTHORITY,10/02/2016,DAMP PROOF SURVEY FEES,DAMPPROOF/TIMBER TREATMENT,"CONSTRUCTION-BLD,REPR&MAINTNCE",PRESERVATION TREATMENTS SURVEY LIMITED,98494,120.00
DEPARTMENT OF ENERGY AND CLIMATE CHANGE,THE COAL AUTHORITY,09/02/2016,CURR YR ADDNS MINEWATER SCHEME,MINE WATER TREATMENT SCHEMES,ENERGY&UTILITIES-ELECTRICITY,WESTERN POWER DISTRIBUTION,98495,67858.32
DEPARTMENT OF ENERGY AND CLIMATE CHANGE,THE COAL AUTHORITY,09/02/2016,CONSULTANTS-INVESTIGATIONS,MINE WATER TREATMENT SCHEMES,PROF SER TECH-ENGINEERING SER,MOTT MACDONALD LTD,98496,1891.80
DEPARTMENT OF ENERGY AND CLIMATE CHANGE,THE COAL AUTHORITY,31/01/2016,M/W LAND AGENTS (AQUISITIONS),DEFRA PROGRAMME,PROF SER TECH-ENGINEERING SER,MARK N CAREY LIMITED,98497,390.00
DEPARTMENT OF ENERGY AND CLIMATE CHANGE,THE COAL AUTHORITY,05/02/2016,WATER SAMPLING - OPERATIONAL,MINE WATER TREATMENT SCHEMES,PROF SER TECH-FORENSIC/LAB SER,ENVIRONMENT AGENCY,98498,2914.00
DEPARTMENT OF ENERGY AND CLIMATE CHANGE,THE COAL AUTHORITY,21/01/2016,MONITORING & FLOW MEASUREMENT,DEFRA - WHEAL JANE,PROF SER-ENVIRONMENTAL SRVICES,ITMSOIL MONITORING LTD,98499,1930.00
DEPARTMENT OF ENERGY AND CLIMATE CHANGE,THE COAL AUTHORITY,02/02/2016,M/W POWER COSTS,MINE WATER TREATMENT SCHEMES,ENERGY&UTILITIES-ELECTRICITY,BRITISH GAS BUSINESS,98501,-692.43
DEPARTMENT OF ENERGY AND CLIMATE CHANGE,THE COAL AUTHORITY,02/02/2016,SUB PUMP STTN MAINTENANCE-PWER,MINE WATER TREATMENT SCHEMES,ENERGY&UTILITIES-ELECTRICITY,BRITISH GAS BUSINESS,98501,-68.43
DEPARTMENT OF ENERGY AND CLIMATE CHANGE,THE COAL AUTHORITY,02/02/2016,SUB PUMP STTN MAINTENANCE-PWER,SUBSIDENCE PUMPING STATIONS,ENERGY&UTILITIES-ELECTRICITY,BRITISH GAS BUSINESS,98501,-31.40
DEPARTMENT OF ENERGY AND CLIMATE CHANGE,THE COAL AUTHORITY,02/02/2016,SUB PUMP STTN MAINTENANCE-PWER,SUBSIDENCE PUMPING STATIONS,ENERGY&UTILITIES-ELECTRICITY,BRITISH GAS BUSINESS,98501,-28.13
DEPARTMENT OF ENERGY AND CLIMATE CHANGE,THE COAL AUTHORITY,02/02/2016,SUB PUMP STTN MAINTENANCE-PWER,SUBSIDENCE PUMPING STATIONS,ENERGY&UTILITIES-ELECTRICITY,BRITISH GAS BUSINESS,98501,-95.89
DEPARTMENT OF ENERGY AND CLIMATE CHANGE,THE COAL AUTHORITY,02/02/2016,SUB PUMP STTN MAINTENANCE-PWER,SUBSIDENCE PUMPING STATIONS,ENERGY&UTILITIES-ELECTRICITY,BRITISH GAS BUSINESS,98501,-13.85
DEPARTMENT OF ENERGY AND CLIMATE CHANGE,THE COAL AUTHORITY,02/02/2016,SUB PUMP STTN MAINTENANCE-PWER,SUBSIDENCE PUMPING STATIONS,ENERGY&UTILITIES-ELECTRICITY,BRITISH GAS BUSINESS,98501,-337.35
DEPARTMENT OF ENERGY AND CLIMATE CHANGE,THE COAL AUTHORITY,02/02/2016,SUB PUMP STTN MAINTENANCE-PWER,SUBSIDENCE PUMPING STATIONS,ENERGY&UTILITIES-ELECTRICITY,BRITISH GAS BUSINESS,98501,-177.34
DEPARTMENT OF ENERGY AND CLIMATE CHANGE,THE COAL AUTHORITY,02/02/2016,SUB PUMP STTN MAINTENANCE-PWER,SUBSIDENCE PUMPING STATIONS,ENERGY&UTILITIES-ELECTRICITY,BRITISH GAS BUSINESS,98501,-49.52
DEPARTMENT OF ENERGY AND CLIMATE CHANGE,THE COAL AUTHORITY,05/02/2016,M/W POWER COSTS,MINE WATER TREATMENT SCHEMES,ENERGY&UTILITIES-ELECTRICITY,BRITISH GAS BUSINESS,98502,1418.07
DEPARTMENT OF ENERGY AND CLIMATE CHANGE,THE COAL AUTHORITY,05/02/2016,M/W POWER COSTS,MINE WATER TREATMENT SCHEMES,ENERGY&UTILITIES-ELECTRICITY,BRITISH GAS BUSINESS,98502,143.02
DEPARTMENT OF ENERGY AND CLIMATE CHANGE,THE COAL AUTHORITY,05/02/2016,SUB PUMP STTN MAINTENANCE-PWER,SUBSIDENCE PUMPING STATIONS,ENERGY&UTILITIES-ELECTRICITY,BRITISH GAS BUSINESS,98502,63.58
DEPARTMENT OF ENERGY AND CLIMATE CHANGE,THE COAL AUTHORITY,05/02/2016,SUB PUMP STTN MAINTENANCE-PWER,SUBSIDENCE PUMPING STATIONS,ENERGY&UTILITIES-ELECTRICITY,BRITISH GAS BUSINESS,98502,58.32
DEPARTMENT OF ENERGY AND CLIMATE CHANGE,THE COAL AUTHORITY,05/02/2016,SUB PUMP STTN MAINTENANCE-PWER,SUBSIDENCE PUMPING STATIONS,ENERGY&UTILITIES-ELECTRICITY,BRITISH GAS BUSINESS,98502,201.79
DEPARTMENT OF ENERGY AND CLIMATE CHANGE,THE COAL AUTHORITY,05/02/2016,SUB PUMP STTN MAINTENANCE-PWER,SUBSIDENCE PUMPING STATIONS,ENERGY&UTILITIES-ELECTRICITY,BRITISH GAS BUSINESS,98502,25.41
DEPARTMENT OF ENERGY AND CLIMATE CHANGE,THE COAL AUTHORITY,05/02/2016,SUB PUMP STTN MAINTENANCE-PWER,SUBSIDENCE PUMPING STATIONS,ENERGY&UTILITIES-ELECTRICITY,BRITISH GAS BUSINESS,98502,373.54
DEPARTMENT OF ENERGY AND CLIMATE CHANGE,THE COAL AUTHORITY,05/02/2016,SUB PUMP STTN MAINTENANCE-PWER,SUBSIDENCE PUMPING STATIONS,ENERGY&UTILITIES-ELECTRICITY,BRITISH GAS BUSINESS,98502,374.16
DEPARTMENT OF ENERGY AND CLIMATE CHANGE,THE COAL AUTHORITY,05/02/2016,SUB PUMP STTN MAINTENANCE-PWER,SUBSIDENCE PUMPING STATIONS,ENERGY&UTILITIES-ELECTRICITY,BRITISH GAS BUSINESS,98502,103.70
DEPARTMENT OF ENERGY AND CLIMATE CHANGE,THE COAL AUTHORITY,08/01/2016,CONTRACTORS AND CLAIM COSTS,SURFACE HAZARDS,CONSTRUCTION-MAIN CONTRACTORS,ALLIANCE GROUP SOLUTIONS LTD,98503,8507.18
DEPARTMENT OF ENERGY AND CLIMATE CHANGE,THE COAL AUTHORITY,08/01/2016,CONTRACTORS AND CLAIM COSTS,SURFACE HAZARDS,CONSTRUCTION-MAIN CONTRACTORS,ALLIANCE GROUP SOLUTIONS LTD,98504,5296.64
DEPARTMENT OF ENERGY AND CLIMATE CHANGE,THE COAL AUTHORITY,11/02/2016,IT-APPLICATIONS MANAGEMENT,MINING INFORMATION COMMERCIAL,ICT-MAINTENANCE & SUPPORT,BYTEMARK LIMITED,98505,124.00
DEPARTMENT OF ENERGY AND CLIMATE CHANGE,THE COAL AUTHORITY,09/02/2016,CONTRACT HIRE VEHICLES,FACILITIES MANAGEMENT,VEHICLES-VEHICLE MAINTENANCE,PENTAGON,98506,21.15
DEPARTMENT OF ENERGY AND CLIMATE CHANGE,THE COAL AUTHORITY,14/01/2016,CONTRACTORS AND CLAIM COSTS,SUBSIDENCE,CONSTRUCTION-MAIN CONTRACTORS,NEWCASTLE CITY COUNCIL,98507,5859.50
DEPARTMENT OF ENERGY AND CLIMATE CHANGE,THE COAL AUTHORITY,05/02/2016,M/W RENTS PAYABLE,MINE WATER TREATMENT SCHEMES,FACILITIES-BUILDING MANAGEMENT,THE CROWN ESTATE,98508,200.00
DEPARTMENT OF ENERGY AND CLIMATE CHANGE,THE COAL AUTHORITY,25/12/2015,SITE SERVICES,FACILITIES MANAGEMENT,WASTE MANAGEMENT-WSTE MNGT SER,BIFFA WASTE SERVICES LTD,98509,324.00
DEPARTMENT OF ENERGY AND CLIMATE CHANGE,THE COAL AUTHORITY,07/02/2016,PAYMENTS TO AGENCIES FOR TEMPS,SURFACE HAZARDS,PROF SER TMP STFF-SPCLST CNTRT,VENTURE FINANCE PLC,98510,1051.96
DEPARTMENT OF ENERGY AND CLIMATE CHANGE,THE COAL AUTHORITY,10/02/2016,CNTRCTR & CLAIM CSTS-BRDGEWATR,SUBSIDENCE,CONSTRUCTION-MAIN CONTRACTORS,THE BRIDGEWATER CANAL CO LTD,98511,1041.65
DEPARTMENT OF ENERGY AND CLIMATE CHANGE,THE COAL AUTHORITY,10/02/2016,CNTRCTR & CLAIM CSTS-BRDGEWATR,SUBSIDENCE,CONSTRUCTION-MAIN CONTRACTORS,THE BRIDGEWATER CANAL CO LTD,98512,88677.61
DEPARTMENT OF ENERGY AND CLIMATE CHANGE,THE COAL AUTHORITY,09/02/2016,CURR YR ADD-INTNGBLE INFO TECH,BOSS PROGRAMME,ICT-SYSTEMS DELIVERY,MIDLAND SOFTWARE LTD,98513,424.50
DEPARTMENT OF ENERGY AND CLIMATE CHANGE,THE COAL AUTHORITY,09/02/2016,CONSULTANCY,BOSS PROGRAMME,ICT-SYSTEMS DELIVERY,MIDLAND SOFTWARE LTD,98514,64.40
DEPARTMENT OF ENERGY AND CLIMATE CHANGE,THE COAL AUTHORITY,09/02/2016,CURR YR ADD-INTNGBLE INFO TECH,BOSS PROGRAMME,ICT-SYSTEMS DELIVERY,MIDLAND SOFTWARE LTD,98514,2547.00
DEPARTMENT OF ENERGY AND CLIMATE CHANGE,THE COAL AUTHORITY,11/02/2016,CONTRACTORS AND CLAIM COSTS,DAW MILL,"CONSTRUCTION-BLD,REPR&MAINTNCE",MRS J WALKER,98515,808.80
DEPARTMENT OF ENERGY AND CLIMATE CHANGE,THE COAL AUTHORITY,29/01/2016,OTHER BANK CHARGES,FINANCE,PROF SER FNCL-BANKING&INVSTMNT,NATIONAL WESTMINSTER BANK PLC,98516,25.00
DEPARTMENT OF ENERGY AND CLIMATE CHANGE,THE COAL AUTHORITY,10/02/2016,IT-APPLICATIONS MANAGEMENT,ENVIRONMENT - ZERO COST PROG,ICT-SOFTWARE,CLEARVISION,98517,1816.65
DEPARTMENT OF ENERGY AND CLIMATE CHANGE,THE COAL AUTHORITY,10/02/2016,IT-APPLICATIONS MANAGEMENT,ICT-BUSINESS ANALYSIS&DESIGN,ICT-SOFTWARE,CLEARVISION,98517,1816.66
DEPARTMENT OF ENERGY AND CLIMATE CHANGE,THE COAL AUTHORITY,10/02/2016,M/W REMEDIATION,MINE WATER TREATMENT SCHEMES,CONSTRUCTION-MAIN CONTRACTORS,SOIL ENGINEERING GEOSERVICES L,98518,17051.11
DEPARTMENT OF ENERGY AND CLIMATE CHANGE,THE COAL AUTHORITY,11/02/2016,CONTRACTORS AND CLAIM COSTS,DAW MILL,"CONSTRUCTION-BLD,REPR&MAINTNCE",COLIN SOUTHALL,98519,2000.00
DEPARTMENT OF ENERGY AND CLIMATE CHANGE,THE COAL AUTHORITY,11/02/2016,CONTRACTORS AND CLAIM COSTS,HATFIELD COLLIERY,"CONSTRUCTION-BLD,REPR&MAINTNCE",C GOLDTHORPE & SONS,98520,4560.00
DEPARTMENT OF ENERGY AND CLIMATE CHANGE,THE COAL AUTHORITY,10/02/2016,FUEL (VEHICLE),FACILITIES MANAGEMENT,FUELS/LUBRCNT/GAS-FUELS,ALLSTAR BUSINESS SOLUTIONS LTD,98524,65.69
DEPARTMENT OF ENERGY AND CLIMATE CHANGE,THE COAL AUTHORITY,10/02/2016,FUEL (VEHICLE),FACILITIES MANAGEMENT,FUELS/LUBRCNT/GAS-FUELS,ALLSTAR BUSINESS SOLUTIONS LTD,98525,15.33
DEPARTMENT OF ENERGY AND CLIMATE CHANGE,THE COAL AUTHORITY,10/02/2016,FUEL (VEHICLE),FACILITIES MANAGEMENT,FUELS/LUBRCNT/GAS-FUELS,ALLSTAR BUSINESS SOLUTIONS LTD,98526,10.03
DEPARTMENT OF ENERGY AND CLIMATE CHANGE,THE COAL AUTHORITY,10/02/2016,FUEL (VEHICLE),FACILITIES MANAGEMENT,FUELS/LUBRCNT/GAS-FUELS,ALLSTAR BUSINESS SOLUTIONS LTD,98527,28.29
DEPARTMENT OF ENERGY AND CLIMATE CHANGE,THE COAL AUTHORITY,10/02/2016,FUEL (VEHICLE),FACILITIES MANAGEMENT,FUELS/LUBRCNT/GAS-FUELS,ALLSTAR BUSINESS SOLUTIONS LTD,98528,31.69
DEPARTMENT OF ENERGY AND CLIMATE CHANGE,THE COAL AUTHORITY,10/02/2016,FUEL (VEHICLE),FACILITIES MANAGEMENT,FUELS/LUBRCNT/GAS-FUELS,ALLSTAR BUSINESS SOLUTIONS LTD,98529,32.53
DEPARTMENT OF ENERGY AND CLIMATE CHANGE,THE COAL AUTHORITY,10/02/2016,FUEL (VEHICLE),FACILITIES MANAGEMENT,FUELS/LUBRCNT/GAS-FUELS,ALLSTAR BUSINESS SOLUTIONS LTD,98530,81.80
DEPARTMENT OF ENERGY AND CLIMATE CHANGE,THE COAL AUTHORITY,10/02/2016,FUEL (VEHICLE),SURFACE HAZARDS,FUELS/LUBRCNT/GAS-FUELS,ALLSTAR BUSINESS SOLUTIONS LTD,98531,61.26
DEPARTMENT OF ENERGY AND CLIMATE CHANGE,THE COAL AUTHORITY,10/02/2016,FUEL (VEHICLE),SURFACE HAZARDS,FUELS/LUBRCNT/GAS-FUELS,ALLSTAR BUSINESS SOLUTIONS LTD,98532,145.57
DEPARTMENT OF ENERGY AND CLIMATE CHANGE,THE COAL AUTHORITY,10/02/2016,FUEL (VEHICLE),SURFACE HAZARDS,FUELS/LUBRCNT/GAS-FUELS,ALLSTAR BUSINESS SOLUTIONS LTD,98533,52.30
DEPARTMENT OF ENERGY AND CLIMATE CHANGE,THE COAL AUTHORITY,10/02/2016,FUEL (VEHICLE),SURFACE HAZARDS,FUELS/LUBRCNT/GAS-FUELS,ALLSTAR BUSINESS SOLUTIONS LTD,98534,49.68
DEPARTMENT OF ENERGY AND CLIMATE CHANGE,THE COAL AUTHORITY,10/02/2016,FUEL (VEHICLE),SURFACE HAZARDS,FUELS/LUBRCNT/GAS-FUELS,ALLSTAR BUSINESS SOLUTIONS LTD,98535,60.19
DEPARTMENT OF ENERGY AND CLIMATE CHANGE,THE COAL AUTHORITY,10/02/2016,FUEL (VEHICLE),SURFACE HAZARDS,FUELS/LUBRCNT/GAS-FUELS,ALLSTAR BUSINESS SOLUTIONS LTD,98536,69.48
DEPARTMENT OF ENERGY AND CLIMATE CHANGE,THE COAL AUTHORITY,10/02/2016,FUEL (VEHICLE),SURFACE HAZARDS,FUELS/LUBRCNT/GAS-FUELS,ALLSTAR BUSINESS SOLUTIONS LTD,98537,47.40
DEPARTMENT OF ENERGY AND CLIMATE CHANGE,THE COAL AUTHORITY,10/02/2016,FUEL (VEHICLE),SURFACE HAZARDS,FUELS/LUBRCNT/GAS-FUELS,ALLSTAR BUSINESS SOLUTIONS LTD,98538,62.35
DEPARTMENT OF ENERGY AND CLIMATE CHANGE,THE COAL AUTHORITY,11/02/2016,CURR YR ADD-INTNGBLE INFO TECH,BOSS PROGRAMME,ICT-SYSTEMS DELIVERY,SAPPHIRE SYSTEMS PLC,98539,185.00
DEPARTMENT OF ENERGY AND CLIMATE CHANGE,THE COAL AUTHORITY,11/02/2016,LEGAL COSTS,MINE WATER TREATMENT SCHEMES,PROF SER-LEGAL SERVICES,WALKER MORRIS,98540,3500.00
DEPARTMENT OF ENERGY AND CLIMATE CHANGE,THE COAL AUTHORITY,11/02/2016,CONTRACTORS AND CLAIM COSTS,SURFACE HAZARDS,CONSTRUCTION-MAIN CONTRACTORS,ALLIANCE GROUP SOLUTIONS LTD,98541,1583.48
DEPARTMENT OF ENERGY AND CLIMATE CHANGE,THE COAL AUTHORITY,11/02/2016,CONSULTANCY,BOSS PROGRAMME,ICT-SYSTEMS DELIVERY,98149 SAPPHIRE,98542,162.92
DEPARTMENT OF ENERGY AND CLIMATE CHANGE,THE COAL AUTHORITY,11/02/2016,CONTRACTORS AND CLAIM COSTS,PLANNING & LOCAL AUTH LIAISON,CONSTRUCTION-MAIN CONTRACTORS,98364 JIM DAVIES,98542,20796.36
DEPARTMENT OF ENERGY AND CLIMATE CHANGE,THE COAL AUTHORITY,11/02/2016,CONTRACTORS AND CLAIM COSTS,TIP MAINTENANCE/IMPROVEMENTS,CONSTRUCTION-MAIN CONTRACTORS,98114 BALFOURS,98542,-688.20
DEPARTMENT OF ENERGY AND CLIMATE CHANGE,THE COAL AUTHORITY,11/02/2016,CONTRACTORS AND CLAIM COSTS,TIP MAINTENANCE/IMPROVEMENTS,CONSTRUCTION-MAIN CONTRACTORS,98115 BALFOURS,98542,-732.60
DEPARTMENT OF ENERGY AND CLIMATE CHANGE,THE COAL AUTHORITY,11/02/2016,CURR YR ADD-INTNGBLE INFO TECH,BOSS PROGRAMME,ICT-SYSTEMS DELIVERY,98252 SAPPHIRE,98542,-462.50
DEPARTMENT OF ENERGY AND CLIMATE CHANGE,THE COAL AUTHORITY,11/02/2016,INNOVATION COSTS,ENVIRONMENT - ZERO COST PROG,FACILITIES-BUILDING MANAGEMENT,97905 NORLAND,98542,659.99
DEPARTMENT OF ENERGY AND CLIMATE CHANGE,THE COAL AUTHORITY,11/02/2016,INNOVATION COSTS,ENVIRONMENT - ZERO COST PROG,FACILITIES-BUILDING MANAGEMENT,97905 NORLAND,98542,132.00
DEPARTMENT OF ENERGY AND CLIMATE CHANGE,THE COAL AUTHORITY,11/02/2016,IT-APPLICATIONS MANAGEMENT,FINANCE,ICT-SYSTEMS DELIVERY,98252 SAPPHIRE,98542,462.50
DEPARTMENT OF ENERGY AND CLIMATE CHANGE,THE COAL AUTHORITY,11/02/2016,M/W POWER COSTS,MINE WATER TREATMENT SCHEMES,ENERGY&UTILITIES-ELECTRICITY,98501 BRITISH GAS,98542,-68.43
DEPARTMENT OF ENERGY AND CLIMATE CHANGE,THE COAL AUTHORITY,11/02/2016,PROPERTY /TIP MAINTENANCE,TIP MAINTENANCE/IMPROVEMENTS,CONSTRUCTION-MAIN CONTRACTORS,98364 JIM DAVIES,98542,-20796.36
DEPARTMENT OF ENERGY AND CLIMATE CHANGE,THE COAL AUTHORITY,11/02/2016,PROPERTY /TIP MAINTENANCE,TIP MAINTENANCE/IMPROVEMENTS,,98238 GPC DECEMBER'15,98542,-12.50
DEPARTMENT OF ENERGY AND CLIMATE CHANGE,THE COAL AUTHORITY,11/02/2016,PROPERTY /TIP MAINTENANCE,TIP MAINTENANCE/IMPROVEMENTS,CONSTRUCTION-MAIN CONTRACTORS,98114 BALFOURS,98542,688.20
DEPARTMENT OF ENERGY AND CLIMATE CHANGE,THE COAL AUTHORITY,11/02/2016,PROPERTY /TIP MAINTENANCE,TIP MAINTENANCE/IMPROVEMENTS,CONSTRUCTION-MAIN CONTRACTORS,98115 BALFOURS,98542,732.60
DEPARTMENT OF ENERGY AND CLIMATE CHANGE,THE COAL AUTHORITY,11/02/2016,PUBLIC RELATIONS,BOSS PROGRAMME,ICT-SYSTEMS DELIVERY,98149 SAPPHIRE,98542,-162.92
DEPARTMENT OF ENERGY AND CLIMATE CHANGE,THE COAL AUTHORITY,11/02/2016,SITE MAINTENANCE,FACILITIES MANAGEMENT,FACILITIES-BUILDING MANAGEMENT,97905 NORLAND,98542,-659.99
DEPARTMENT OF ENERGY AND CLIMATE CHANGE,THE COAL AUTHORITY,11/02/2016,SITE MAINTENANCE,FACILITIES MANAGEMENT,FACILITIES-BUILDING MANAGEMENT,97905 NORLAND,98542,-132.00
DEPARTMENT OF ENERGY AND CLIMATE CHANGE,THE COAL AUTHORITY,11/02/2016,SITE SECURITY,TIP MAINTENANCE/IMPROVEMENTS,,98238 GPC DECEMBER'15,98542,12.50
DEPARTMENT OF ENERGY AND CLIMATE CHANGE,THE COAL AUTHORITY,11/02/2016,SUB PUMP STTN MAINTENANCE-PWER,MINE WATER TREATMENT SCHEMES,ENERGY&UTILITIES-ELECTRICITY,98501 BRITISH GAS,98542,68.43
DEPARTMENT OF ENERGY AND CLIMATE CHANGE,THE COAL AUTHORITY,11/02/2016,CONTRACTORS AND CLAIM COSTS,PLANNING & LOCAL AUTH LIAISON,CONSTRUCTION-MAIN CONTRACTORS,98364 JIM DAVIES,98543,-20796.36
DEPARTMENT OF ENERGY AND CLIMATE CHANGE,THE COAL AUTHORITY,11/02/2016,PROPERTY /TIP MAINTENANCE,TIP MAINTENANCE/IMPROVEMENTS,CONSTRUCTION-MAIN CONTRACTORS,98364 JIM DAVIES,98543,20796.36
DEPARTMENT OF ENERGY AND CLIMATE CHANGE,THE COAL AUTHORITY,11/02/2016,CONTRACTORS AND CLAIM COSTS,PLANNING & LOCAL AUTH LIAISON,CONSTRUCTION-MAIN CONTRACTORS,98364 JIM DAVIES,98544,-20796.36
DEPARTMENT OF ENERGY AND CLIMATE CHANGE,THE COAL AUTHORITY,11/02/2016,PROPERTY /TIP MAINTENANCE,TIP MAINTENANCE/IMPROVEMENTS,CONSTRUCTION-MAIN CONTRACTORS,98364 JIM DAVIES,98544,20796.36
DEPARTMENT OF ENERGY AND CLIMATE CHANGE,THE COAL AUTHORITY,08/02/2016,IT-APPLICATIONS MANAGEMENT,MINING INFORMATION WHOLESALE,ICT-SYSTEMS DELIVERY,SCISYS UK LTD,98552,170.00
DEPARTMENT OF ENERGY AND CLIMATE CHANGE,THE COAL AUTHORITY,10/02/2016,CURR YR ADD-INTNGBLE INFO TECH,MINING INFORMATION COMMERCIAL,ICT-SYSTEMS DELIVERY,SCISYS UK LTD,98554,137550.00
DEPARTMENT OF ENERGY AND CLIMATE CHANGE,THE COAL AUTHORITY,05/02/2016,IT-APPLICATIONS MANAGEMENT,HISTORIC LIABILITIES,ICT-SYSTEMS DELIVERY,SCISYS UK LTD,98557,384.20
DEPARTMENT OF ENERGY AND CLIMATE CHANGE,THE COAL AUTHORITY,05/02/2016,IT-APPLICATIONS MANAGEMENT,MINE ENTRY INSPECTIONS,ICT-SYSTEMS DELIVERY,SCISYS UK LTD,98557,384.20
DEPARTMENT OF ENERGY AND CLIMATE CHANGE,THE COAL AUTHORITY,05/02/2016,IT-APPLICATIONS MANAGEMENT,MINING INFORMATION COMMERCIAL,ICT-SYSTEMS DELIVERY,SCISYS UK LTD,98557,1536.80
DEPARTMENT OF ENERGY AND CLIMATE CHANGE,THE COAL AUTHORITY,05/02/2016,IT-APPLICATIONS MANAGEMENT,MINING INFORMATION WHOLESALE,ICT-SYSTEMS DELIVERY,SCISYS UK LTD,98557,3073.60
DEPARTMENT OF ENERGY AND CLIMATE CHANGE,THE COAL AUTHORITY,05/02/2016,IT-APPLICATIONS MANAGEMENT,PLANNING & LOCAL AUTH LIAISON,ICT-SYSTEMS DELIVERY,SCISYS UK LTD,98557,384.20
DEPARTMENT OF ENERGY AND CLIMATE CHANGE,THE COAL AUTHORITY,05/02/2016,IT-APPLICATIONS MANAGEMENT,SURFACE HAZARDS,ICT-SYSTEMS DELIVERY,SCISYS UK LTD,98557,384.20
DEPARTMENT OF ENERGY AND CLIMATE CHANGE,THE COAL AUTHORITY,08/02/2016,IT-APPLICATIONS MANAGEMENT,ICT-BUSINESS ANALYSIS&DESIGN,ICT-SYSTEMS DELIVERY,SCISYS UK LTD,98558,2056.60
DEPARTMENT OF ENERGY AND CLIMATE CHANGE,THE COAL AUTHORITY,01/02/2016,CALL CHARGES,ICT -  SERVICE MANAGEMENT,ICT-TELECOMS,DAISY COMMUNICATIONS LTD,98559,419.92
DEPARTMENT OF ENERGY AND CLIMATE CHANGE,THE COAL AUTHORITY,01/02/2016,LINE RENTAL,ICT -  SERVICE MANAGEMENT,ICT-TELECOMS,DAISY COMMUNICATIONS LTD,98559,1084.40
DEPARTMENT OF ENERGY AND CLIMATE CHANGE,THE COAL AUTHORITY,09/02/2016,CONTRACTORS AND CLAIM COSTS,SUBSIDENCE,CONSTRUCTION-MAIN CONTRACTORS,NAL PLANT LIMITED,98560,289.00
DEPARTMENT OF ENERGY AND CLIMATE CHANGE,THE COAL AUTHORITY,10/02/2016,CONTRACTORS AND CLAIM COSTS,SUBSIDENCE,CONSTRUCTION-MAIN CONTRACTORS,NAL PLANT LIMITED,98561,270.00
DEPARTMENT OF ENERGY AND CLIMATE CHANGE,THE COAL AUTHORITY,09/02/2016,CONTRACTORS AND CLAIM COSTS,SUBSIDENCE,CONSTRUCTION-MAIN CONTRACTORS,NAL PLANT LIMITED,98562,370.39
DEPARTMENT OF ENERGY AND CLIMATE CHANGE,THE COAL AUTHORITY,12/02/2016,CONTRACTORS AND CLAIM COSTS,SUBSIDENCE,CONSTRUCTION-CNSTRN SER PROVDR,CORNERSTONE  PROJECTS LTD,98563,271.98
DEPARTMENT OF ENERGY AND CLIMATE CHANGE,THE COAL AUTHORITY,12/02/2016,CONTRACTORS AND CLAIM COSTS,SURFACE HAZARDS,CONSTRUCTION-CNSTRN SER PROVDR,CORNERSTONE  PROJECTS LTD,98564,280.90
DEPARTMENT OF ENERGY AND CLIMATE CHANGE,THE COAL AUTHORITY,12/02/2016,CONTRACTORS AND CLAIM COSTS,SUBSIDENCE,CONSTRUCTION-CNSTRN SER PROVDR,CORNERSTONE  PROJECTS LTD,98565,153.00
DEPARTMENT OF ENERGY AND CLIMATE CHANGE,THE COAL AUTHORITY,12/02/2016,CONTRACTORS AND CLAIM COSTS,SURFACE HAZARDS,CONSTRUCTION-CNSTRN SER PROVDR,CORNERSTONE  PROJECTS LTD,98566,153.00
DEPARTMENT OF ENERGY AND CLIMATE CHANGE,THE COAL AUTHORITY,12/02/2016,CONTRACTORS AND CLAIM COSTS,SURFACE HAZARDS,CONSTRUCTION-CNSTRN SER PROVDR,CORNERSTONE  PROJECTS LTD,98567,153.00
DEPARTMENT OF ENERGY AND CLIMATE CHANGE,THE COAL AUTHORITY,12/02/2016,CONTRACTORS AND CLAIM COSTS,MINE ENTRY INSPECTIONS,CONSTRUCTION-CNSTRN SER PROVDR,CORNERSTONE  PROJECTS LTD,98568,312.90
DEPARTMENT OF ENERGY AND CLIMATE CHANGE,THE COAL AUTHORITY,12/02/2016,CONTRACTORS AND CLAIM COSTS,SURFACE HAZARDS,CONSTRUCTION-CNSTRN SER PROVDR,CORNERSTONE  PROJECTS LTD,98569,121.00
DEPARTMENT OF ENERGY AND CLIMATE CHANGE,THE COAL AUTHORITY,12/02/2016,CONTRACTORS AND CLAIM COSTS,SURFACE HAZARDS,CONSTRUCTION-CNSTRN SER PROVDR,CORNERSTONE  PROJECTS LTD,98570,58.00
DEPARTMENT OF ENERGY AND CLIMATE CHANGE,THE COAL AUTHORITY,12/02/2016,CONTRACTORS AND CLAIM COSTS,SURFACE HAZARDS,CONSTRUCTION-CNSTRN SER PROVDR,CORNERSTONE  PROJECTS LTD,98571,58.00
DEPARTMENT OF ENERGY AND CLIMATE CHANGE,THE COAL AUTHORITY,12/02/2016,CONTRACTORS AND CLAIM COSTS,HATFIELD COLLIERY,CONSTRUCTION-CNSTRN SER PROVDR,CORNERSTONE  PROJECTS LTD,98572,78.00
DEPARTMENT OF ENERGY AND CLIMATE CHANGE,THE COAL AUTHORITY,12/02/2016,LIABILITY SITES AD-HOC TASKS,MINE WATER TREATMENT SCHEMES,CONSTRUCTION-CNSTRN SER PROVDR,CORNERSTONE  PROJECTS LTD,98573,113.00
DEPARTMENT OF ENERGY AND CLIMATE CHANGE,THE COAL AUTHORITY,12/02/2016,CONTRACTORS AND CLAIM COSTS,SURFACE HAZARDS,CONSTRUCTION-CNSTRN SER PROVDR,CORNERSTONE  PROJECTS LTD,98574,112.08
DEPARTMENT OF ENERGY AND CLIMATE CHANGE,THE COAL AUTHORITY,19/01/2016,OUTSOURCED CANTEEN STAFF,FACILITIES MANAGEMENT,FACILITIES - CATERING,NORLAND MANAGED SERVICES LTD,98575,2607.00
DEPARTMENT OF ENERGY AND CLIMATE CHANGE,THE COAL AUTHORITY,19/01/2016,OUTSOURCED CLEANING STAFF,FACILITIES MANAGEMENT,FACILITIES - CLEANING,NORLAND MANAGED SERVICES LTD,98575,4126.00
DEPARTMENT OF ENERGY AND CLIMATE CHANGE,THE COAL AUTHORITY,19/01/2016,OUTSRD BLDING SECRTY STAFF,FACILITIES MANAGEMENT,FACILITIES - SECURITY,NORLAND MANAGED SERVICES LTD,98575,5266.00
DEPARTMENT OF ENERGY AND CLIMATE CHANGE,THE COAL AUTHORITY,19/01/2016,PLANT MAINTENANCE,FACILITIES MANAGEMENT,FACILITIES-BUILDING MANAGEMENT,NORLAND MANAGED SERVICES LTD,98575,1000.00
DEPARTMENT OF ENERGY AND CLIMATE CHANGE,THE COAL AUTHORITY,19/01/2016,SITE MAINTENANCE,FACILITIES MANAGEMENT,FACILITIES-BUILDING MANAGEMENT,NORLAND MANAGED SERVICES LTD,98575,2511.00
DEPARTMENT OF ENERGY AND CLIMATE CHANGE,THE COAL AUTHORITY,19/01/2016,SITE SERVICES,FACILITIES MANAGEMENT,FACILITIES-BUILDING MANAGEMENT,NORLAND MANAGED SERVICES LTD,98575,2514.56
DEPARTMENT OF ENERGY AND CLIMATE CHANGE,THE COAL AUTHORITY,29/01/2016,CONTRACTORS AND CLAIM COSTS,DAW MILL,CONSTRUCTION-MAIN CONTRACTORS,HARDYMAN & CO LTD,98576,9582.12
DEPARTMENT OF ENERGY AND CLIMATE CHANGE,THE COAL AUTHORITY,29/01/2016,CONTRACTORS AND CLAIM COSTS,DAW MILL,CONSTRUCTION-CNSTRN SER PROVDR,HARDYMAN & CO LTD,98577,2058.84
DEPARTMENT OF ENERGY AND CLIMATE CHANGE,THE COAL AUTHORITY,12/02/2016,CONTRACTORS AND CLAIM COSTS,SURFACE HAZARDS,CONSTRUCTION-CNSTRN SER PROVDR,CORNERSTONE  PROJECTS LTD,98578,144.00
DEPARTMENT OF ENERGY AND CLIMATE CHANGE,THE COAL AUTHORITY,14/02/2016,CONTRACTORS AND CLAIM COSTS,DAW MILL,CONSTRUCTION-MAIN CONTRACTORS,PRIORITY BUILDERS LTD,98579,27006.69
DEPARTMENT OF ENERGY AND CLIMATE CHANGE,THE COAL AUTHORITY,14/02/2016,CONTRACTORS AND CLAIM COSTS,DAW MILL,CONSTRUCTION-MAIN CONTRACTORS,PRIORITY BUILDERS LTD,98580,40071.22
DEPARTMENT OF ENERGY AND CLIMATE CHANGE,THE COAL AUTHORITY,09/02/2016,SAFETY CLOTHING,SHE,OPRTNL GOODS&SERV-CLOTHING,ARCO LIMITED,98581,48.97
DEPARTMENT OF ENERGY AND CLIMATE CHANGE,THE COAL AUTHORITY,04/02/2016,SAFETY CLOTHING,SHE,OPRTNL GOODS&SERV-CLOTHING,ARCO LIMITED,98582,88.86
DEPARTMENT OF ENERGY AND CLIMATE CHANGE,THE COAL AUTHORITY,05/02/2016,SAFETY CLOTHING,SHE,OPRTNL GOODS&SERV-CLOTHING,ARCO LIMITED,98583,117.20
DEPARTMENT OF ENERGY AND CLIMATE CHANGE,THE COAL AUTHORITY,05/02/2016,SAFETY CLOTHING,SHE,OPRTNL GOODS&SERV-CLOTHING,ARCO LIMITED,98584,16.29
DEPARTMENT OF ENERGY AND CLIMATE CHANGE,THE COAL AUTHORITY,10/02/2016,SAFETY CLOTHING,SHE,OPRTNL GOODS&SERV-CLOTHING,ARCO LIMITED,98585,39.61
DEPARTMENT OF ENERGY AND CLIMATE CHANGE,THE COAL AUTHORITY,10/02/2016,SAFETY CLOTHING,SHE,OPRTNL GOODS&SERV-CLOTHING,ARCO LIMITED,98586,60.99
DEPARTMENT OF ENERGY AND CLIMATE CHANGE,THE COAL AUTHORITY,10/02/2016,SITE SERVICES,FACILITIES MANAGEMENT,WASTE MANAGEMENT-WSTE MNGT SER,BANNER BUSINESS SOLUTIONS,98587,36.00
DEPARTMENT OF ENERGY AND CLIMATE CHANGE,THE COAL AUTHORITY,09/02/2016,STATIONERY,FACILITIES MANAGEMENT,OFFICE SOLUTIONS-OFFCE SPPLIES,BANNER BUSINESS SOLUTIONS,98588,-7.40
DEPARTMENT OF ENERGY AND CLIMATE CHANGE,THE COAL AUTHORITY,09/02/2016,STATIONERY,FACILITIES MANAGEMENT,OFFICE SOLUTIONS-OFFCE SPPLIES,BANNER BUSINESS SOLUTIONS,98589,-7.40
DEPARTMENT OF ENERGY AND CLIMATE CHANGE,THE COAL AUTHORITY,11/02/2016,STATIONERY,FACILITIES MANAGEMENT,OFFICE SOLUTIONS-OFFCE SPPLIES,BANNER BUSINESS SOLUTIONS,98590,7.40
DEPARTMENT OF ENERGY AND CLIMATE CHANGE,THE COAL AUTHORITY,15/02/2016,CONTRACTORS AND CLAIM COSTS,DAW MILL,"CONSTRUCTION-BLD,REPR&MAINTNCE",SIR THOMAS WHITES CHARITY,98591,35000.00
DEPARTMENT OF ENERGY AND CLIMATE CHANGE,THE COAL AUTHORITY,15/02/2016,CONTRACTORS AND CLAIM COSTS,DAW MILL,PROF SER-OPERATIONAL SERVICES,SIR THOMAS WHITES CHARITY,98591,3492.00
DEPARTMENT OF ENERGY AND CLIMATE CHANGE,THE COAL AUTHORITY,09/02/2016,PAYMENTS TO AGENCIES FOR TEMPS,FACILITIES MANAGEMENT,PROF SER TMP STFF-TEMP WRKERS,THORN BAKER LIMITED,98592,369.00
DEPARTMENT OF ENERGY AND CLIMATE CHANGE,THE COAL AUTHORITY,31/01/2016,PUBLIC RELATIONS,CORPORATE MANAGEMENT,MARKETING & MEDIA-PROMOTION,SHARPE PRITCHARD,98593,425.00
DEPARTMENT OF ENERGY AND CLIMATE CHANGE,THE COAL AUTHORITY,15/02/2016,OTHER RECRUITMENT EXPENSES,HUMAN RESRCES&ORGNSTL DEVLPMNT,PERSONNEL RLTD-HR BUS PRCS O/S,MR SUKHJINDER SINGH KALLAH,98594,55.00
DEPARTMENT OF ENERGY AND CLIMATE CHANGE,THE COAL AUTHORITY,11/02/2016,OTHER RECRUITMENT EXPENSES,HUMAN RESRCES&ORGNSTL DEVLPMNT,PERSONNEL RLTD-HR BUS PRCS O/S,360 RESOURING,98595,4800.00
DEPARTMENT OF ENERGY AND CLIMATE CHANGE,THE COAL AUTHORITY,12/02/2016,CENTRAL TRAINING BUDGET,SHE,PROF SER LRNG&DEV-STAFF TRNING,MINES RESCUE SERVICE LIMITED,98596,138.00
DEPARTMENT OF ENERGY AND CLIMATE CHANGE,THE COAL AUTHORITY,12/02/2016,LEGAL COSTS,LEGAL,PROF SER-OPERATIONAL SERVICES,LAND REGISTRY,98597,12.00
DEPARTMENT OF ENERGY AND CLIMATE CHANGE,THE COAL AUTHORITY,30/01/2016,CONSULTANCY,SHE,PERSONNEL RLTD-STAFF H&S,MORTON HODSON MAN CONS,98598,726.75
DEPARTMENT OF ENERGY AND CLIMATE CHANGE,THE COAL AUTHORITY,10/02/2016,CONTRACTORS AND CLAIM COSTS,SUBSIDENCE,CONSTRUCTION-MAIN CONTRACTORS,DAO CONSTRUCTION LTD,98599,3745.00
DEPARTMENT OF ENERGY AND CLIMATE CHANGE,THE COAL AUTHORITY,12/02/2016,TRAINING AND EDUCATION,PLANNING & LOCAL AUTH LIAISON,PROF SER LRNG&DEV-STAFF TRNING,ROYAL TOWN PLANNING INSTITUTE,98600,125.00
DEPARTMENT OF ENERGY AND CLIMATE CHANGE,THE COAL AUTHORITY,11/02/2016,M/W TELECOMS & TELEMETRY,MINE WATER TREATMENT SCHEMES,ICT-TELECOMS,BRITISH TELECOMMUNICATIONS PLC,98601,75.99
DEPARTMENT OF ENERGY AND CLIMATE CHANGE,THE COAL AUTHORITY,08/02/2016,M/W POWER COSTS,MINE WATER TREATMENT SCHEMES,ENERGY&UTILITIES-ELECTRICITY,BRITISH GAS BUSINESS,98603,916.68
DEPARTMENT OF ENERGY AND CLIMATE CHANGE,THE COAL AUTHORITY,10/02/2016,IT-INFRASTRUCTURE MANAGEMENT,ICT -  SERVICE MANAGEMENT,ICT-TELECOMS,BRITISH TELECOMMUNICATIONS PLC,98604,2086.53
DEPARTMENT OF ENERGY AND CLIMATE CHANGE,THE COAL AUTHORITY,12/02/2016,M/W LAND AGENTS (AQUISITIONS),MINE WATER TREATMENT SCHEMES,CONSTRUCTION-CNSTRN SER PROVDR,CORNERSTONE  PROJECTS LTD,98605,246.90
DEPARTMENT OF ENERGY AND CLIMATE CHANGE,THE COAL AUTHORITY,12/02/2016,M/W LAND AGENTS (AQUISITIONS),MINE WATER TREATMENT SCHEMES,CONSTRUCTION-CNSTRN SER PROVDR,CORNERSTONE  PROJECTS LTD,98606,246.90
DEPARTMENT OF ENERGY AND CLIMATE CHANGE,THE COAL AUTHORITY,12/02/2016,M/W LAND AGENTS (AQUISITIONS),MINE WATER TREATMENT SCHEMES,CONSTRUCTION-CNSTRN SER PROVDR,CORNERSTONE  PROJECTS LTD,98607,246.90
DEPARTMENT OF ENERGY AND CLIMATE CHANGE,THE COAL AUTHORITY,15/02/2016,CURR YR ADDNS MINEWATER SCHEME,MINE WATER TREATMENT SCHEMES,CONSTRUCTION-CNSTRN SER PROVDR,CORNERSTONE  PROJECTS LTD,98608,270.15
DEPARTMENT OF ENERGY AND CLIMATE CHANGE,THE COAL AUTHORITY,15/02/2016,CONTRACTORS AND CLAIM COSTS,SURFACE HAZARDS,CONSTRUCTION-MAIN CONTRACTORS,BALFOUR BEATTY CIVIL ENG LTD,98609,2293.14
DEPARTMENT OF ENERGY AND CLIMATE CHANGE,THE COAL AUTHORITY,15/02/2016,CONTRACTORS AND CLAIM COSTS,SURFACE HAZARDS,CONSTRUCTION-MAIN CONTRACTORS,BALFOUR BEATTY CIVIL ENG LTD,98610,1045.21
DEPARTMENT OF ENERGY AND CLIMATE CHANGE,THE COAL AUTHORITY,05/02/2016,LAND MANAGEMENT-ESTATES,PROPERTY MANAGEMENT & SALES,PROF SER CNSLTNCY-PROP/CNSTRCN,COOKE & ARKWRIGHT,98611,471.88
DEPARTMENT OF ENERGY AND CLIMATE CHANGE,THE COAL AUTHORITY,15/02/2016,OUTSOURCED MANAGEMENT-PS&S,MINE ENTRY INSPECTIONS,SOCIAL CARE-EMERGENCY SERVICES,MINES RESCUE SERVICE LIMITED,98612,26481.00
DEPARTMENT OF ENERGY AND CLIMATE CHANGE,THE COAL AUTHORITY,15/02/2016,OUTSOURCED MANAGEMENT-PS&S,SURFACE HAZARDS,SOCIAL CARE-EMERGENCY SERVICES,MINES RESCUE SERVICE LIMITED,98612,16150.00
DEPARTMENT OF ENERGY AND CLIMATE CHANGE,THE COAL AUTHORITY,15/02/2016,CLEANING MATERIALS,FACILITIES MANAGEMENT,FACILITIES - CLEANING,FLOORBRITE CLEANING & FACILITIES SERVICES,98613,-40.56
DEPARTMENT OF ENERGY AND CLIMATE CHANGE,THE COAL AUTHORITY,31/01/2016,M/W CONTRCTR OPRNTL MTHLY MAIN,MINE WATER TREATMENT SCHEMES,CONSTRUCTION-MAIN CONTRACTORS,NATIONAL COAL MINING MUSEUM,98614,1103.33
DEPARTMENT OF ENERGY AND CLIMATE CHANGE,THE COAL AUTHORITY,23/07/2015,IT-APPLICATIONS MANAGEMENT,ICT-BUSINESS ANALYSIS&DESIGN,ICT-MAINTENANCE & SUPPORT,FIRMSTEP,98615,6300.00
DEPARTMENT OF ENERGY AND CLIMATE CHANGE,THE COAL AUTHORITY,01/02/2016,CURR YR ADDNS MINEWATER SCHEME,MINE WATER TREATMENT SCHEMES,CONSTRUCTION-MAIN CONTRACTORS,J N BENTLEY LIMITED,98627,1682.95
DEPARTMENT OF ENERGY AND CLIMATE CHANGE,THE COAL AUTHORITY,01/02/2016,CURR YR ADDNS MINEWATER SCHEME,MINE WATER TREATMENT SCHEMES,CONSTRUCTION-MAIN CONTRACTORS,J N BENTLEY LIMITED,98628,3753.87
DEPARTMENT OF ENERGY AND CLIMATE CHANGE,THE COAL AUTHORITY,15/01/2016,CURR YR ADDNS MINEWATER SCHEME,MINE WATER TREATMENT SCHEMES,CONSTRUCTION-MAIN CONTRACTORS,J N BENTLEY LIMITED,98629,994.97
DEPARTMENT OF ENERGY AND CLIMATE CHANGE,THE COAL AUTHORITY,15/01/2016,CURR YR ADDNS MINEWATER SCHEME,MINE WATER TREATMENT SCHEMES,CONSTRUCTION-MAIN CONTRACTORS,J N BENTLEY LIMITED,98630,408.40
DEPARTMENT OF ENERGY AND CLIMATE CHANGE,THE COAL AUTHORITY,01/02/2016,CURR YR ADDNS MINEWATER SCHEME,MINE WATER TREATMENT SCHEMES,CONSTRUCTION-MAIN CONTRACTORS,J N BENTLEY LIMITED,98631,19467.46
DEPARTMENT OF ENERGY AND CLIMATE CHANGE,THE COAL AUTHORITY,15/01/2016,CURR YR ADDNS NON COAL MINES,DEFRA PROGRAMME,CONSTRUCTION-MAIN CONTRACTORS,J N BENTLEY LIMITED,98632,811.31
DEPARTMENT OF ENERGY AND CLIMATE CHANGE,THE COAL AUTHORITY,12/02/2016,PAYMENTS TO AGENCIES FOR TEMPS,MINING INFORMATION COMMERCIAL,PROF SER TMP STFF-TEMP WRKERS,KEY PERSONNEL SOLUTIONS LTD,98633,286.11
DEPARTMENT OF ENERGY AND CLIMATE CHANGE,THE COAL AUTHORITY,12/02/2016,PAYMENTS TO AGENCIES FOR TEMPS,MINING INFORMATION COMMERCIAL,PROF SER TMP STFF-TEMP WRKERS,KEY PERSONNEL SOLUTIONS LTD,98633,519.82
DEPARTMENT OF ENERGY AND CLIMATE CHANGE,THE COAL AUTHORITY,12/02/2016,PAYMENTS TO AGENCIES FOR TEMPS,MINING INFORMATION COMMERCIAL,PROF SER TMP STFF-TEMP WRKERS,KEY PERSONNEL SOLUTIONS LTD,98633,518.59
DEPARTMENT OF ENERGY AND CLIMATE CHANGE,THE COAL AUTHORITY,12/02/2016,PAYMENTS TO AGENCIES FOR TEMPS,RECORDS STORAGE,PROF SER TMP STFF-TEMP WRKERS,KEY PERSONNEL SOLUTIONS LTD,98633,488.25
DEPARTMENT OF ENERGY AND CLIMATE CHANGE,THE COAL AUTHORITY,11/02/2016,SAFETY CLOTHING,SHE,OPRTNL GOODS&SERV-CLOTHING,ARCO LIMITED,98634,56.04
DEPARTMENT OF ENERGY AND CLIMATE CHANGE,THE COAL AUTHORITY,16/02/2016,CONTRACTORS AND CLAIM COSTS,SUBSIDENCE,CONSTRUCTION-MAIN CONTRACTORS,LLETTYSHENKIN CONS CO LTD,98635,76.00
DEPARTMENT OF ENERGY AND CLIMATE CHANGE,THE COAL AUTHORITY,11/02/2016,SITE MAINTENANCE,FACILITIES MANAGEMENT,FACILITIES-BUILDING MANAGEMENT,CBRE MANAGED SERVICES LTD,98637,772.43
DEPARTMENT OF ENERGY AND CLIMATE CHANGE,THE COAL AUTHORITY,03/02/2016,MEETINGS,FACILITIES MANAGEMENT,FACILITIES - FOOD,CBRE MANAGED SERVICES LTD,98638,286.50
DEPARTMENT OF ENERGY AND CLIMATE CHANGE,THE COAL AUTHORITY,11/02/2016,SITE MAINTENANCE,FACILITIES MANAGEMENT,FACILITIES-BUILDING MANAGEMENT,CBRE MANAGED SERVICES LTD,98639,261.25
DEPARTMENT OF ENERGY AND CLIMATE CHANGE,THE COAL AUTHORITY,10/02/2016,SITE MAINTENANCE,FACILITIES MANAGEMENT,FACILITIES-BUILDING MANAGEMENT,CBRE MANAGED SERVICES LTD,98640,640.75
DEPARTMENT OF ENERGY AND CLIMATE CHANGE,THE COAL AUTHORITY,11/02/2016,SITE MAINTENANCE,FACILITIES MANAGEMENT,FACILITIES-BUILDING MANAGEMENT,CBRE MANAGED SERVICES LTD,98641,228.25
DEPARTMENT OF ENERGY AND CLIMATE CHANGE,THE COAL AUTHORITY,10/02/2016,SITE MAINTENANCE,FACILITIES MANAGEMENT,FACILITIES-BUILDING MANAGEMENT,CBRE MANAGED SERVICES LTD,98642,93.50
DEPARTMENT OF ENERGY AND CLIMATE CHANGE,THE COAL AUTHORITY,10/02/2016,MEETINGS,FACILITIES MANAGEMENT,FACILITIES - FOOD,CBRE MANAGED SERVICES LTD,98643,106.59
DEPARTMENT OF ENERGY AND CLIMATE CHANGE,THE COAL AUTHORITY,03/02/2016,SITE MAINTENANCE,FACILITIES MANAGEMENT,FACILITIES-BUILDING MANAGEMENT,CBRE MANAGED SERVICES LTD,98644,143.72
DEPARTMENT OF ENERGY AND CLIMATE CHANGE,THE COAL AUTHORITY,03/02/2016,SITE MAINTENANCE,FACILITIES MANAGEMENT,FACILITIES-BUILDING MANAGEMENT,CBRE MANAGED SERVICES LTD,98645,215.58
DEPARTMENT OF ENERGY AND CLIMATE CHANGE,THE COAL AUTHORITY,11/02/2016,SITE MAINTENANCE,FACILITIES MANAGEMENT,FACILITIES-BUILDING MANAGEMENT,CBRE MANAGED SERVICES LTD,98646,71.86
DEPARTMENT OF ENERGY AND CLIMATE CHANGE,THE COAL AUTHORITY,10/02/2016,PLANT MAINTENANCE,FACILITIES MANAGEMENT,FACILITIES-BUILDING MANAGEMENT,CBRE MANAGED SERVICES LTD,98647,596.20
DEPARTMENT OF ENERGY AND CLIMATE CHANGE,THE COAL AUTHORITY,03/02/2016,PLANT MAINTENANCE,FACILITIES MANAGEMENT,FACILITIES-BUILDING MANAGEMENT,CBRE MANAGED SERVICES LTD,98648,1060.39
DEPARTMENT OF ENERGY AND CLIMATE CHANGE,THE COAL AUTHORITY,11/02/2016,SITE MAINTENANCE,FACILITIES MANAGEMENT,FACILITIES-BUILDING MANAGEMENT,CBRE MANAGED SERVICES LTD,98649,149.40
DEPARTMENT OF ENERGY AND CLIMATE CHANGE,THE COAL AUTHORITY,03/02/2016,SITE MAINTENANCE,FACILITIES MANAGEMENT,FACILITIES-BUILDING MANAGEMENT,CBRE MANAGED SERVICES LTD,98650,145.61
DEPARTMENT OF ENERGY AND CLIMATE CHANGE,THE COAL AUTHORITY,03/02/2016,PLANT MAINTENANCE,FACILITIES MANAGEMENT,FACILITIES-BUILDING MANAGEMENT,CBRE MANAGED SERVICES LTD,98651,437.61
DEPARTMENT OF ENERGY AND CLIMATE CHANGE,THE COAL AUTHORITY,11/02/2016,SITE MAINTENANCE,FACILITIES MANAGEMENT,FACILITIES-BUILDING MANAGEMENT,CBRE MANAGED SERVICES LTD,98652,56.71
DEPARTMENT OF ENERGY AND CLIMATE CHANGE,THE COAL AUTHORITY,03/02/2016,SITE MAINTENANCE,FACILITIES MANAGEMENT,FACILITIES-BUILDING MANAGEMENT,CBRE MANAGED SERVICES LTD,98653,1313.54
DEPARTMENT OF ENERGY AND CLIMATE CHANGE,THE COAL AUTHORITY,11/02/2016,SITE MAINTENANCE,FACILITIES MANAGEMENT,FACILITIES-BUILDING MANAGEMENT,CBRE MANAGED SERVICES LTD,98654,258.50
DEPARTMENT OF ENERGY AND CLIMATE CHANGE,THE COAL AUTHORITY,03/02/2016,SITE MAINTENANCE,FACILITIES MANAGEMENT,FACILITIES-BUILDING MANAGEMENT,CBRE MANAGED SERVICES LTD,98655,462.00
DEPARTMENT OF ENERGY AND CLIMATE CHANGE,THE COAL AUTHORITY,03/02/2016,SITE MAINTENANCE,FACILITIES MANAGEMENT,FACILITIES-BUILDING MANAGEMENT,CBRE MANAGED SERVICES LTD,98656,162.47
DEPARTMENT OF ENERGY AND CLIMATE CHANGE,THE COAL AUTHORITY,03/02/2016,PLANT MAINTENANCE,FACILITIES MANAGEMENT,FACILITIES-BUILDING MANAGEMENT,CBRE MANAGED SERVICES LTD,98657,1682.98
DEPARTMENT OF ENERGY AND CLIMATE CHANGE,THE COAL AUTHORITY,03/02/2016,PLANT MAINTENANCE,FACILITIES MANAGEMENT,FACILITIES-BUILDING MANAGEMENT,CBRE MANAGED SERVICES LTD,98658,1542.49
DEPARTMENT OF ENERGY AND CLIMATE CHANGE,THE COAL AUTHORITY,03/02/2016,SITE MAINTENANCE,FACILITIES MANAGEMENT,FACILITIES-BUILDING MANAGEMENT,CBRE MANAGED SERVICES LTD,98659,446.60
DEPARTMENT OF ENERGY AND CLIMATE CHANGE,THE COAL AUTHORITY,10/02/2016,SITE MAINTENANCE,FACILITIES MANAGEMENT,FACILITIES-BUILDING MANAGEMENT,CBRE MANAGED SERVICES LTD,98660,904.63
DEPARTMENT OF ENERGY AND CLIMATE CHANGE,THE COAL AUTHORITY,03/02/2016,PLANT MAINTENANCE,FACILITIES MANAGEMENT,FACILITIES-BUILDING MANAGEMENT,CBRE MANAGED SERVICES LTD,98662,188.10
DEPARTMENT OF ENERGY AND CLIMATE CHANGE,THE COAL AUTHORITY,10/02/2016,SITE MAINTENANCE,FACILITIES MANAGEMENT,FACILITIES-BUILDING MANAGEMENT,CBRE MANAGED SERVICES LTD,98663,82.53
DEPARTMENT OF ENERGY AND CLIMATE CHANGE,THE COAL AUTHORITY,10/02/2016,CENTRAL TRAINING BUDGET,SHE,PROF SER LRNG&DEV-STAFF TRNING,RISK & SAFETY MANAGEMENT SERV,98664,350.00
DEPARTMENT OF ENERGY AND CLIMATE CHANGE,THE COAL AUTHORITY,27/02/2016,IT-INFRASTRUCTURE MANAGEMENT,ICT-TECH SUPPORT&SYSTM DVLPMNT,ICT-MANAGED O/SRCE SERVICES,NOWCOMM,98665,21860.00
DEPARTMENT OF ENERGY AND CLIMATE CHANGE,THE COAL AUTHORITY,27/02/2016,IT-INFRASTRUCTURE MANAGEMENT,ICT-TECH SUPPORT&SYSTM DVLPMNT,ICT-MAINTENANCE & SUPPORT,NOWCOMM,98665,8475.00
DEPARTMENT OF ENERGY AND CLIMATE CHANGE,THE COAL AUTHORITY,17/02/2016,M/W RENTS PAYABLE,MINE WATER TREATMENT SCHEMES,FACILITIES-BUILDING MANAGEMENT,TOM HORSFIELD,98666,200.00
DEPARTMENT OF ENERGY AND CLIMATE CHANGE,THE COAL AUTHORITY,10/02/2016,CONTRACTORS AND CLAIM COSTS,SUBSIDENCE,ENERGY&UTILITIES-WATER,NORTHUMBRIAN WATER LIMITED,98667,98.19
DEPARTMENT OF ENERGY AND CLIMATE CHANGE,THE COAL AUTHORITY,01/02/2016,CURR YR ADDNS MINEWATER SCHEME,MINE WATER TREATMENT SCHEMES,CONSTRUCTION-MAIN CONTRACTORS,J N BENTLEY LIMITED,98668,573.65
DEPARTMENT OF ENERGY AND CLIMATE CHANGE,THE COAL AUTHORITY,17/02/2016,LEGAL COSTS,HISTORIC LIABILITIES,PROF SER-OPERATIONAL SERVICES,LAND REGISTRY,98669,6.00
DEPARTMENT OF ENERGY AND CLIMATE CHANGE,THE COAL AUTHORITY,17/02/2016,LEGAL COSTS,LEGAL,PROF SER-OPERATIONAL SERVICES,LAND REGISTRY,98669,48.00
DEPARTMENT OF ENERGY AND CLIMATE CHANGE,THE COAL AUTHORITY,17/02/2016,LEGAL COSTS,SURFACE HAZARDS,PROF SER-OPERATIONAL SERVICES,LAND REGISTRY,98669,12.00
DEPARTMENT OF ENERGY AND CLIMATE CHANGE,THE COAL AUTHORITY,26/01/2016,SUB PUMP STTN MAINTENANCE-OTHR,SUBSIDENCE PUMPING STATIONS,PROF SER TMP STFF-TEMP WRKERS,DANVM DRAINAGE COMMISSIONERS,98670,6535.86
DEPARTMENT OF ENERGY AND CLIMATE CHANGE,THE COAL AUTHORITY,26/01/2016,SUB PUMP STTN MAINTENANCE-OTHR,SUBSIDENCE PUMPING STATIONS,TRAVEL&EVENTS-VEHICLE HIRE,DANVM DRAINAGE COMMISSIONERS,98671,-6535.86
DEPARTMENT OF ENERGY AND CLIMATE CHANGE,THE COAL AUTHORITY,16/02/2016,CONSULTANTS OPERATIONS,MINE WATER TREATMENT SCHEMES,PROF SER TECH-ENGINEERING SER,MOTT MACDONALD LTD,98672,4035.37
DEPARTMENT OF ENERGY AND CLIMATE CHANGE,THE COAL AUTHORITY,15/02/2016,M/W TELECOMS & TELEMETRY,MINE WATER TREATMENT SCHEMES,ICT-TELECOMS,VODAFONE LIMITED (CORPORATE),98673,428.12
DEPARTMENT OF ENERGY AND CLIMATE CHANGE,THE COAL AUTHORITY,31/01/2016,STAFF MEDICALS,HUMAN RESRCES&ORGNSTL DEVLPMNT,PERSONNEL RLTD-STAFF MEDICAL,BLUECREST HEALTH SCREENING,98674,-169.00
DEPARTMENT OF ENERGY AND CLIMATE CHANGE,THE COAL AUTHORITY,17/02/2016,FUEL (VEHICLE),FACILITIES MANAGEMENT,FUELS/LUBRCNT/GAS-FUELS,ALLSTAR BUSINESS SOLUTIONS LTD,98700,25.35
DEPARTMENT OF ENERGY AND CLIMATE CHANGE,THE COAL AUTHORITY,17/02/2016,FUEL (VEHICLE),FACILITIES MANAGEMENT,FUELS/LUBRCNT/GAS-FUELS,ALLSTAR BUSINESS SOLUTIONS LTD,98701,35.39
DEPARTMENT OF ENERGY AND CLIMATE CHANGE,THE COAL AUTHORITY,17/02/2016,FUEL (VEHICLE),FACILITIES MANAGEMENT,FUELS/LUBRCNT/GAS-FUELS,ALLSTAR BUSINESS SOLUTIONS LTD,98702,38.34
DEPARTMENT OF ENERGY AND CLIMATE CHANGE,THE COAL AUTHORITY,17/02/2016,FUEL (VEHICLE),FACILITIES MANAGEMENT,FUELS/LUBRCNT/GAS-FUELS,ALLSTAR BUSINESS SOLUTIONS LTD,98703,55.84
DEPARTMENT OF ENERGY AND CLIMATE CHANGE,THE COAL AUTHORITY,17/02/2016,FUEL (VEHICLE),FACILITIES MANAGEMENT,FUELS/LUBRCNT/GAS-FUELS,ALLSTAR BUSINESS SOLUTIONS LTD,98704,48.67
DEPARTMENT OF ENERGY AND CLIMATE CHANGE,THE COAL AUTHORITY,17/02/2016,FUEL (VEHICLE),FACILITIES MANAGEMENT,FUELS/LUBRCNT/GAS-FUELS,ALLSTAR BUSINESS SOLUTIONS LTD,98705,48.73
DEPARTMENT OF ENERGY AND CLIMATE CHANGE,THE COAL AUTHORITY,17/02/2016,FUEL (VEHICLE),FACILITIES MANAGEMENT,FUELS/LUBRCNT/GAS-FUELS,ALLSTAR BUSINESS SOLUTIONS LTD,98706,34.43
DEPARTMENT OF ENERGY AND CLIMATE CHANGE,THE COAL AUTHORITY,17/02/2016,FUEL (VEHICLE),MINE WATER TREATMENT SCHEMES,FUELS/LUBRCNT/GAS-FUELS,ALLSTAR BUSINESS SOLUTIONS LTD,98707,43.29
DEPARTMENT OF ENERGY AND CLIMATE CHANGE,THE COAL AUTHORITY,17/02/2016,FUEL (VEHICLE),SURFACE HAZARDS,FUELS/LUBRCNT/GAS-FUELS,ALLSTAR BUSINESS SOLUTIONS LTD,98708,50.98
DEPARTMENT OF ENERGY AND CLIMATE CHANGE,THE COAL AUTHORITY,17/02/2016,FUEL (VEHICLE),SURFACE HAZARDS,FUELS/LUBRCNT/GAS-FUELS,ALLSTAR BUSINESS SOLUTIONS LTD,98709,40.44
DEPARTMENT OF ENERGY AND CLIMATE CHANGE,THE COAL AUTHORITY,17/02/2016,FUEL (VEHICLE),SURFACE HAZARDS,FUELS/LUBRCNT/GAS-FUELS,ALLSTAR BUSINESS SOLUTIONS LTD,98710,80.90
DEPARTMENT OF ENERGY AND CLIMATE CHANGE,THE COAL AUTHORITY,17/02/2016,FUEL (VEHICLE),SURFACE HAZARDS,FUELS/LUBRCNT/GAS-FUELS,ALLSTAR BUSINESS SOLUTIONS LTD,98711,55.00
DEPARTMENT OF ENERGY AND CLIMATE CHANGE,THE COAL AUTHORITY,17/02/2016,FUEL (VEHICLE),SURFACE HAZARDS,FUELS/LUBRCNT/GAS-FUELS,ALLSTAR BUSINESS SOLUTIONS LTD,98712,51.82
DEPARTMENT OF ENERGY AND CLIMATE CHANGE,THE COAL AUTHORITY,17/02/2016,FUEL (VEHICLE),SURFACE HAZARDS,FUELS/LUBRCNT/GAS-FUELS,ALLSTAR BUSINESS SOLUTIONS LTD,98713,56.82
DEPARTMENT OF ENERGY AND CLIMATE CHANGE,THE COAL AUTHORITY,17/02/2016,FUEL (VEHICLE),SURFACE HAZARDS,FUELS/LUBRCNT/GAS-FUELS,ALLSTAR BUSINESS SOLUTIONS LTD,98714,52.29
DEPARTMENT OF ENERGY AND CLIMATE CHANGE,THE COAL AUTHORITY,17/02/2016,FUEL (VEHICLE),SURFACE HAZARDS,FUELS/LUBRCNT/GAS-FUELS,ALLSTAR BUSINESS SOLUTIONS LTD,98715,52.17
DEPARTMENT OF ENERGY AND CLIMATE CHANGE,THE COAL AUTHORITY,17/02/2016,FUEL (VEHICLE),SURFACE HAZARDS,FUELS/LUBRCNT/GAS-FUELS,ALLSTAR BUSINESS SOLUTIONS LTD,98716,60.22
DEPARTMENT OF ENERGY AND CLIMATE CHANGE,THE COAL AUTHORITY,19/02/2016,CONTRACTORS AND CLAIM COSTS,SURFACE HAZARDS,"CONSTRUCTION-BLD,REPR&MAINTNCE",AMH LTD,98721,1614.95
DEPARTMENT OF ENERGY AND CLIMATE CHANGE,THE COAL AUTHORITY,19/02/2016,CONTRACTORS AND CLAIM COSTS,SURFACE HAZARDS,PROF SER-OPERATIONAL SERVICES,AMH LTD,98721,828.20
DEPARTMENT OF ENERGY AND CLIMATE CHANGE,THE COAL AUTHORITY,11/02/2016,CENTRAL TRAINING BUDGET,BOSS PROGRAMME,ICT-SYSTEMS DELIVERY,SAPPHIRE SYSTEMS PLC,98722,1850.00
DEPARTMENT OF ENERGY AND CLIMATE CHANGE,THE COAL AUTHORITY,11/02/2016,CURR YR ADD-INTNGBLE INFO TECH,BOSS PROGRAMME,ICT-SYSTEMS DELIVERY,SAPPHIRE SYSTEMS PLC,98722,925.00
DEPARTMENT OF ENERGY AND CLIMATE CHANGE,THE COAL AUTHORITY,01/02/2016,CENTRAL TRAINING BUDGET,SHE,PROF SER LRNG&DEV-STAFF TRNING,RISK & SAFETY MANAGEMENT SERV,98723,499.00
DEPARTMENT OF ENERGY AND CLIMATE CHANGE,THE COAL AUTHORITY,18/02/2016,SAFETY CLOTHING,SHE,OPRTNL GOODS&SERV-CLOTHING,ROCKALL SAFETY,98724,10.00
DEPARTMENT OF ENERGY AND CLIMATE CHANGE,THE COAL AUTHORITY,18/02/2016,SAFETY CLOTHING,SHE,OPRTNL GOODS&SERV-CLOTHING,ROCKALL SAFETY,98725,10.00
DEPARTMENT OF ENERGY AND CLIMATE CHANGE,THE COAL AUTHORITY,18/02/2016,SAFETY CLOTHING,SHE,OPRTNL GOODS&SERV-CLOTHING,ROCKALL SAFETY,98726,10.00
DEPARTMENT OF ENERGY AND CLIMATE CHANGE,THE COAL AUTHORITY,18/02/2016,SAFETY CLOTHING,SHE,OPRTNL GOODS&SERV-CLOTHING,ROCKALL SAFETY,98727,10.00
DEPARTMENT OF ENERGY AND CLIMATE CHANGE,THE COAL AUTHORITY,14/02/2016,PAYMENTS TO AGENCIES FOR TEMPS,SURFACE HAZARDS,PROF SER TMP STFF-SPCLST CNTRT,VENTURE FINANCE PLC,98728,1082.90
DEPARTMENT OF ENERGY AND CLIMATE CHANGE,THE COAL AUTHORITY,16/02/2016,PAYMENTS TO AGENCIES FOR TEMPS,FACILITIES MANAGEMENT,PROF SER TMP STFF-TEMP WRKERS,THORN BAKER LIMITED,98730,288.00
DEPARTMENT OF ENERGY AND CLIMATE CHANGE,THE COAL AUTHORITY,12/02/2016,STAFF MEDICALS,HUMAN RESRCES&ORGNSTL DEVLPMNT,PERSONNEL RLTD-STAFF MEDICAL,BUPA WELLNESS FINANCE,98731,553.00
DEPARTMENT OF ENERGY AND CLIMATE CHANGE,THE COAL AUTHORITY,19/02/2016,CONTRACT HIRE VEHICLES,FACILITIES MANAGEMENT,VEHICLES-VEHICLE MAINTENANCE,PENTAGON,98732,237.10
DEPARTMENT OF ENERGY AND CLIMATE CHANGE,THE COAL AUTHORITY,11/02/2016,CONTRACT HIRE VEHICLES,SURFACE HAZARDS,VEHICLES-VEHICLE MAINTENANCE,ALLSCREENS NATIONWIDE LTD,98733,40.00
DEPARTMENT OF ENERGY AND CLIMATE CHANGE,THE COAL AUTHORITY,17/02/2016,CURR YR ADD-INTNGBLE INFO TECH,HISTORIC LIABILITIES,ICT-HARDWARE,EUROPEAN ELECTRONIQUE LTD,98734,13265.07
DEPARTMENT OF ENERGY AND CLIMATE CHANGE,THE COAL AUTHORITY,17/02/2016,CURR YR ADD-INTNGBLE INFO TECH,ICT-TECH SUPPORT&SYSTM DVLPMNT,ICT-HARDWARE,EUROPEAN ELECTRONIQUE LTD,98734,23582.36
DEPARTMENT OF ENERGY AND CLIMATE CHANGE,THE COAL AUTHORITY,17/02/2016,CURR YR ADD-INTNGBLE INFO TECH,MINE ENTRY INSPECTIONS,ICT-HARDWARE,EUROPEAN ELECTRONIQUE LTD,98734,13265.07
DEPARTMENT OF ENERGY AND CLIMATE CHANGE,THE COAL AUTHORITY,17/02/2016,CURR YR ADD-INTNGBLE INFO TECH,MINING INFORMATION COMMERCIAL,ICT-HARDWARE,EUROPEAN ELECTRONIQUE LTD,98734,53060.30
DEPARTMENT OF ENERGY AND CLIMATE CHANGE,THE COAL AUTHORITY,17/02/2016,CURR YR ADD-INTNGBLE INFO TECH,MINING INFORMATION WHOLESALE,ICT-HARDWARE,EUROPEAN ELECTRONIQUE LTD,98734,106120.60
DEPARTMENT OF ENERGY AND CLIMATE CHANGE,THE COAL AUTHORITY,17/02/2016,CURR YR ADD-INTNGBLE INFO TECH,PLANNING & LOCAL AUTH LIAISON,ICT-HARDWARE,EUROPEAN ELECTRONIQUE LTD,98734,13265.07
DEPARTMENT OF ENERGY AND CLIMATE CHANGE,THE COAL AUTHORITY,17/02/2016,CURR YR ADD-INTNGBLE INFO TECH,SURFACE HAZARDS,ICT-HARDWARE,EUROPEAN ELECTRONIQUE LTD,98734,13265.07
DEPARTMENT OF ENERGY AND CLIMATE CHANGE,THE COAL AUTHORITY,14/02/2016,CALL CHARGES,ICT -  SERVICE MANAGEMENT,ICT-TELECOMS,BRITISH TELECOMMUNICATIONS PLC,98735,39.01
DEPARTMENT OF ENERGY AND CLIMATE CHANGE,THE COAL AUTHORITY,14/02/2016,LINE RENTAL,ICT -  SERVICE MANAGEMENT,ICT-TELECOMS,BRITISH TELECOMMUNICATIONS PLC,98735,2312.75
DEPARTMENT OF ENERGY AND CLIMATE CHANGE,THE COAL AUTHORITY,14/02/2016,TELEPHONE - OTHER,ICT -  SERVICE MANAGEMENT,ICT-TELECOMS,BRITISH TELECOMMUNICATIONS PLC,98735,10.00
DEPARTMENT OF ENERGY AND CLIMATE CHANGE,THE COAL AUTHORITY,17/02/2016,PROPERTY RENTS PAYABLE,PROPERTY MANAGEMENT & SALES,FACILITIES-BUILDING MANAGEMENT,NETWORK RAIL,98742,404.09
DEPARTMENT OF ENERGY AND CLIMATE CHANGE,THE COAL AUTHORITY,17/02/2016,PROPERTY RENTS PAYABLE,PROPERTY MANAGEMENT & SALES,FACILITIES-BUILDING MANAGEMENT,NETWORK RAIL,98743,15.00
DEPARTMENT OF ENERGY AND CLIMATE CHANGE,THE COAL AUTHORITY,17/02/2016,PROPERTY RENTS PAYABLE,PROPERTY MANAGEMENT & SALES,FACILITIES-BUILDING MANAGEMENT,NETWORK RAIL,98744,541.82
DEPARTMENT OF ENERGY AND CLIMATE CHANGE,THE COAL AUTHORITY,17/02/2016,PROPERTY RENTS PAYABLE,PROPERTY MANAGEMENT & SALES,FACILITIES-BUILDING MANAGEMENT,NETWORK RAIL,98745,40.00
DEPARTMENT OF ENERGY AND CLIMATE CHANGE,THE COAL AUTHORITY,17/02/2016,PROPERTY RENTS PAYABLE,PROPERTY MANAGEMENT & SALES,FACILITIES-BUILDING MANAGEMENT,NETWORK RAIL,98746,20.00
DEPARTMENT OF ENERGY AND CLIMATE CHANGE,THE COAL AUTHORITY,01/02/2016,SUB PUMP STTN MAINTENANCE-OTHR,SUBSIDENCE PUMPING STATIONS,"CONSTRUCTION-BLD,REPR&MAINTNCE",OUSE&DERWNT INTERN DRAINGE BRD,98747,4927.94
DEPARTMENT OF ENERGY AND CLIMATE CHANGE,THE COAL AUTHORITY,01/02/2016,SUB PUMP STTN MAINTENANCE-PWER,SUBSIDENCE PUMPING STATIONS,ENERGY&UTILITIES-ELECTRICITY,OUSE&DERWNT INTERN DRAINGE BRD,98747,2248.00
DEPARTMENT OF ENERGY AND CLIMATE CHANGE,THE COAL AUTHORITY,01/02/2016,SUB PUMP STTN MAINTENANCE-OTHR,SUBSIDENCE PUMPING STATIONS,"CONSTRUCTION-BLD,REPR&MAINTNCE",OUSE&DERWNT INTERN DRAINGE BRD,98748,279.93
DEPARTMENT OF ENERGY AND CLIMATE CHANGE,THE COAL AUTHORITY,01/02/2016,SUB PUMP STTN MAINTENANCE-PWER,SUBSIDENCE PUMPING STATIONS,ENERGY&UTILITIES-ELECTRICITY,OUSE&DERWNT INTERN DRAINGE BRD,98748,611.14
DEPARTMENT OF ENERGY AND CLIMATE CHANGE,THE COAL AUTHORITY,01/02/2016,SUB PUMP STTN MAINTENANCE-OTHR,SUBSIDENCE PUMPING STATIONS,"CONSTRUCTION-BLD,REPR&MAINTNCE",OUSE&DERWNT INTERN DRAINGE BRD,98749,355.55
DEPARTMENT OF ENERGY AND CLIMATE CHANGE,THE COAL AUTHORITY,01/02/2016,SUB PUMP STTN MAINTENANCE-PWER,SUBSIDENCE PUMPING STATIONS,ENERGY&UTILITIES-ELECTRICITY,OUSE&DERWNT INTERN DRAINGE BRD,98749,576.76
DEPARTMENT OF ENERGY AND CLIMATE CHANGE,THE COAL AUTHORITY,01/02/2016,SUB PUMP STTN MAINTENANCE-OTHR,SUBSIDENCE PUMPING STATIONS,"CONSTRUCTION-BLD,REPR&MAINTNCE",OUSE&DERWNT INTERN DRAINGE BRD,98750,322.11
DEPARTMENT OF ENERGY AND CLIMATE CHANGE,THE COAL AUTHORITY,01/02/2016,SUB PUMP STTN MAINTENANCE-PWER,SUBSIDENCE PUMPING STATIONS,ENERGY&UTILITIES-ELECTRICITY,OUSE&DERWNT INTERN DRAINGE BRD,98750,394.67
DEPARTMENT OF ENERGY AND CLIMATE CHANGE,THE COAL AUTHORITY,01/02/2016,SUB PUMP STTN MAINTENANCE-OTHR,SUBSIDENCE PUMPING STATIONS,"CONSTRUCTION-BLD,REPR&MAINTNCE",OUSE&DERWNT INTERN DRAINGE BRD,98751,1711.42
DEPARTMENT OF ENERGY AND CLIMATE CHANGE,THE COAL AUTHORITY,01/02/2016,SUB PUMP STTN MAINTENANCE-PWER,SUBSIDENCE PUMPING STATIONS,ENERGY&UTILITIES-ELECTRICITY,OUSE&DERWNT INTERN DRAINGE BRD,98751,7875.47
DEPARTMENT OF ENERGY AND CLIMATE CHANGE,THE COAL AUTHORITY,01/02/2016,SUB PUMP STTN MAINTENANCE-PWER,SUBSIDENCE PUMPING STATIONS,ENERGY&UTILITIES-ELECTRICITY,OUSE&DERWNT INTERN DRAINGE BRD,98752,3176.11
DEPARTMENT OF ENERGY AND CLIMATE CHANGE,THE COAL AUTHORITY,01/02/2016,SUB PUMP STTN MAINTENANCE-PWER,SUBSIDENCE PUMPING STATIONS,"CONSTRUCTION-BLD,REPR&MAINTNCE",OUSE&DERWNT INTERN DRAINGE BRD,98752,1721.59
DEPARTMENT OF ENERGY AND CLIMATE CHANGE,THE COAL AUTHORITY,01/02/2016,SUB PUMP STTN MAINTENANCE-OTHR,SUBSIDENCE PUMPING STATIONS,ENERGY&UTILITIES-ELECTRICITY,OUSE&DERWNT INTERN DRAINGE BRD,98753,13298.72
DEPARTMENT OF ENERGY AND CLIMATE CHANGE,THE COAL AUTHORITY,01/02/2016,SUB PUMP STTN MAINTENANCE-PWER,SUBSIDENCE PUMPING STATIONS,ENERGY&UTILITIES-ELECTRICITY,OUSE&DERWNT INTERN DRAINGE BRD,98753,16217.57
DEPARTMENT OF ENERGY AND CLIMATE CHANGE,THE COAL AUTHORITY,01/02/2016,SUB PUMP STTN MAINTENANCE-OTHR,SUBSIDENCE PUMPING STATIONS,"CONSTRUCTION-BLD,REPR&MAINTNCE",OUSE&DERWNT INTERN DRAINGE BRD,98754,-30.00
DEPARTMENT OF ENERGY AND CLIMATE CHANGE,THE COAL AUTHORITY,01/02/2016,SUB PUMP STTN MAINTENANCE-PWER,SUBSIDENCE PUMPING STATIONS,ENERGY&UTILITIES-ELECTRICITY,OUSE&DERWNT INTERN DRAINGE BRD,98754,-200.00
DEPARTMENT OF ENERGY AND CLIMATE CHANGE,THE COAL AUTHORITY,16/02/2016,SUB PUMP STTN MAINTENANCE-OTHR,SUBSIDENCE PUMPING STATIONS,"CONSTRUCTION-BLD,REPR&MAINTNCE",SELBY AREA INTERNAL DRAIN BRD,98755,50.00
DEPARTMENT OF ENERGY AND CLIMATE CHANGE,THE COAL AUTHORITY,16/02/2016,SUB PUMP STTN MAINTENANCE-OTHR,SUBSIDENCE PUMPING STATIONS,"CONSTRUCTION-BLD,REPR&MAINTNCE",SELBY AREA INTERNAL DRAIN BRD,98756,718.67
DEPARTMENT OF ENERGY AND CLIMATE CHANGE,THE COAL AUTHORITY,16/02/2016,SUB PUMP STTN MAINTENANCE-OTHR,SUBSIDENCE PUMPING STATIONS,"CONSTRUCTION-BLD,REPR&MAINTNCE",SELBY AREA INTERNAL DRAIN BRD,98757,970.88
DEPARTMENT OF ENERGY AND CLIMATE CHANGE,THE COAL AUTHORITY,16/02/2016,SUB PUMP STTN MAINTENANCE-PWER,SUBSIDENCE PUMPING STATIONS,ENERGY&UTILITIES-ELECTRICITY,SELBY AREA INTERNAL DRAIN BRD,98757,4820.52
DEPARTMENT OF ENERGY AND CLIMATE CHANGE,THE COAL AUTHORITY,16/02/2016,SUB PUMP STTN MAINTENANCE-OTHR,SUBSIDENCE PUMPING STATIONS,"CONSTRUCTION-BLD,REPR&MAINTNCE",SELBY AREA INTERNAL DRAIN BRD,98758,1759.42
DEPARTMENT OF ENERGY AND CLIMATE CHANGE,THE COAL AUTHORITY,16/02/2016,SUB PUMP STTN MAINTENANCE-OTHR,SUBSIDENCE PUMPING STATIONS,ICT-TELECOMS,SELBY AREA INTERNAL DRAIN BRD,98758,22.50
DEPARTMENT OF ENERGY AND CLIMATE CHANGE,THE COAL AUTHORITY,16/02/2016,SUB PUMP STTN MAINTENANCE-PWER,SUBSIDENCE PUMPING STATIONS,ENERGY&UTILITIES-ELECTRICITY,SELBY AREA INTERNAL DRAIN BRD,98758,13717.96
DEPARTMENT OF ENERGY AND CLIMATE CHANGE,THE COAL AUTHORITY,16/02/2016,SUB PUMP STTN MAINTENANCE-OTHR,SUBSIDENCE PUMPING STATIONS,"CONSTRUCTION-BLD,REPR&MAINTNCE",SELBY AREA INTERNAL DRAIN BRD,98759,751.90
DEPARTMENT OF ENERGY AND CLIMATE CHANGE,THE COAL AUTHORITY,16/02/2016,SUB PUMP STTN MAINTENANCE-PWER,SUBSIDENCE PUMPING STATIONS,ENERGY&UTILITIES-ELECTRICITY,SELBY AREA INTERNAL DRAIN BRD,98759,3021.12
DEPARTMENT OF ENERGY AND CLIMATE CHANGE,THE COAL AUTHORITY,17/02/2016,CONSULTANTS OPERATIONS,SUBSIDENCE PUMPING STATIONS,PROF SER TMP STFF-SPCLST CNTRT,MOTT MACDONALD LTD,98762,5705.71
DEPARTMENT OF ENERGY AND CLIMATE CHANGE,THE COAL AUTHORITY,19/02/2016,OUTSOURCED MANAGEMENT TIPS,TIP MAINTENANCE/IMPROVEMENTS,PROF SER TECH-ENGINEERING SER,ATKINS LIMITED,98763,552.00
DEPARTMENT OF ENERGY AND CLIMATE CHANGE,THE COAL AUTHORITY,19/02/2016,M/W LAND AGENTS (AQUISITIONS),DEFRA PROGRAMME,PROF SER TECH-ENGINEERING SER,ATKINS LIMITED,98764,225.00
DEPARTMENT OF ENERGY AND CLIMATE CHANGE,THE COAL AUTHORITY,17/02/2016,CONTRACTORS AND CLAIM COSTS,SUBSIDENCE,PROF SER-LEGAL SERVICES,WARDELL ARMSTRONG LLP,98765,11781.25
DEPARTMENT OF ENERGY AND CLIMATE CHANGE,THE COAL AUTHORITY,17/02/2016,EXTERNAL COMMERCIAL COSTS,PS&S - COMMERCIAL,CONSTRUCTION-MAIN CONTRACTORS,SOIL ENGINEERING GEOSERVICES L,98767,9942.03
DEPARTMENT OF ENERGY AND CLIMATE CHANGE,THE COAL AUTHORITY,05/02/2016,CURR YR ADDNS SUBS PMPNG STNS,SUBSIDENCE PUMPING STATIONS,PSPES NOT APPLICABLE,JEREMY BENN ASSOCIATES LTD,98768,4050.00
DEPARTMENT OF ENERGY AND CLIMATE CHANGE,THE COAL AUTHORITY,05/02/2016,CURR YR ADDNS SUBS PMPNG STNS,SUBSIDENCE PUMPING STATIONS,PSPES NOT APPLICABLE,JEREMY BENN ASSOCIATES LTD,98768,2025.00
DEPARTMENT OF ENERGY AND CLIMATE CHANGE,THE COAL AUTHORITY,05/02/2016,CURR YR ADDNS SUBS PMPNG STNS,SUBSIDENCE PUMPING STATIONS,PSPES NOT APPLICABLE,JEREMY BENN ASSOCIATES LTD,98768,2025.00
DEPARTMENT OF ENERGY AND CLIMATE CHANGE,THE COAL AUTHORITY,08/02/2016,M/W POWER COSTS,MINE WATER TREATMENT SCHEMES,ENERGY&UTILITIES-ELECTRICITY,NATIONAL COAL MINING MUSEUM,98769,13069.31
DEPARTMENT OF ENERGY AND CLIMATE CHANGE,THE COAL AUTHORITY,19/02/2015,PLANT MAINTENANCE,FACILITIES MANAGEMENT,FACILITIES-BUILDING MANAGEMENT,CBRE MANAGED SERVICES LTD,98770,198.66
DEPARTMENT OF ENERGY AND CLIMATE CHANGE,THE COAL AUTHORITY,19/02/2016,SUB PUMP STTN MAINTENANCE-PWER,SUBSIDENCE PUMPING STATIONS,ENERGY&UTILITIES-ELECTRICITY,BLACK DRAIN DRAINAGE BOARD,98772,53.90
DEPARTMENT OF ENERGY AND CLIMATE CHANGE,THE COAL AUTHORITY,11/02/2016,M/W POWER COSTS,MINE WATER TREATMENT SCHEMES,ENERGY&UTILITIES-ELECTRICITY,BRITISH GAS BUSINESS,98777,1185.81
DEPARTMENT OF ENERGY AND CLIMATE CHANGE,THE COAL AUTHORITY,11/02/2016,M/W POWER COSTS,MINE WATER TREATMENT SCHEMES,ENERGY&UTILITIES-ELECTRICITY,BRITISH GAS BUSINESS,98777,1953.86
DEPARTMENT OF ENERGY AND CLIMATE CHANGE,THE COAL AUTHORITY,11/02/2016,M/W POWER COSTS,MINE WATER TREATMENT SCHEMES,ENERGY&UTILITIES-ELECTRICITY,BRITISH GAS BUSINESS,98777,625.15
DEPARTMENT OF ENERGY AND CLIMATE CHANGE,THE COAL AUTHORITY,11/02/2016,M/W POWER COSTS,MINE WATER TREATMENT SCHEMES,ENERGY&UTILITIES-ELECTRICITY,BRITISH GAS BUSINESS,98777,544.44
DEPARTMENT OF ENERGY AND CLIMATE CHANGE,THE COAL AUTHORITY,11/02/2016,M/W POWER COSTS,MINE WATER TREATMENT SCHEMES,ENERGY&UTILITIES-ELECTRICITY,BRITISH GAS BUSINESS,98777,1981.76
DEPARTMENT OF ENERGY AND CLIMATE CHANGE,THE COAL AUTHORITY,11/02/2016,M/W POWER COSTS,MINE WATER TREATMENT SCHEMES,ENERGY&UTILITIES-ELECTRICITY,BRITISH GAS BUSINESS,98777,870.08
DEPARTMENT OF ENERGY AND CLIMATE CHANGE,THE COAL AUTHORITY,11/02/2016,M/W POWER COSTS,MINE WATER TREATMENT SCHEMES,ENERGY&UTILITIES-ELECTRICITY,BRITISH GAS BUSINESS,98777,3305.49
DEPARTMENT OF ENERGY AND CLIMATE CHANGE,THE COAL AUTHORITY,11/02/2016,M/W POWER COSTS,MINE WATER TREATMENT SCHEMES,ENERGY&UTILITIES-ELECTRICITY,BRITISH GAS BUSINESS,98777,3150.90
DEPARTMENT OF ENERGY AND CLIMATE CHANGE,THE COAL AUTHORITY,11/02/2016,M/W POWER COSTS,MINE WATER TREATMENT SCHEMES,ENERGY&UTILITIES-ELECTRICITY,BRITISH GAS BUSINESS,98777,4153.81
DEPARTMENT OF ENERGY AND CLIMATE CHANGE,THE COAL AUTHORITY,11/02/2016,M/W POWER COSTS,MINE WATER TREATMENT SCHEMES,ENERGY&UTILITIES-ELECTRICITY,BRITISH GAS BUSINESS,98777,409.24
DEPARTMENT OF ENERGY AND CLIMATE CHANGE,THE COAL AUTHORITY,11/02/2016,M/W POWER COSTS,MINE WATER TREATMENT SCHEMES,ENERGY&UTILITIES-ELECTRICITY,BRITISH GAS BUSINESS,98777,882.61
DEPARTMENT OF ENERGY AND CLIMATE CHANGE,THE COAL AUTHORITY,11/02/2016,M/W POWER COSTS,MINE WATER TREATMENT SCHEMES,ENERGY&UTILITIES-ELECTRICITY,BRITISH GAS BUSINESS,98777,424.34
DEPARTMENT OF ENERGY AND CLIMATE CHANGE,THE COAL AUTHORITY,11/02/2016,M/W POWER COSTS,MINE WATER TREATMENT SCHEMES,ENERGY&UTILITIES-ELECTRICITY,BRITISH GAS BUSINESS,98777,9.65
DEPARTMENT OF ENERGY AND CLIMATE CHANGE,THE COAL AUTHORITY,11/02/2016,M/W POWER COSTS,MINE WATER TREATMENT SCHEMES,ENERGY&UTILITIES-ELECTRICITY,BRITISH GAS BUSINESS,98777,7696.83
DEPARTMENT OF ENERGY AND CLIMATE CHANGE,THE COAL AUTHORITY,11/02/2016,M/W POWER COSTS,MINE WATER TREATMENT SCHEMES,ENERGY&UTILITIES-ELECTRICITY,BRITISH GAS BUSINESS,98777,1314.73
DEPARTMENT OF ENERGY AND CLIMATE CHANGE,THE COAL AUTHORITY,11/02/2016,M/W POWER COSTS,MINE WATER TREATMENT SCHEMES,ENERGY&UTILITIES-ELECTRICITY,BRITISH GAS BUSINESS,98777,1042.36
DEPARTMENT OF ENERGY AND CLIMATE CHANGE,THE COAL AUTHORITY,11/02/2016,M/W POWER COSTS,MINE WATER TREATMENT SCHEMES,ENERGY&UTILITIES-ELECTRICITY,BRITISH GAS BUSINESS,98777,3481.88
DEPARTMENT OF ENERGY AND CLIMATE CHANGE,THE COAL AUTHORITY,11/02/2016,M/W POWER COSTS,MINE WATER TREATMENT SCHEMES,ENERGY&UTILITIES-ELECTRICITY,BRITISH GAS BUSINESS,98777,1456.32
DEPARTMENT OF ENERGY AND CLIMATE CHANGE,THE COAL AUTHORITY,11/02/2016,M/W POWER COSTS,MINE WATER TREATMENT SCHEMES,ENERGY&UTILITIES-ELECTRICITY,BRITISH GAS BUSINESS,98777,2334.82
DEPARTMENT OF ENERGY AND CLIMATE CHANGE,THE COAL AUTHORITY,11/02/2016,M/W POWER COSTS,MINE WATER TREATMENT SCHEMES,ENERGY&UTILITIES-ELECTRICITY,BRITISH GAS BUSINESS,98777,140.64
DEPARTMENT OF ENERGY AND CLIMATE CHANGE,THE COAL AUTHORITY,11/02/2016,M/W POWER COSTS,MINE WATER TREATMENT SCHEMES,ENERGY&UTILITIES-ELECTRICITY,BRITISH GAS BUSINESS,98777,514.98
DEPARTMENT OF ENERGY AND CLIMATE CHANGE,THE COAL AUTHORITY,11/02/2016,M/W POWER COSTS,MINE WATER TREATMENT SCHEMES,ENERGY&UTILITIES-ELECTRICITY,BRITISH GAS BUSINESS,98777,1305.15
DEPARTMENT OF ENERGY AND CLIMATE CHANGE,THE COAL AUTHORITY,11/02/2016,M/W POWER COSTS,MINE WATER TREATMENT SCHEMES,ENERGY&UTILITIES-ELECTRICITY,BRITISH GAS BUSINESS,98777,825.96
DEPARTMENT OF ENERGY AND CLIMATE CHANGE,THE COAL AUTHORITY,11/02/2016,PROPERTY RATES PAYABLE,HISTORIC LIABILITIES,ENERGY&UTILITIES-ELECTRICITY,BRITISH GAS BUSINESS,98777,106.73
DEPARTMENT OF ENERGY AND CLIMATE CHANGE,THE COAL AUTHORITY,11/02/2016,PROPERTY RATES PAYABLE,HISTORIC LIABILITIES,ENERGY&UTILITIES-ELECTRICITY,BRITISH GAS BUSINESS,98777,192.63
DEPARTMENT OF ENERGY AND CLIMATE CHANGE,THE COAL AUTHORITY,11/02/2016,SUB PUMP STTN MAINTENANCE-PWER,SUBSIDENCE PUMPING STATIONS,ENERGY&UTILITIES-ELECTRICITY,BRITISH GAS BUSINESS,98777,400.05
DEPARTMENT OF ENERGY AND CLIMATE CHANGE,THE COAL AUTHORITY,11/02/2016,SUB PUMP STTN MAINTENANCE-PWER,SUBSIDENCE PUMPING STATIONS,ENERGY&UTILITIES-ELECTRICITY,BRITISH GAS BUSINESS,98777,8.04
DEPARTMENT OF ENERGY AND CLIMATE CHANGE,THE COAL AUTHORITY,11/02/2016,SUB PUMP STTN MAINTENANCE-PWER,SUBSIDENCE PUMPING STATIONS,ENERGY&UTILITIES-ELECTRICITY,BRITISH GAS BUSINESS,98777,53.50
DEPARTMENT OF ENERGY AND CLIMATE CHANGE,THE COAL AUTHORITY,11/02/2016,SUB PUMP STTN MAINTENANCE-PWER,SUBSIDENCE PUMPING STATIONS,ENERGY&UTILITIES-ELECTRICITY,BRITISH GAS BUSINESS,98777,202.29
DEPARTMENT OF ENERGY AND CLIMATE CHANGE,THE COAL AUTHORITY,11/02/2016,SUB PUMP STTN MAINTENANCE-PWER,SUBSIDENCE PUMPING STATIONS,ENERGY&UTILITIES-ELECTRICITY,BRITISH GAS BUSINESS,98777,557.89
DEPARTMENT OF ENERGY AND CLIMATE CHANGE,THE COAL AUTHORITY,11/02/2016,SUB PUMP STTN MAINTENANCE-PWER,SUBSIDENCE PUMPING STATIONS,ENERGY&UTILITIES-ELECTRICITY,BRITISH GAS BUSINESS,98777,478.83
DEPARTMENT OF ENERGY AND CLIMATE CHANGE,THE COAL AUTHORITY,11/02/2016,SUB PUMP STTN MAINTENANCE-PWER,SUBSIDENCE PUMPING STATIONS,ENERGY&UTILITIES-ELECTRICITY,BRITISH GAS BUSINESS,98777,78.88
DEPARTMENT OF ENERGY AND CLIMATE CHANGE,THE COAL AUTHORITY,11/02/2016,SUB PUMP STTN MAINTENANCE-PWER,SUBSIDENCE PUMPING STATIONS,ENERGY&UTILITIES-ELECTRICITY,BRITISH GAS BUSINESS,98777,44.83
DEPARTMENT OF ENERGY AND CLIMATE CHANGE,THE COAL AUTHORITY,11/02/2016,SUB PUMP STTN MAINTENANCE-PWER,SUBSIDENCE PUMPING STATIONS,ENERGY&UTILITIES-ELECTRICITY,BRITISH GAS BUSINESS,98777,541.04
DEPARTMENT OF ENERGY AND CLIMATE CHANGE,THE COAL AUTHORITY,11/02/2016,SUB PUMP STTN MAINTENANCE-PWER,SUBSIDENCE PUMPING STATIONS,ENERGY&UTILITIES-ELECTRICITY,BRITISH GAS BUSINESS,98777,1509.70
DEPARTMENT OF ENERGY AND CLIMATE CHANGE,THE COAL AUTHORITY,11/02/2016,SUB PUMP STTN MAINTENANCE-PWER,SUBSIDENCE PUMPING STATIONS,ENERGY&UTILITIES-ELECTRICITY,BRITISH GAS BUSINESS,98777,254.82
DEPARTMENT OF ENERGY AND CLIMATE CHANGE,THE COAL AUTHORITY,11/02/2016,SUB PUMP STTN MAINTENANCE-PWER,SUBSIDENCE PUMPING STATIONS,ENERGY&UTILITIES-ELECTRICITY,BRITISH GAS BUSINESS,98777,23.59
DEPARTMENT OF ENERGY AND CLIMATE CHANGE,THE COAL AUTHORITY,11/02/2016,SUB PUMP STTN MAINTENANCE-PWER,SUBSIDENCE PUMPING STATIONS,ENERGY&UTILITIES-ELECTRICITY,BRITISH GAS BUSINESS,98777,166.04
DEPARTMENT OF ENERGY AND CLIMATE CHANGE,THE COAL AUTHORITY,11/02/2016,SUB PUMP STTN MAINTENANCE-PWER,SUBSIDENCE PUMPING STATIONS,ENERGY&UTILITIES-ELECTRICITY,BRITISH GAS BUSINESS,98777,59.99
DEPARTMENT OF ENERGY AND CLIMATE CHANGE,THE COAL AUTHORITY,11/02/2016,SUB PUMP STTN MAINTENANCE-PWER,SUBSIDENCE PUMPING STATIONS,ENERGY&UTILITIES-ELECTRICITY,BRITISH GAS BUSINESS,98777,199.41
DEPARTMENT OF ENERGY AND CLIMATE CHANGE,THE COAL AUTHORITY,11/02/2016,SUB PUMP STTN MAINTENANCE-PWER,SUBSIDENCE PUMPING STATIONS,ENERGY&UTILITIES-ELECTRICITY,BRITISH GAS BUSINESS,98777,231.73
DEPARTMENT OF ENERGY AND CLIMATE CHANGE,THE COAL AUTHORITY,22/02/2016,OTHER BANK CHARGES,FINANCE,PROF SER FNCL-CORPTE FINANCE,CITIBANK,98782,112.89
DEPARTMENT OF ENERGY AND CLIMATE CHANGE,THE COAL AUTHORITY,22/02/2016,OTHER BANK CHARGES,FINANCE,PROF SER FNCL-CORPTE FINANCE,CITIBANK,98783,25.00
DEPARTMENT OF ENERGY AND CLIMATE CHANGE,THE COAL AUTHORITY,18/02/2016,CONSULTANCY,BOSS PROGRAMME,ICT-SYSTEMS DELIVERY,SAPPHIRE SYSTEMS PLC,98784,23.71
DEPARTMENT OF ENERGY AND CLIMATE CHANGE,THE COAL AUTHORITY,18/02/2016,CONTRACTORS AND CLAIM COSTS,MINE ENTRY INSPECTIONS,CONSTRUCTION-MAIN CONTRACTORS,BALFOUR BEATTY CIVIL ENG LTD,98785,327.50
DEPARTMENT OF ENERGY AND CLIMATE CHANGE,THE COAL AUTHORITY,18/02/2016,CONTRACTORS AND CLAIM COSTS,SURFACE HAZARDS,CONSTRUCTION-MAIN CONTRACTORS,BALFOUR BEATTY CIVIL ENG LTD,98786,195.20
DEPARTMENT OF ENERGY AND CLIMATE CHANGE,THE COAL AUTHORITY,18/02/2016,CONTRACTORS AND CLAIM COSTS,SURFACE HAZARDS,CONSTRUCTION-MAIN CONTRACTORS,BALFOUR BEATTY CIVIL ENG LTD,98787,449.50
DEPARTMENT OF ENERGY AND CLIMATE CHANGE,THE COAL AUTHORITY,18/02/2016,CONTRACTORS AND CLAIM COSTS,SURFACE HAZARDS,CONSTRUCTION-MAIN CONTRACTORS,BALFOUR BEATTY CIVIL ENG LTD,98788,234.60
DEPARTMENT OF ENERGY AND CLIMATE CHANGE,THE COAL AUTHORITY,18/02/2016,CONTRACTORS AND CLAIM COSTS,MINE ENTRY INSPECTIONS,CONSTRUCTION-MAIN CONTRACTORS,BALFOUR BEATTY CIVIL ENG LTD,98789,234.60
DEPARTMENT OF ENERGY AND CLIMATE CHANGE,THE COAL AUTHORITY,18/02/2016,CONTRACTORS AND CLAIM COSTS,SURFACE HAZARDS,CONSTRUCTION-MAIN CONTRACTORS,BALFOUR BEATTY CIVIL ENG LTD,98790,146.40
DEPARTMENT OF ENERGY AND CLIMATE CHANGE,THE COAL AUTHORITY,18/02/2016,CONTRACTORS AND CLAIM COSTS,SURFACE HAZARDS,CONSTRUCTION-MAIN CONTRACTORS,BALFOUR BEATTY CIVIL ENG LTD,98791,146.40
DEPARTMENT OF ENERGY AND CLIMATE CHANGE,THE COAL AUTHORITY,18/02/2016,CONTRACTORS AND CLAIM COSTS,SURFACE HAZARDS,CONSTRUCTION-MAIN CONTRACTORS,BALFOUR BEATTY CIVIL ENG LTD,98792,7780.40
DEPARTMENT OF ENERGY AND CLIMATE CHANGE,THE COAL AUTHORITY,18/02/2016,CONTRACTORS AND CLAIM COSTS,SURFACE HAZARDS,CONSTRUCTION-MAIN CONTRACTORS,BALFOUR BEATTY CIVIL ENG LTD,98793,5544.82
DEPARTMENT OF ENERGY AND CLIMATE CHANGE,THE COAL AUTHORITY,18/02/2016,CONTRACTORS AND CLAIM COSTS,MINE ENTRY INSPECTIONS,CONSTRUCTION-MAIN CONTRACTORS,BALFOUR BEATTY CIVIL ENG LTD,98794,443.74
DEPARTMENT OF ENERGY AND CLIMATE CHANGE,THE COAL AUTHORITY,19/02/2016,PLANT MAINTENANCE,FACILITIES MANAGEMENT,FACILITIES-BUILDING MANAGEMENT,MANSFIELD REFRIGERATION & AIR,98795,585.00
DEPARTMENT OF ENERGY AND CLIMATE CHANGE,THE COAL AUTHORITY,18/02/2016,SITE SERVICES,FACILITIES MANAGEMENT,WASTE MANAGEMENT-WSTE MNGT SER,BANNER BUSINESS SOLUTIONS,98796,43.20
DEPARTMENT OF ENERGY AND CLIMATE CHANGE,THE COAL AUTHORITY,17/02/2016,STATIONERY,FACILITIES MANAGEMENT,OFFICE SOLUTIONS-OFFCE SPPLIES,BANNER BUSINESS SOLUTIONS,98797,0.68
DEPARTMENT OF ENERGY AND CLIMATE CHANGE,THE COAL AUTHORITY,16/02/2016,SAFETY CLOTHING,SHE,OPRTNL GOODS&SERV-CLOTHING,ARCO LIMITED,98798,102.93
DEPARTMENT OF ENERGY AND CLIMATE CHANGE,THE COAL AUTHORITY,19/02/2016,SITE SERVICES,FACILITIES MANAGEMENT,FACILITIES-BUILDING MANAGEMENT,PHS GROUP,98799,1265.76
DEPARTMENT OF ENERGY AND CLIMATE CHANGE,THE COAL AUTHORITY,16/02/2016,SITE MAINTENANCE,FACILITIES MANAGEMENT,FACILITIES-BUILDING MANAGEMENT,ULYETT LANDSCAPES LIMITED,98800,180.00
DEPARTMENT OF ENERGY AND CLIMATE CHANGE,THE COAL AUTHORITY,22/02/2016,M/W RENTS PAYABLE,MINE WATER TREATMENT SCHEMES,FACILITIES-BUILDING MANAGEMENT,MR B T NEWTON,98801,95.00
DEPARTMENT OF ENERGY AND CLIMATE CHANGE,THE COAL AUTHORITY,22/02/2016,M/W RENTS PAYABLE,DEFRA PROGRAMME,FACILITIES-BUILDING MANAGEMENT,HAGGS BANK BUNKHOUSE,98802,200.00
DEPARTMENT OF ENERGY AND CLIMATE CHANGE,THE COAL AUTHORITY,21/02/2016,PAYMENTS TO AGENCIES FOR TEMPS,ENVIRONMENT - ZERO COST PROG,PROF SER TMP STFF-SPCLST CNTRT,HUXLEY ASSOCIATES,98803,5640.00
DEPARTMENT OF ENERGY AND CLIMATE CHANGE,THE COAL AUTHORITY,19/02/2016,CONSULTANCY - PROPERTY SALES,PROPERTY MANAGEMENT & SALES,PROF SER-LEGAL SERVICES,SVA PROPERTY AUCTIONS LTD,98804,1230.00
DEPARTMENT OF ENERGY AND CLIMATE CHANGE,THE COAL AUTHORITY,17/02/2016,M/W CONTRCTR OPRNTL MTHLY MAIN,MINE WATER TREATMENT SCHEMES,CONSTRUCTION-MAIN CONTRACTORS,NATIONAL COAL MINING MUSEUM,98805,14472.62
DEPARTMENT OF ENERGY AND CLIMATE CHANGE,THE COAL AUTHORITY,19/02/2016,IT-INFRASTRUCTURE MANAGEMENT,ICT-TECH SUPPORT&SYSTM DVLPMNT,ICT-MAINTENANCE & SUPPORT,HERALD INFORMATION SERVICES,98806,610.00
DEPARTMENT OF ENERGY AND CLIMATE CHANGE,THE COAL AUTHORITY,22/02/2016,CENTRAL TRAINING BUDGET,SHE,PROF SER LRNG&DEV-STAFF TRNING,EASYBOOK TRAINING LTD,98807,295.00
DEPARTMENT OF ENERGY AND CLIMATE CHANGE,THE COAL AUTHORITY,19/02/2016,M/W CNTRCTR-OPRTNL MNTLY TSKS,MINE WATER TREATMENT SCHEMES,PROF SER TECH-ENGINEERING SER,MOTT MACDONALD LTD,98808,7782.12
DEPARTMENT OF ENERGY AND CLIMATE CHANGE,THE COAL AUTHORITY,19/02/2016,M/W SCOPING/FEASIBILITY/CONCEP,DEFRA PROGRAMME,PROF SER TECH-ENGINEERING SER,ATKINS LIMITED,98809,1472.50
DEPARTMENT OF ENERGY AND CLIMATE CHANGE,THE COAL AUTHORITY,19/02/2016,M/W SCOPING/FEASIBILITY/CONCEP,DEFRA PROGRAMME,PROF SER TECH-ENGINEERING SER,ATKINS LIMITED,98810,2979.40
DEPARTMENT OF ENERGY AND CLIMATE CHANGE,THE COAL AUTHORITY,18/02/2016,R&D-EXTERNAL COSTS,DEFRA PROGRAMME,PROF SER TECH-ENGINEERING SER,NEWCASTLE UNIVERSITY,98811,32926.00
DEPARTMENT OF ENERGY AND CLIMATE CHANGE,THE COAL AUTHORITY,20/02/2016,M/W RENTS PAYABLE,DEFRA - WHEAL JANE,FACILITIES-BUILDING MANAGEMENT,BROWNFIELD INVESTMENTS LTD,98812,19812.50
DEPARTMENT OF ENERGY AND CLIMATE CHANGE,THE COAL AUTHORITY,18/02/2016,CONSULTANTS-INVESTIGATIONS,DEFRA PROGRAMME,PROF SER CNSLTNCY-TCHNL CNSLTY,WRC PLC,98813,7610.00
DEPARTMENT OF ENERGY AND CLIMATE CHANGE,THE COAL AUTHORITY,17/02/2016,M/W RENTS PAYABLE,MINE WATER TREATMENT SCHEMES,FACILITIES-BUILDING MANAGEMENT,NORTH TYNESIDE COUNCIL,98814,600.00
DEPARTMENT OF ENERGY AND CLIMATE CHANGE,THE COAL AUTHORITY,23/02/2016,CONSULTANTS OPERATIONS,SUBSIDENCE PUMPING STATIONS,PROF SER TMP STFF-SPCLST CNTRT,98762 MOTTS,98815,-5705.71
DEPARTMENT OF ENERGY AND CLIMATE CHANGE,THE COAL AUTHORITY,23/02/2016,CURR YR ADDNS SUBS PMPNG STNS,SUBSIDENCE PUMPING STATIONS,PROF SER TMP STFF-SPCLST CNTRT,98762 MOTTS,98815,1901.90
DEPARTMENT OF ENERGY AND CLIMATE CHANGE,THE COAL AUTHORITY,23/02/2016,CURR YR ADDNS SUBS PMPNG STNS,SUBSIDENCE PUMPING STATIONS,PROF SER TMP STFF-SPCLST CNTRT,98762 MOTTS,98815,1901.91
DEPARTMENT OF ENERGY AND CLIMATE CHANGE,THE COAL AUTHORITY,23/02/2016,CURR YR ADDNS SUBS PMPNG STNS,SUBSIDENCE PUMPING STATIONS,PROF SER TMP STFF-SPCLST CNTRT,98762 MOTTS,98815,1901.90
DEPARTMENT OF ENERGY AND CLIMATE CHANGE,THE COAL AUTHORITY,23/02/2016,MILEAGE PAYMENTS,SURFACE HAZARDS,FUELS/LUBRCNT/GAS-FUELS,STAFF EXPENSES CONTROL,98821,271.35
DEPARTMENT OF ENERGY AND CLIMATE CHANGE,THE COAL AUTHORITY,23/02/2016,MILEAGE PAYMENTS,SHE,FUELS/LUBRCNT/GAS-FUELS,STAFF EXPENSES CONTROL,98822,13.05
DEPARTMENT OF ENERGY AND CLIMATE CHANGE,THE COAL AUTHORITY,23/02/2016,INCIDENTALS,CORPORATE PROJECT OFFICE,VEHICLES-FLEET MANAGEMENT,STAFF EXPENSES CONTROL,98823,8.75
DEPARTMENT OF ENERGY AND CLIMATE CHANGE,THE COAL AUTHORITY,23/02/2016,SUBSISTENCE ALLOWANCES,CORPORATE PROJECT OFFICE,FACILITIES - FOOD,STAFF EXPENSES CONTROL,98823,17.89
DEPARTMENT OF ENERGY AND CLIMATE CHANGE,THE COAL AUTHORITY,23/02/2016,SUBSISTENCE ALLOWANCES,MINING INFORMATION COMMERCIAL,FACILITIES - FOOD,STAFF EXPENSES CONTROL,98823,10.95
DEPARTMENT OF ENERGY AND CLIMATE CHANGE,THE COAL AUTHORITY,23/02/2016,INCIDENTALS,ENVIRONMENT - ZERO COST PROG,VEHICLES-FLEET MANAGEMENT,STAFF EXPENSES CONTROL,98824,3.90
DEPARTMENT OF ENERGY AND CLIMATE CHANGE,THE COAL AUTHORITY,23/02/2016,MILEAGE PAYMENTS,BOARD,FUELS/LUBRCNT/GAS-FUELS,STAFF EXPENSES CONTROL,98825,98.10
DEPARTMENT OF ENERGY AND CLIMATE CHANGE,THE COAL AUTHORITY,23/02/2016,MILEAGE PAYMENTS,SURFACE HAZARDS,FUELS/LUBRCNT/GAS-FUELS,STAFF EXPENSES CONTROL,98826,287.10
DEPARTMENT OF ENERGY AND CLIMATE CHANGE,THE COAL AUTHORITY,23/02/2016,MILEAGE PAYMENTS,ICT-TECH SUPPORT&SYSTM DVLPMNT,FUELS/LUBRCNT/GAS-FUELS,STAFF EXPENSES CONTROL,98827,27.90
DEPARTMENT OF ENERGY AND CLIMATE CHANGE,THE COAL AUTHORITY,23/02/2016,FARES - PUBLIC TRANSPORT,MINING INFORMATION COMMERCIAL,TRAVEL&EVENTS-TAXI,STAFF EXPENSES CONTROL,98828,38.00
DEPARTMENT OF ENERGY AND CLIMATE CHANGE,THE COAL AUTHORITY,23/02/2016,INCIDENTALS,MINING INFORMATION COMMERCIAL,VEHICLES-FLEET MANAGEMENT,STAFF EXPENSES CONTROL,98828,67.08
DEPARTMENT OF ENERGY AND CLIMATE CHANGE,THE COAL AUTHORITY,23/02/2016,MILEAGE PAYMENTS,MINING INFORMATION COMMERCIAL,FUELS/LUBRCNT/GAS-FUELS,STAFF EXPENSES CONTROL,98828,146.25
DEPARTMENT OF ENERGY AND CLIMATE CHANGE,THE COAL AUTHORITY,23/02/2016,SUBSISTENCE ALLOWANCES,CHIEF EXECUTIVE,FACILITIES - FOOD,STAFF EXPENSES CONTROL,98828,12.60
DEPARTMENT OF ENERGY AND CLIMATE CHANGE,THE COAL AUTHORITY,23/02/2016,SUBSISTENCE ALLOWANCES,MINING INFORMATION COMMERCIAL,FACILITIES - FOOD,STAFF EXPENSES CONTROL,98828,27.67
DEPARTMENT OF ENERGY AND CLIMATE CHANGE,THE COAL AUTHORITY,23/02/2016,CONTRACT HIRE VEHICLES,SURFACE HAZARDS,VEHICLES-VEHICLE MAINTENANCE,STAFF EXPENSES CONTROL,98829,4.99
DEPARTMENT OF ENERGY AND CLIMATE CHANGE,THE COAL AUTHORITY,23/02/2016,SUBSISTENCE ALLOWANCES,SURFACE HAZARDS,FACILITIES - FOOD,STAFF EXPENSES CONTROL,98829,3.83
DEPARTMENT OF ENERGY AND CLIMATE CHANGE,THE COAL AUTHORITY,23/02/2016,FARES - PUBLIC TRANSPORT,CHIEF EXECUTIVE,TRAVEL&EVENTS-TAXI,STAFF EXPENSES CONTROL,98830,24.67
DEPARTMENT OF ENERGY AND CLIMATE CHANGE,THE COAL AUTHORITY,23/02/2016,FARES - RAIL,CHIEF EXECUTIVE,TRAVEL&EVENTS-RAIL,STAFF EXPENSES CONTROL,98830,27.43
DEPARTMENT OF ENERGY AND CLIMATE CHANGE,THE COAL AUTHORITY,23/02/2016,INCIDENTALS,CHIEF EXECUTIVE,VEHICLES-FLEET MANAGEMENT,STAFF EXPENSES CONTROL,98830,50.66
DEPARTMENT OF ENERGY AND CLIMATE CHANGE,THE COAL AUTHORITY,23/02/2016,MILEAGE PAYMENTS,CHIEF EXECUTIVE,FUELS/LUBRCNT/GAS-FUELS,STAFF EXPENSES CONTROL,98830,18.62
DEPARTMENT OF ENERGY AND CLIMATE CHANGE,THE COAL AUTHORITY,23/02/2016,SUBSISTENCE ALLOWANCES,BOARD,FACILITIES - FOOD,STAFF EXPENSES CONTROL,98830,70.26
DEPARTMENT OF ENERGY AND CLIMATE CHANGE,THE COAL AUTHORITY,23/02/2016,SUBSISTENCE ALLOWANCES,CHIEF EXECUTIVE,FACILITIES - FOOD,STAFF EXPENSES CONTROL,98830,96.96
DEPARTMENT OF ENERGY AND CLIMATE CHANGE,THE COAL AUTHORITY,23/02/2016,FARES - PUBLIC TRANSPORT,CHIEF EXECUTIVE,TRAVEL&EVENTS-TAXI,STAFF EXPENSES CONTROL,98831,36.65
DEPARTMENT OF ENERGY AND CLIMATE CHANGE,THE COAL AUTHORITY,23/02/2016,INCIDENTALS,CHIEF EXECUTIVE,VEHICLES-FLEET MANAGEMENT,STAFF EXPENSES CONTROL,98831,6.25
DEPARTMENT OF ENERGY AND CLIMATE CHANGE,THE COAL AUTHORITY,23/02/2016,MILEAGE PAYMENTS,CHIEF EXECUTIVE,FUELS/LUBRCNT/GAS-FUELS,STAFF EXPENSES CONTROL,98831,47.70
DEPARTMENT OF ENERGY AND CLIMATE CHANGE,THE COAL AUTHORITY,23/02/2016,SUBSISTENCE ALLOWANCES,CHIEF EXECUTIVE,FACILITIES - FOOD,STAFF EXPENSES CONTROL,98831,5.48
DEPARTMENT OF ENERGY AND CLIMATE CHANGE,THE COAL AUTHORITY,23/02/2016,INCIDENTALS,BUSINESS DEVELOPMENT,VEHICLES-FLEET MANAGEMENT,STAFF EXPENSES CONTROL,98832,2.00
DEPARTMENT OF ENERGY AND CLIMATE CHANGE,THE COAL AUTHORITY,23/02/2016,MILEAGE PAYMENTS,BUSINESS DEVELOPMENT,FUELS/LUBRCNT/GAS-FUELS,STAFF EXPENSES CONTROL,98832,47.70
DEPARTMENT OF ENERGY AND CLIMATE CHANGE,THE COAL AUTHORITY,23/02/2016,INCIDENTALS,HISTORIC LIABILITIES,VEHICLES-FLEET MANAGEMENT,STAFF EXPENSES CONTROL,98833,20.42
DEPARTMENT OF ENERGY AND CLIMATE CHANGE,THE COAL AUTHORITY,23/02/2016,MILEAGE PAYMENTS,HISTORIC LIABILITIES,FUELS/LUBRCNT/GAS-FUELS,STAFF EXPENSES CONTROL,98833,98.18
DEPARTMENT OF ENERGY AND CLIMATE CHANGE,THE COAL AUTHORITY,23/02/2016,SUBSISTENCE ALLOWANCES,HISTORIC LIABILITIES,FACILITIES - FOOD,STAFF EXPENSES CONTROL,98833,4.04
DEPARTMENT OF ENERGY AND CLIMATE CHANGE,THE COAL AUTHORITY,23/02/2016,FARES - PUBLIC TRANSPORT,SURFACE HAZARDS,TRAVEL&EVENTS-TAXI,STAFF EXPENSES CONTROL,98834,12.00
DEPARTMENT OF ENERGY AND CLIMATE CHANGE,THE COAL AUTHORITY,23/02/2016,SUBSISTENCE ALLOWANCES,BOARD,FACILITIES - FOOD,STAFF EXPENSES CONTROL,98834,1.26
DEPARTMENT OF ENERGY AND CLIMATE CHANGE,THE COAL AUTHORITY,23/02/2016,SUBSISTENCE ALLOWANCES,MINE WATER TREATMENT SCHEMES,FACILITIES - FOOD,STAFF EXPENSES CONTROL,98834,1.26
DEPARTMENT OF ENERGY AND CLIMATE CHANGE,THE COAL AUTHORITY,23/02/2016,SUBSISTENCE ALLOWANCES,SURFACE HAZARDS,FACILITIES - FOOD,STAFF EXPENSES CONTROL,98834,1.28
DEPARTMENT OF ENERGY AND CLIMATE CHANGE,THE COAL AUTHORITY,23/02/2016,MILEAGE PAYMENTS,SURFACE HAZARDS,FUELS/LUBRCNT/GAS-FUELS,STAFF EXPENSES CONTROL,98835,26.10
DEPARTMENT OF ENERGY AND CLIMATE CHANGE,THE COAL AUTHORITY,23/02/2016,MILEAGE PAYMENTS,SURFACE HAZARDS,FUELS/LUBRCNT/GAS-FUELS,STAFF EXPENSES CONTROL,98837,90.53
DEPARTMENT OF ENERGY AND CLIMATE CHANGE,THE COAL AUTHORITY,23/02/2016,SUBSISTENCE ALLOWANCES,SURFACE HAZARDS,FACILITIES - FOOD,STAFF EXPENSES CONTROL,98837,32.93
DEPARTMENT OF ENERGY AND CLIMATE CHANGE,THE COAL AUTHORITY,23/02/2016,INCIDENTALS,SURFACE HAZARDS,VEHICLES-FLEET MANAGEMENT,STAFF EXPENSES CONTROL,98838,1.00
DEPARTMENT OF ENERGY AND CLIMATE CHANGE,THE COAL AUTHORITY,23/02/2016,SUBSISTENCE ALLOWANCES,SHE,FACILITIES - FOOD,STAFF EXPENSES CONTROL,98838,13.80
DEPARTMENT OF ENERGY AND CLIMATE CHANGE,THE COAL AUTHORITY,23/02/2016,SUBSISTENCE ALLOWANCES,SURFACE HAZARDS,FACILITIES - FOOD,STAFF EXPENSES CONTROL,98838,36.65
DEPARTMENT OF ENERGY AND CLIMATE CHANGE,THE COAL AUTHORITY,23/02/2016,FARES - RAIL,HISTORIC LIABILITIES,TRAVEL&EVENTS-RAIL,STAFF EXPENSES CONTROL,98839,1646.40
DEPARTMENT OF ENERGY AND CLIMATE CHANGE,THE COAL AUTHORITY,23/02/2016,SUBSISTENCE ALLOWANCES,HISTORIC LIABILITIES,FACILITIES - FOOD,STAFF EXPENSES CONTROL,98839,10.95
DEPARTMENT OF ENERGY AND CLIMATE CHANGE,THE COAL AUTHORITY,23/02/2016,INCIDENTALS,SHE,VEHICLES-FLEET MANAGEMENT,STAFF EXPENSES CONTROL,98840,11.00
DEPARTMENT OF ENERGY AND CLIMATE CHANGE,THE COAL AUTHORITY,23/02/2016,MILEAGE PAYMENTS,SHE,FUELS/LUBRCNT/GAS-FUELS,STAFF EXPENSES CONTROL,98840,7.20
DEPARTMENT OF ENERGY AND CLIMATE CHANGE,THE COAL AUTHORITY,23/02/2016,SUBSISTENCE ALLOWANCES,SHE,FACILITIES - FOOD,STAFF EXPENSES CONTROL,98840,2.40
DEPARTMENT OF ENERGY AND CLIMATE CHANGE,THE COAL AUTHORITY,23/02/2016,SUBSISTENCE ALLOWANCES,SURFACE HAZARDS,FACILITIES - FOOD,STAFF EXPENSES CONTROL,98841,9.92
DEPARTMENT OF ENERGY AND CLIMATE CHANGE,THE COAL AUTHORITY,23/02/2016,FARES - PUBLIC TRANSPORT,FINANCE,TRAVEL&EVENTS-OTHER,STAFF EXPENSES CONTROL,98842,6.40
DEPARTMENT OF ENERGY AND CLIMATE CHANGE,THE COAL AUTHORITY,23/02/2016,MILEAGE PAYMENTS,MINE WATER TREATMENT SCHEMES,FUELS/LUBRCNT/GAS-FUELS,STAFF EXPENSES CONTROL,98843,11.90
DEPARTMENT OF ENERGY AND CLIMATE CHANGE,THE COAL AUTHORITY,23/02/2016,SUBSISTENCE ALLOWANCES,MINE WATER TREATMENT SCHEMES,FACILITIES - FOOD,STAFF EXPENSES CONTROL,98844,32.40
DEPARTMENT OF ENERGY AND CLIMATE CHANGE,THE COAL AUTHORITY,23/02/2016,MILEAGE PAYMENTS,ICT -  SERVICE MANAGEMENT,FUELS/LUBRCNT/GAS-FUELS,STAFF EXPENSES CONTROL,98845,12.78
DEPARTMENT OF ENERGY AND CLIMATE CHANGE,THE COAL AUTHORITY,23/02/2016,SUBSISTENCE ALLOWANCES,ICT -  SERVICE MANAGEMENT,FACILITIES - FOOD,STAFF EXPENSES CONTROL,98845,33.94
DEPARTMENT OF ENERGY AND CLIMATE CHANGE,THE COAL AUTHORITY,23/02/2016,MILEAGE PAYMENTS,SHE,FUELS/LUBRCNT/GAS-FUELS,STAFF EXPENSES CONTROL,98846,27.00
DEPARTMENT OF ENERGY AND CLIMATE CHANGE,THE COAL AUTHORITY,19/02/2016,CURR YR ADDNS MINEWATER SCHEME,MINE WATER TREATMENT SCHEMES,CONSTRUCTION-MAIN CONTRACTORS,NAL PLANT LIMITED,98847,5000.00
DEPARTMENT OF ENERGY AND CLIMATE CHANGE,THE COAL AUTHORITY,19/02/2016,CONTRACTORS AND CLAIM COSTS,SURFACE HAZARDS,CONSTRUCTION-MAIN CONTRACTORS,NAL PLANT LIMITED,98848,368.90
DEPARTMENT OF ENERGY AND CLIMATE CHANGE,THE COAL AUTHORITY,19/02/2016,M/W SLUDGE DISPOSAL,MINE WATER TREATMENT SCHEMES,CONSTRUCTION-MAIN CONTRACTORS,NAL PLANT LIMITED,98849,30000.00
DEPARTMENT OF ENERGY AND CLIMATE CHANGE,THE COAL AUTHORITY,22/02/2016,CONTRACTORS AND CLAIM COSTS,SURFACE HAZARDS,CONSTRUCTION-MAIN CONTRACTORS,NAL PLANT LIMITED,98850,163.07
DEPARTMENT OF ENERGY AND CLIMATE CHANGE,THE COAL AUTHORITY,16/02/2016,CONTRACTORS AND CLAIM COSTS,THORESBY COLLIERY,CONSTRUCTION-MAIN CONTRACTORS,NAL PLANT LIMITED,98851,41851.82
DEPARTMENT OF ENERGY AND CLIMATE CHANGE,THE COAL AUTHORITY,19/02/2016,CONTRACTORS AND CLAIM COSTS,DAW MILL,CONSTRUCTION-MAIN CONTRACTORS,HARDYMAN & CO LTD,98852,2551.58
DEPARTMENT OF ENERGY AND CLIMATE CHANGE,THE COAL AUTHORITY,19/02/2016,CONTRACTORS AND CLAIM COSTS,DAW MILL,CONSTRUCTION-MAIN CONTRACTORS,HARDYMAN & CO LTD,98853,5755.57
DEPARTMENT OF ENERGY AND CLIMATE CHANGE,THE COAL AUTHORITY,22/02/2016,CONTRACTORS AND CLAIM COSTS,HATFIELD COLLIERY,CONSTRUCTION-CNSTRN SER PROVDR,STEVE VINE LAND DRAINAGE SLTNS,98854,550.00
DEPARTMENT OF ENERGY AND CLIMATE CHANGE,THE COAL AUTHORITY,22/02/2016,CONTRACTORS AND CLAIM COSTS,HATFIELD COLLIERY,CONSTRUCTION-CNSTRN SER PROVDR,STEVE VINE LAND DRAINAGE SLTNS,98855,742.50
DEPARTMENT OF ENERGY AND CLIMATE CHANGE,THE COAL AUTHORITY,22/02/2016,CONTRACTORS AND CLAIM COSTS,HATFIELD COLLIERY,CONSTRUCTION-CNSTRN SER PROVDR,STEVE VINE LAND DRAINAGE SLTNS,98856,1100.00
DEPARTMENT OF ENERGY AND CLIMATE CHANGE,THE COAL AUTHORITY,22/02/2016,CONTRACTORS AND CLAIM COSTS,HATFIELD COLLIERY,CONSTRUCTION-CNSTRN SER PROVDR,STEVE VINE LAND DRAINAGE SLTNS,98857,632.50
DEPARTMENT OF ENERGY AND CLIMATE CHANGE,THE COAL AUTHORITY,22/02/2016,CONTRACTORS AND CLAIM COSTS,HATFIELD COLLIERY,CONSTRUCTION-CNSTRN SER PROVDR,STEVE VINE LAND DRAINAGE SLTNS,98858,687.50
DEPARTMENT OF ENERGY AND CLIMATE CHANGE,THE COAL AUTHORITY,22/02/2016,CONTRACTORS AND CLAIM COSTS,HATFIELD COLLIERY,CONSTRUCTION-CNSTRN SER PROVDR,STEVE VINE LAND DRAINAGE SLTNS,98859,577.50
DEPARTMENT OF ENERGY AND CLIMATE CHANGE,THE COAL AUTHORITY,22/02/2016,CONTRACTORS AND CLAIM COSTS,HATFIELD COLLIERY,CONSTRUCTION-CNSTRN SER PROVDR,STEVE VINE LAND DRAINAGE SLTNS,98860,632.50
DEPARTMENT OF ENERGY AND CLIMATE CHANGE,THE COAL AUTHORITY,22/02/2016,CONTRACTORS AND CLAIM COSTS,HATFIELD COLLIERY,CONSTRUCTION-CNSTRN SER PROVDR,STEVE VINE LAND DRAINAGE SLTNS,98861,797.50
DEPARTMENT OF ENERGY AND CLIMATE CHANGE,THE COAL AUTHORITY,22/02/2016,CONTRACTORS AND CLAIM COSTS,HATFIELD COLLIERY,CONSTRUCTION-CNSTRN SER PROVDR,STEVE VINE LAND DRAINAGE SLTNS,98862,742.50
DEPARTMENT OF ENERGY AND CLIMATE CHANGE,THE COAL AUTHORITY,22/02/2016,CONTRACTORS AND CLAIM COSTS,HATFIELD COLLIERY,CONSTRUCTION-CNSTRN SER PROVDR,STEVE VINE LAND DRAINAGE SLTNS,98863,632.50
DEPARTMENT OF ENERGY AND CLIMATE CHANGE,THE COAL AUTHORITY,22/02/2016,CONTRACTORS AND CLAIM COSTS,HATFIELD COLLIERY,CONSTRUCTION-CNSTRN SER PROVDR,STEVE VINE LAND DRAINAGE SLTNS,98864,632.50
DEPARTMENT OF ENERGY AND CLIMATE CHANGE,THE COAL AUTHORITY,17/02/2016,M/W TELECOMS & TELEMETRY,MINE WATER TREATMENT SCHEMES,ICT-TELECOMS,WYLESS PLC,98869,50.00
DEPARTMENT OF ENERGY AND CLIMATE CHANGE,THE COAL AUTHORITY,19/02/2016,PAYMENTS TO AGENCIES FOR TEMPS,MINING INFORMATION COMMERCIAL,PROF SER TMP STFF-TEMP WRKERS,KEY PERSONNEL SOLUTIONS LTD,98870,420.07
DEPARTMENT OF ENERGY AND CLIMATE CHANGE,THE COAL AUTHORITY,19/02/2016,PAYMENTS TO AGENCIES FOR TEMPS,MINING INFORMATION COMMERCIAL,PROF SER TMP STFF-TEMP WRKERS,KEY PERSONNEL SOLUTIONS LTD,98870,369.92
DEPARTMENT OF ENERGY AND CLIMATE CHANGE,THE COAL AUTHORITY,19/02/2016,PAYMENTS TO AGENCIES FOR TEMPS,MINING INFORMATION COMMERCIAL,PROF SER TMP STFF-TEMP WRKERS,KEY PERSONNEL SOLUTIONS LTD,98870,506.23
DEPARTMENT OF ENERGY AND CLIMATE CHANGE,THE COAL AUTHORITY,19/02/2016,PAYMENTS TO AGENCIES FOR TEMPS,RECORDS STORAGE,PROF SER TMP STFF-TEMP WRKERS,KEY PERSONNEL SOLUTIONS LTD,98870,387.11
DEPARTMENT OF ENERGY AND CLIMATE CHANGE,THE COAL AUTHORITY,23/02/2016,TRAINING AND EDUCATION,CORPORATE PROJECT OFFICE,PROF SER LRNG&DEV-STAFF TRNING,IBIS TRADING LTD,98871,1215.00
DEPARTMENT OF ENERGY AND CLIMATE CHANGE,THE COAL AUTHORITY,24/02/2016,CONTRACTORS AND CLAIM COSTS,SURFACE HAZARDS,"CONSTRUCTION-BLD,REPR&MAINTNCE",MR G K HAGUE,98872,105.00
DEPARTMENT OF ENERGY AND CLIMATE CHANGE,THE COAL AUTHORITY,24/02/2016,M/W RENTS PAYABLE,MINE WATER TREATMENT SCHEMES,FACILITIES-BUILDING MANAGEMENT,MR HOLMES,98873,999.82
DEPARTMENT OF ENERGY AND CLIMATE CHANGE,THE COAL AUTHORITY,24/02/2016,M/W RENTS PAYABLE,MINE WATER TREATMENT SCHEMES,FACILITIES-BUILDING MANAGEMENT,MR HOLMES,98874,7332.01
DEPARTMENT OF ENERGY AND CLIMATE CHANGE,THE COAL AUTHORITY,23/02/2016,CNTRCTR & CLAIM CSTS-BRDGEWATR,SUBSIDENCE,CONSTRUCTION-MAIN CONTRACTORS,THE BRIDGEWATER CANAL CO LTD,98875,5989.16
DEPARTMENT OF ENERGY AND CLIMATE CHANGE,THE COAL AUTHORITY,23/02/2016,M/W SCOPING/FEASIBILITY/CONCEP,DEFRA PROGRAMME,PROF SER TECH-ENGINEERING SER,ATKINS LIMITED,98876,150.00
DEPARTMENT OF ENERGY AND CLIMATE CHANGE,THE COAL AUTHORITY,23/02/2016,M/W SCOPING/FEASIBILITY/CONCEP,DEFRA PROGRAMME,PROF SER TECH-ENGINEERING SER,ATKINS LIMITED,98877,150.00
DEPARTMENT OF ENERGY AND CLIMATE CHANGE,THE COAL AUTHORITY,23/02/2016,M/W SCOPING/FEASIBILITY/CONCEP,DEFRA PROGRAMME,PROF SER TECH-ENGINEERING SER,ATKINS LIMITED,98878,127.50
DEPARTMENT OF ENERGY AND CLIMATE CHANGE,THE COAL AUTHORITY,24/02/2016,PAYMENTS TO AGENCIES FOR TEMPS,SHE,PROF SER TMP STFF-SPCLST CNTRT,MOTT MACDONALD LTD,98883,5608.30
DEPARTMENT OF ENERGY AND CLIMATE CHANGE,THE COAL AUTHORITY,22/02/2016,PLANT MAINTENANCE,FACILITIES MANAGEMENT,FACILITIES-BUILDING MANAGEMENT,MCL ENERGY LTD,98884,565.60
DEPARTMENT OF ENERGY AND CLIMATE CHANGE,THE COAL AUTHORITY,24/02/2016,OUTSOURCED MANAGEMENT TIPS,TIP MAINTENANCE/IMPROVEMENTS,PROF SER FNCL-CORPTE FINANCE,HALCROW GROUP LIMITED,98885,9005.25
DEPARTMENT OF ENERGY AND CLIMATE CHANGE,THE COAL AUTHORITY,23/02/2016,CONTRACTORS AND CLAIM COSTS,SUBSIDENCE,CONSTRUCTION-MAIN CONTRACTORS,DAO CONSTRUCTION LTD,98886,5255.00
DEPARTMENT OF ENERGY AND CLIMATE CHANGE,THE COAL AUTHORITY,22/02/2016,M/W SCOPING/FEASIBILITY/CONCEP,MINE WATER TREATMENT SCHEMES,PROF SER TECH-ENGINEERING SER,CONJECT LIMITED,98887,497.69
DEPARTMENT OF ENERGY AND CLIMATE CHANGE,THE COAL AUTHORITY,16/03/2015,M/W CNTRCTR-OPRTNL MNTLY TSKS,MINE WATER TREATMENT SCHEMES,PROF SER TECH-FORENSIC/LAB SER,INTEGRATED WATER SERVICES LTD,98888,68.29
DEPARTMENT OF ENERGY AND CLIMATE CHANGE,THE COAL AUTHORITY,16/03/2015,M/W CNTRCTR-OPRTNL MNTLY TSKS,MINE WATER TREATMENT SCHEMES,PROF SER TECH-FORENSIC/LAB SER,INTEGRATED WATER SERVICES LTD,98888,68.29
DEPARTMENT OF ENERGY AND CLIMATE CHANGE,THE COAL AUTHORITY,16/03/2015,M/W CNTRCTR-OPRTNL MNTLY TSKS,MINE WATER TREATMENT SCHEMES,PROF SER TECH-FORENSIC/LAB SER,INTEGRATED WATER SERVICES LTD,98888,68.28
DEPARTMENT OF ENERGY AND CLIMATE CHANGE,THE COAL AUTHORITY,16/03/2015,M/W CNTRCTR-OPRTNL MNTLY TSKS,MINE WATER TREATMENT SCHEMES,PROF SER TECH-FORENSIC/LAB SER,INTEGRATED WATER SERVICES LTD,98888,68.28
DEPARTMENT OF ENERGY AND CLIMATE CHANGE,THE COAL AUTHORITY,16/03/2015,M/W CNTRCTR-OPRTNL MNTLY TSKS,MINE WATER TREATMENT SCHEMES,PROF SER TECH-FORENSIC/LAB SER,INTEGRATED WATER SERVICES LTD,98888,68.28
DEPARTMENT OF ENERGY AND CLIMATE CHANGE,THE COAL AUTHORITY,24/02/2016,CONSULTANCY - PS&S,SUBSIDENCE,PROF SER-LEGAL SERVICES,98765 WARDELLS,98889,11781.25
DEPARTMENT OF ENERGY AND CLIMATE CHANGE,THE COAL AUTHORITY,24/02/2016,CONTRACTORS AND CLAIM COSTS,SUBSIDENCE,PROF SER-LEGAL SERVICES,98765 WARDELLS,98889,-11781.25
DEPARTMENT OF ENERGY AND CLIMATE CHANGE,THE COAL AUTHORITY,24/02/2016,CONTRACTORS AND CLAIM COSTS,HATFIELD COLLIERY,CONSTRUCTION-MAIN CONTRACTORS,DANVM DRAINAGE COMMISSIONERS,98890,34517.75
DEPARTMENT OF ENERGY AND CLIMATE CHANGE,THE COAL AUTHORITY,19/02/2016,SITE SERVICES,FACILITIES MANAGEMENT,WASTE MANAGEMENT-WSTE MNGT SER,BIFFA WASTE SERVICES LTD,98891,324.00
DEPARTMENT OF ENERGY AND CLIMATE CHANGE,THE COAL AUTHORITY,19/02/2016,SITE SERVICES,FACILITIES MANAGEMENT,WASTE MANAGEMENT-WSTE MNGT SER,BIFFA WASTE SERVICES LTD,98892,40.50
DEPARTMENT OF ENERGY AND CLIMATE CHANGE,THE COAL AUTHORITY,22/02/2016,OUTSOURCED CANTEEN STAFF,FACILITIES MANAGEMENT,FACILITIES - CATERING,SERVEST,98893,3034.36
DEPARTMENT OF ENERGY AND CLIMATE CHANGE,THE COAL AUTHORITY,25/02/2016,CONSULTANCY,PROCUREMENT,PROF SER TMP STFF-SPCLST CNTRT,CAROLINE ROBERTS,98895,3600.00
DEPARTMENT OF ENERGY AND CLIMATE CHANGE,THE COAL AUTHORITY,24/02/2016,CONTRACTORS AND CLAIM COSTS,DAW MILL,CONSTRUCTION-MAIN CONTRACTORS,HARDYMAN & CO LTD,98896,18775.36
DEPARTMENT OF ENERGY AND CLIMATE CHANGE,THE COAL AUTHORITY,07/10/2015,CONTRACTORS AND CLAIM COSTS,DEFRA PROGRAMME,CONSTRUCTION-MAIN CONTRACTORS,INTEGRATED WATER SERVICES LTD,98897,489.12
DEPARTMENT OF ENERGY AND CLIMATE CHANGE,THE COAL AUTHORITY,07/10/2015,M/W PUMPING TESTS,MINE WATER TREATMENT SCHEMES,CONSTRUCTION-MAIN CONTRACTORS,INTEGRATED WATER SERVICES LTD,98898,223.20
DEPARTMENT OF ENERGY AND CLIMATE CHANGE,THE COAL AUTHORITY,07/10/2015,MNEWTR CARBON REDCTN CMMTMENTS,MINE WATER TREATMENT SCHEMES,CONSTRUCTION-MAIN CONTRACTORS,INTEGRATED WATER SERVICES LTD,98899,990.00
DEPARTMENT OF ENERGY AND CLIMATE CHANGE,THE COAL AUTHORITY,25/02/2016,CONTRACTORS AND CLAIM COSTS,SURFACE HAZARDS,"CONSTRUCTION-BLD,REPR&MAINTNCE",MR R AMRSTRONG,98900,80.00
DEPARTMENT OF ENERGY AND CLIMATE CHANGE,THE COAL AUTHORITY,24/02/2016,MONITORING & FLOW MEASUREMENT,DEFRA PROGRAMME,CONSTRUCTION-MAIN CONTRACTORS,J MURPHY & SONS LIMITED,98903,12963.95
DEPARTMENT OF ENERGY AND CLIMATE CHANGE,THE COAL AUTHORITY,24/02/2016,MONITORING & FLOW MEASUREMENT,DEFRA PROGRAMME,CONSTRUCTION-MAIN CONTRACTORS,J MURPHY & SONS LIMITED,98904,9233.93
DEPARTMENT OF ENERGY AND CLIMATE CHANGE,THE COAL AUTHORITY,02/02/2016,PAYMENTS TO AGENCIES FOR TEMPS,MINE WATER TREATMENT SCHEMES,PROF SER TMP STFF-SPCLST CNTRT,ATKINS LIMITED,98905,6476.03
DEPARTMENT OF ENERGY AND CLIMATE CHANGE,THE COAL AUTHORITY,24/02/2016,FUEL (VEHICLE),FACILITIES MANAGEMENT,FUELS/LUBRCNT/GAS-FUELS,ALLSTAR BUSINESS SOLUTIONS LTD,98908,44.81
DEPARTMENT OF ENERGY AND CLIMATE CHANGE,THE COAL AUTHORITY,24/02/2016,FUEL (VEHICLE),FACILITIES MANAGEMENT,FUELS/LUBRCNT/GAS-FUELS,ALLSTAR BUSINESS SOLUTIONS LTD,98909,31.70
DEPARTMENT OF ENERGY AND CLIMATE CHANGE,THE COAL AUTHORITY,24/02/2016,FUEL (VEHICLE),FACILITIES MANAGEMENT,FUELS/LUBRCNT/GAS-FUELS,ALLSTAR BUSINESS SOLUTIONS LTD,98910,40.90
DEPARTMENT OF ENERGY AND CLIMATE CHANGE,THE COAL AUTHORITY,24/02/2016,FUEL (VEHICLE),FACILITIES MANAGEMENT,FUELS/LUBRCNT/GAS-FUELS,ALLSTAR BUSINESS SOLUTIONS LTD,98912,26.07
DEPARTMENT OF ENERGY AND CLIMATE CHANGE,THE COAL AUTHORITY,24/02/2016,FUEL (VEHICLE),FACILITIES MANAGEMENT,FUELS/LUBRCNT/GAS-FUELS,ALLSTAR BUSINESS SOLUTIONS LTD,98913,15.51
DEPARTMENT OF ENERGY AND CLIMATE CHANGE,THE COAL AUTHORITY,24/02/2016,FUEL (VEHICLE),SURFACE HAZARDS,FUELS/LUBRCNT/GAS-FUELS,ALLSTAR BUSINESS SOLUTIONS LTD,98914,59.58
DEPARTMENT OF ENERGY AND CLIMATE CHANGE,THE COAL AUTHORITY,24/02/2016,FUEL (VEHICLE),SURFACE HAZARDS,FUELS/LUBRCNT/GAS-FUELS,ALLSTAR BUSINESS SOLUTIONS LTD,98915,55.58
DEPARTMENT OF ENERGY AND CLIMATE CHANGE,THE COAL AUTHORITY,24/02/2016,FUEL (VEHICLE),SURFACE HAZARDS,FUELS/LUBRCNT/GAS-FUELS,ALLSTAR BUSINESS SOLUTIONS LTD,98916,46.08
DEPARTMENT OF ENERGY AND CLIMATE CHANGE,THE COAL AUTHORITY,24/02/2016,FUEL (VEHICLE),SURFACE HAZARDS,FUELS/LUBRCNT/GAS-FUELS,ALLSTAR BUSINESS SOLUTIONS LTD,98917,49.99
DEPARTMENT OF ENERGY AND CLIMATE CHANGE,THE COAL AUTHORITY,24/02/2016,FUEL (VEHICLE),SURFACE HAZARDS,FUELS/LUBRCNT/GAS-FUELS,ALLSTAR BUSINESS SOLUTIONS LTD,98918,111.14
DEPARTMENT OF ENERGY AND CLIMATE CHANGE,THE COAL AUTHORITY,24/02/2016,FUEL (VEHICLE),SURFACE HAZARDS,FUELS/LUBRCNT/GAS-FUELS,ALLSTAR BUSINESS SOLUTIONS LTD,98920,52.79
DEPARTMENT OF ENERGY AND CLIMATE CHANGE,THE COAL AUTHORITY,24/02/2016,FUEL (VEHICLE),SURFACE HAZARDS,FUELS/LUBRCNT/GAS-FUELS,ALLSTAR BUSINESS SOLUTIONS LTD,98921,64.24
DEPARTMENT OF ENERGY AND CLIMATE CHANGE,THE COAL AUTHORITY,25/02/2016,IT-INFRASTRUCTURE MANAGEMENT,ICT -  SERVICE MANAGEMENT,ICT-MAINTENANCE & SUPPORT,WELLINGTONE LIMITED,98922,6102.00
DEPARTMENT OF ENERGY AND CLIMATE CHANGE,THE COAL AUTHORITY,25/02/2016,M/W LAND AGENTS (AQUISITIONS),MINE WATER TREATMENT SCHEMES,PROF SER TECH-COMMERCIAL SER,HARBOUR HOUSE FARM,98924,500.00
DEPARTMENT OF ENERGY AND CLIMATE CHANGE,THE COAL AUTHORITY,29/02/2016,FUEL (VEHICLE),SURFACE HAZARDS,FUELS/LUBRCNT/GAS-FUELS,VAT RECLMD PM BUSNESS MLGE,98927,-203.55
DEPARTMENT OF ENERGY AND CLIMATE CHANGE,THE COAL AUTHORITY,21/02/2016,PAYMENTS TO AGENCIES FOR TEMPS,SURFACE HAZARDS,PROF SER TMP STFF-SPCLST CNTRT,VENTURE FINANCE PLC,98930,1051.96
DEPARTMENT OF ENERGY AND CLIMATE CHANGE,THE COAL AUTHORITY,25/02/2016,PUBLICATIONS,PERMISSIONS,OPRTNL GOODS&SERV-DEVLPNG MTRL,L SHARPE,98931,10.40
DEPARTMENT OF ENERGY AND CLIMATE CHANGE,THE COAL AUTHORITY,26/02/2016,CONSULTANTS OPERATIONS,MINE WATER TREATMENT SCHEMES,PROF SER TECH-ENGINEERING SER,98808 MOTTS,98932,7782.12
DEPARTMENT OF ENERGY AND CLIMATE CHANGE,THE COAL AUTHORITY,26/02/2016,CONTRACTORS AND CLAIM COSTS,HATFIELD COLLIERY,CONSTRUCTION-MAIN CONTRACTORS,98890 DANVM DC,98932,-34517.75
DEPARTMENT OF ENERGY AND CLIMATE CHANGE,THE COAL AUTHORITY,26/02/2016,CURR YR ADDNS SUBS PMPNG STNS,SUBSIDENCE PUMPING STATIONS,CONSTRUCTION-MAIN CONTRACTORS,98890 DANVM DC,98932,34517.75
DEPARTMENT OF ENERGY AND CLIMATE CHANGE,THE COAL AUTHORITY,26/02/2016,M/W CNTRCTR-OPRTNL MNTLY TSKS,MINE WATER TREATMENT SCHEMES,PROF SER TECH-ENGINEERING SER,98808 MOTTS,98932,-7782.12
DEPARTMENT OF ENERGY AND CLIMATE CHANGE,THE COAL AUTHORITY,26/02/2016,CURR YR ADDNS MINEWATER SCHEME,MINE WATER TREATMENT SCHEMES,CONSTRUCTION-MAIN CONTRACTORS,97998/98179 STS STAFF DEC'15,98933,70.57
DEPARTMENT OF ENERGY AND CLIMATE CHANGE,THE COAL AUTHORITY,26/02/2016,CURR YR ADDNS MINEWATER SCHEME,MINE WATER TREATMENT SCHEMES,CONSTRUCTION-MAIN CONTRACTORS,97998/98179 STS SC DEC'15,98933,345.01
DEPARTMENT OF ENERGY AND CLIMATE CHANGE,THE COAL AUTHORITY,26/02/2016,CURR YR ADDNS MINEWATER SCHEME,MINE WATER TREATMENT SCHEMES,CONSTRUCTION-MAIN CONTRACTORS,97998/98179 STS SC DEC'15,98933,4790.97
DEPARTMENT OF ENERGY AND CLIMATE CHANGE,THE COAL AUTHORITY,26/02/2016,CURR YR ADDNS MINEWATER SCHEME,MINE WATER TREATMENT SCHEMES,CONSTRUCTION-MAIN CONTRACTORS,97998/98179 STS SC DEC'15,98933,8676.23
DEPARTMENT OF ENERGY AND CLIMATE CHANGE,THE COAL AUTHORITY,26/02/2016,CURR YR ADDNS MINEWATER SCHEME,MINE WATER TREATMENT SCHEMES,CONSTRUCTION-MAIN CONTRACTORS,97998/98179 STS SC DEC'15,98933,10333.95
DEPARTMENT OF ENERGY AND CLIMATE CHANGE,THE COAL AUTHORITY,26/02/2016,LIABILITY SITE MONTHLY MAINT,MINE WATER TREATMENT SCHEMES,CONSTRUCTION-MAIN CONTRACTORS,97998/98179 STS STAFF OH DEC'15,98933,8543.56
DEPARTMENT OF ENERGY AND CLIMATE CHANGE,THE COAL AUTHORITY,26/02/2016,LIABILITY SITE MONTHLY MAINT,MINE WATER TREATMENT SCHEMES,CONSTRUCTION-MAIN CONTRACTORS,97998/98179 STS STAFF DEC'15,98933,5147.10
DEPARTMENT OF ENERGY AND CLIMATE CHANGE,THE COAL AUTHORITY,26/02/2016,LIABILITY SITE MONTHLY MAINT,MINE WATER TREATMENT SCHEMES,CONSTRUCTION-MAIN CONTRACTORS,97998/98179 STS SC DEC'15,98933,7225.54
DEPARTMENT OF ENERGY AND CLIMATE CHANGE,THE COAL AUTHORITY,26/02/2016,LIABILITY SITES AD-HOC TASKS,MINE WATER TREATMENT SCHEMES,CONSTRUCTION-MAIN CONTRACTORS,97998/98179 STS SC DEC'15,98933,2383.14
DEPARTMENT OF ENERGY AND CLIMATE CHANGE,THE COAL AUTHORITY,26/02/2016,LIABILITY SITES AD-HOC TASKS,MINE WATER TREATMENT SCHEMES,CONSTRUCTION-MAIN CONTRACTORS,97998/98179 STS SC DEC'15,98933,2825.31
DEPARTMENT OF ENERGY AND CLIMATE CHANGE,THE COAL AUTHORITY,26/02/2016,LIABILITY SITES AD-HOC TASKS,MINE WATER TREATMENT SCHEMES,CONSTRUCTION-MAIN CONTRACTORS,97998/98179 STS SC DEC'15,98933,1401.17
DEPARTMENT OF ENERGY AND CLIMATE CHANGE,THE COAL AUTHORITY,26/02/2016,M/W CHEMICAL OPERATIONAL,MINE WATER TREATMENT SCHEMES,CONSTRUCTION-MAIN CONTRACTORS,97998/98179 STS SC DEC'15,98933,601.81
DEPARTMENT OF ENERGY AND CLIMATE CHANGE,THE COAL AUTHORITY,26/02/2016,M/W CHEMICAL OPERATIONAL,MINE WATER TREATMENT SCHEMES,CONSTRUCTION-MAIN CONTRACTORS,97998/98179 STS SC DEC'15,98933,5075.77
DEPARTMENT OF ENERGY AND CLIMATE CHANGE,THE COAL AUTHORITY,26/02/2016,M/W CHEMICAL OPERATIONAL,MINE WATER TREATMENT SCHEMES,CONSTRUCTION-MAIN CONTRACTORS,97998/98179 STS SC DEC'15,98933,1272.54
DEPARTMENT OF ENERGY AND CLIMATE CHANGE,THE COAL AUTHORITY,26/02/2016,M/W CHEMICAL OPERATIONAL,MINE WATER TREATMENT SCHEMES,CONSTRUCTION-MAIN CONTRACTORS,97998/98179 STS SC DEC'15,98933,21334.54
DEPARTMENT OF ENERGY AND CLIMATE CHANGE,THE COAL AUTHORITY,26/02/2016,M/W CHEMICAL OPERATIONAL,MINE WATER TREATMENT SCHEMES,CONSTRUCTION-MAIN CONTRACTORS,97998/98179 STS SC DEC'15,98933,2708.16
DEPARTMENT OF ENERGY AND CLIMATE CHANGE,THE COAL AUTHORITY,26/02/2016,M/W CHEMICAL OPERATIONAL,MINE WATER TREATMENT SCHEMES,CONSTRUCTION-MAIN CONTRACTORS,97998/98179 STS SC DEC'15,98933,5397.95
DEPARTMENT OF ENERGY AND CLIMATE CHANGE,THE COAL AUTHORITY,26/02/2016,M/W CNTRCTR-OPRTNL MNTLY TSKS,DEFRA PROGRAMME,CONSTRUCTION-MAIN CONTRACTORS,97998/98179 STS STAFF DEC'15,98933,188.92
DEPARTMENT OF ENERGY AND CLIMATE CHANGE,THE COAL AUTHORITY,26/02/2016,M/W CNTRCTR-OPRTNL MNTLY TSKS,MINE WATER TREATMENT SCHEMES,CONSTRUCTION-MAIN CONTRACTORS,97998/98179 STS STAFF DEC'15,98933,239.09
DEPARTMENT OF ENERGY AND CLIMATE CHANGE,THE COAL AUTHORITY,26/02/2016,M/W CNTRCTR-OPRTNL MNTLY TSKS,MINE WATER TREATMENT SCHEMES,CONSTRUCTION-MAIN CONTRACTORS,97998/98179 STS STAFF DEC'15,98933,648.82
DEPARTMENT OF ENERGY AND CLIMATE CHANGE,THE COAL AUTHORITY,26/02/2016,M/W CNTRCTR-OPRTNL MNTLY TSKS,MINE WATER TREATMENT SCHEMES,CONSTRUCTION-MAIN CONTRACTORS,97998/98179 STS STAFF DEC'15,98933,1070.66
DEPARTMENT OF ENERGY AND CLIMATE CHANGE,THE COAL AUTHORITY,26/02/2016,M/W CNTRCTR-OPRTNL MNTLY TSKS,MINE WATER TREATMENT SCHEMES,CONSTRUCTION-MAIN CONTRACTORS,97998/98179 STS STAFF DEC'15,98933,31.84
DEPARTMENT OF ENERGY AND CLIMATE CHANGE,THE COAL AUTHORITY,26/02/2016,M/W CNTRCTR-OPRTNL MNTLY TSKS,MINE WATER TREATMENT SCHEMES,CONSTRUCTION-MAIN CONTRACTORS,97998/98179 STS STAFF DEC'15,98933,508.06
DEPARTMENT OF ENERGY AND CLIMATE CHANGE,THE COAL AUTHORITY,26/02/2016,M/W CNTRCTR-OPRTNL MNTLY TSKS,MINE WATER TREATMENT SCHEMES,CONSTRUCTION-MAIN CONTRACTORS,97998/98179 STS STAFF DEC'15,98933,566.76
DEPARTMENT OF ENERGY AND CLIMATE CHANGE,THE COAL AUTHORITY,26/02/2016,M/W CNTRCTR-OPRTNL MNTLY TSKS,MINE WATER TREATMENT SCHEMES,CONSTRUCTION-MAIN CONTRACTORS,97998/98179 STS STAFF DEC'15,98933,436.81
DEPARTMENT OF ENERGY AND CLIMATE CHANGE,THE COAL AUTHORITY,26/02/2016,M/W CNTRCTR-OPRTNL MNTLY TSKS,MINE WATER TREATMENT SCHEMES,CONSTRUCTION-MAIN CONTRACTORS,97998/98179 STS STAFF DEC'15,98933,42.08
DEPARTMENT OF ENERGY AND CLIMATE CHANGE,THE COAL AUTHORITY,26/02/2016,M/W CNTRCTR-OPRTNL MNTLY TSKS,MINE WATER TREATMENT SCHEMES,CONSTRUCTION-MAIN CONTRACTORS,97998/98179 STS STAFF DEC'15,98933,211.73
DEPARTMENT OF ENERGY AND CLIMATE CHANGE,THE COAL AUTHORITY,26/02/2016,M/W CNTRCTR-OPRTNL MNTLY TSKS,MINE WATER TREATMENT SCHEMES,CONSTRUCTION-MAIN CONTRACTORS,97998/98179 STS SC DEC'15,98933,186.63
DEPARTMENT OF ENERGY AND CLIMATE CHANGE,THE COAL AUTHORITY,26/02/2016,M/W CNTRCTR-OPRTNL MNTLY TSKS,MINE WATER TREATMENT SCHEMES,CONSTRUCTION-MAIN CONTRACTORS,97998/98179 STS SC DEC'15,98933,285.70
DEPARTMENT OF ENERGY AND CLIMATE CHANGE,THE COAL AUTHORITY,26/02/2016,M/W CNTRCTR-OPRTNL MNTLY TSKS,MINE WATER TREATMENT SCHEMES,CONSTRUCTION-MAIN CONTRACTORS,97998/98179 STS SC DEC'15,98933,906.36
DEPARTMENT OF ENERGY AND CLIMATE CHANGE,THE COAL AUTHORITY,26/02/2016,M/W CNTRCTR-OPRTNL MNTLY TSKS,MINE WATER TREATMENT SCHEMES,CONSTRUCTION-MAIN CONTRACTORS,97998/98179 STS SC DEC'15,98933,5069.48
DEPARTMENT OF ENERGY AND CLIMATE CHANGE,THE COAL AUTHORITY,26/02/2016,M/W CNTRCTR-OPRTNL MNTLY TSKS,MINE WATER TREATMENT SCHEMES,CONSTRUCTION-MAIN CONTRACTORS,97998/98179 STS SC DEC'15,98933,19.13
DEPARTMENT OF ENERGY AND CLIMATE CHANGE,THE COAL AUTHORITY,26/02/2016,M/W CNTRCTR-OPRTNL MNTLY TSKS,MINE WATER TREATMENT SCHEMES,CONSTRUCTION-MAIN CONTRACTORS,97998/98179 STS SC DEC'15,98933,3507.15
DEPARTMENT OF ENERGY AND CLIMATE CHANGE,THE COAL AUTHORITY,26/02/2016,M/W CNTRCTR-OPRTNL MNTLY TSKS,MINE WATER TREATMENT SCHEMES,CONSTRUCTION-MAIN CONTRACTORS,97998/98179 STS SC DEC'15,98933,949.26
DEPARTMENT OF ENERGY AND CLIMATE CHANGE,THE COAL AUTHORITY,26/02/2016,M/W CNTRCTR-OPRTNL MNTLY TSKS,MINE WATER TREATMENT SCHEMES,CONSTRUCTION-MAIN CONTRACTORS,97998/98179 STS SC DEC'15,98933,615.96
DEPARTMENT OF ENERGY AND CLIMATE CHANGE,THE COAL AUTHORITY,26/02/2016,M/W CNTRCTR-OPRTNL MNTLY TSKS,MINE WATER TREATMENT SCHEMES,CONSTRUCTION-MAIN CONTRACTORS,97998/98179 STS SC DEC'15,98933,976.23
DEPARTMENT OF ENERGY AND CLIMATE CHANGE,THE COAL AUTHORITY,26/02/2016,M/W CNTRCTR-OPRTNL MNTLY TSKS,MINE WATER TREATMENT SCHEMES,CONSTRUCTION-MAIN CONTRACTORS,97998/98179 STS SC DEC'15,98933,6637.18
DEPARTMENT OF ENERGY AND CLIMATE CHANGE,THE COAL AUTHORITY,26/02/2016,M/W CNTRCTR-OPRTNL MNTLY TSKS,MINE WATER TREATMENT SCHEMES,CONSTRUCTION-MAIN CONTRACTORS,97998/98179 STS SC DEC'15,98933,459.40
DEPARTMENT OF ENERGY AND CLIMATE CHANGE,THE COAL AUTHORITY,26/02/2016,M/W CNTRCTR-OPRTNL MNTLY TSKS,MINE WATER TREATMENT SCHEMES,CONSTRUCTION-MAIN CONTRACTORS,97998/98179 STS SC DEC'15,98933,89.05
DEPARTMENT OF ENERGY AND CLIMATE CHANGE,THE COAL AUTHORITY,26/02/2016,M/W CNTRCTR-OPRTNL MNTLY TSKS,MINE WATER TREATMENT SCHEMES,CONSTRUCTION-MAIN CONTRACTORS,97998/98179 STS SC DEC'15,98933,4782.58
DEPARTMENT OF ENERGY AND CLIMATE CHANGE,THE COAL AUTHORITY,26/02/2016,M/W CNTRCTR-OPRTNL MNTLY TSKS,MINE WATER TREATMENT SCHEMES,CONSTRUCTION-MAIN CONTRACTORS,97998/98179 STS SC DEC'15,98933,60.99
DEPARTMENT OF ENERGY AND CLIMATE CHANGE,THE COAL AUTHORITY,26/02/2016,M/W CNTRCTR-OPRTNL MNTLY TSKS,MINE WATER TREATMENT SCHEMES,CONSTRUCTION-MAIN CONTRACTORS,97998/98179 STS SC DEC'15,98933,23.77
DEPARTMENT OF ENERGY AND CLIMATE CHANGE,THE COAL AUTHORITY,26/02/2016,M/W CNTRCTR-OPRTNL MNTLY TSKS,MINE WATER TREATMENT SCHEMES,CONSTRUCTION-MAIN CONTRACTORS,97998/98179 STS SC DEC'15,98933,3169.86
DEPARTMENT OF ENERGY AND CLIMATE CHANGE,THE COAL AUTHORITY,26/02/2016,M/W CNTRCTR-OPRTNL MNTLY TSKS,MINE WATER TREATMENT SCHEMES,CONSTRUCTION-MAIN CONTRACTORS,97998/98179 STS DEC'15,98933,-425293.71
DEPARTMENT OF ENERGY AND CLIMATE CHANGE,THE COAL AUTHORITY,26/02/2016,M/W CNTRCTR-OPRTNL MNTLY TSKS,MINE WATER TREATMENT SCHEMES,CONSTRUCTION-MAIN CONTRACTORS,97998/98179 STS STAFF DEC'15,98933,52.76
DEPARTMENT OF ENERGY AND CLIMATE CHANGE,THE COAL AUTHORITY,26/02/2016,M/W CNTRCTR-OPRTNL MNTLY TSKS,MINE WATER TREATMENT SCHEMES,CONSTRUCTION-MAIN CONTRACTORS,97998/98179 STS STAFF DEC'15,98933,67.61
DEPARTMENT OF ENERGY AND CLIMATE CHANGE,THE COAL AUTHORITY,26/02/2016,M/W CNTRCTR-OPRTNL MNTLY TSKS,MINE WATER TREATMENT SCHEMES,CONSTRUCTION-MAIN CONTRACTORS,97998/98179 STS STAFF DEC'15,98933,88.85
DEPARTMENT OF ENERGY AND CLIMATE CHANGE,THE COAL AUTHORITY,26/02/2016,M/W CNTRCTR-OPRTNL MNTLY TSKS,MINE WATER TREATMENT SCHEMES,CONSTRUCTION-MAIN CONTRACTORS,97998/98179 STS STAFF DEC'15,98933,134.95
DEPARTMENT OF ENERGY AND CLIMATE CHANGE,THE COAL AUTHORITY,26/02/2016,M/W CNTRCTR-OPRTNL MNTLY TSKS,MINE WATER TREATMENT SCHEMES,CONSTRUCTION-MAIN CONTRACTORS,97998/98179 STS STAFF DEC'15,98933,53.97
DEPARTMENT OF ENERGY AND CLIMATE CHANGE,THE COAL AUTHORITY,26/02/2016,M/W CNTRCTR-OPRTNL MNTLY TSKS,MINE WATER TREATMENT SCHEMES,CONSTRUCTION-MAIN CONTRACTORS,97998/98179 STS STAFF DEC'15,98933,1113.44
DEPARTMENT OF ENERGY AND CLIMATE CHANGE,THE COAL AUTHORITY,26/02/2016,M/W CNTRCTR-OPRTNL MNTLY TSKS,MINE WATER TREATMENT SCHEMES,CONSTRUCTION-MAIN CONTRACTORS,97998/98179 STS STAFF DEC'15,98933,66.64
DEPARTMENT OF ENERGY AND CLIMATE CHANGE,THE COAL AUTHORITY,26/02/2016,M/W CNTRCTR-OPRTNL MNTLY TSKS,MINE WATER TREATMENT SCHEMES,CONSTRUCTION-MAIN CONTRACTORS,97998/98179 STS STAFF DEC'15,98933,116.62
DEPARTMENT OF ENERGY AND CLIMATE CHANGE,THE COAL AUTHORITY,26/02/2016,M/W CONTRCTR OPRNTL MTHLY MAIN,DEFRA PROGRAMME,CONSTRUCTION-MAIN CONTRACTORS,97998/98179 STS STAFF DEC'15,98933,770.74
DEPARTMENT OF ENERGY AND CLIMATE CHANGE,THE COAL AUTHORITY,26/02/2016,M/W CONTRCTR OPRNTL MTHLY MAIN,DEFRA PROGRAMME,CONSTRUCTION-MAIN CONTRACTORS,97998/98179 STS STAFF DEC'15,98933,154.15
DEPARTMENT OF ENERGY AND CLIMATE CHANGE,THE COAL AUTHORITY,26/02/2016,M/W CONTRCTR OPRNTL MTHLY MAIN,DEFRA PROGRAMME,CONSTRUCTION-MAIN CONTRACTORS,97998/98179 STS STAFF DEC'15,98933,941.11
DEPARTMENT OF ENERGY AND CLIMATE CHANGE,THE COAL AUTHORITY,26/02/2016,M/W CONTRCTR OPRNTL MTHLY MAIN,MINE WATER TREATMENT SCHEMES,CONSTRUCTION-MAIN CONTRACTORS,97998/98179 STS STAFF OH DEC'15,98933,34174.21
DEPARTMENT OF ENERGY AND CLIMATE CHANGE,THE COAL AUTHORITY,26/02/2016,M/W CONTRCTR OPRNTL MTHLY MAIN,MINE WATER TREATMENT SCHEMES,CONSTRUCTION-MAIN CONTRACTORS,97998/98179 STS SC DEC'15,98933,839.56
DEPARTMENT OF ENERGY AND CLIMATE CHANGE,THE COAL AUTHORITY,26/02/2016,M/W CONTRCTR OPRNTL MTHLY MAIN,MINE WATER TREATMENT SCHEMES,CONSTRUCTION-MAIN CONTRACTORS,97998/98179 STS SC DEC'15,98933,31.58
DEPARTMENT OF ENERGY AND CLIMATE CHANGE,THE COAL AUTHORITY,26/02/2016,M/W CONTRCTR OPRNTL MTHLY MAIN,MINE WATER TREATMENT SCHEMES,CONSTRUCTION-MAIN CONTRACTORS,97998/98179 STS STAFF DEC'15,98933,760.81
DEPARTMENT OF ENERGY AND CLIMATE CHANGE,THE COAL AUTHORITY,26/02/2016,M/W CONTRCTR OPRNTL MTHLY MAIN,MINE WATER TREATMENT SCHEMES,CONSTRUCTION-MAIN CONTRACTORS,97998/98179 STS STAFF DEC'15,98933,427.29
DEPARTMENT OF ENERGY AND CLIMATE CHANGE,THE COAL AUTHORITY,26/02/2016,M/W CONTRCTR OPRNTL MTHLY MAIN,MINE WATER TREATMENT SCHEMES,CONSTRUCTION-MAIN CONTRACTORS,97998/98179 STS STAFF DEC'15,98933,146.03
DEPARTMENT OF ENERGY AND CLIMATE CHANGE,THE COAL AUTHORITY,26/02/2016,M/W CONTRCTR OPRNTL MTHLY MAIN,MINE WATER TREATMENT SCHEMES,CONSTRUCTION-MAIN CONTRACTORS,97998/98179 STS STAFF DEC'15,98933,449.82
DEPARTMENT OF ENERGY AND CLIMATE CHANGE,THE COAL AUTHORITY,26/02/2016,M/W CONTRCTR OPRNTL MTHLY MAIN,MINE WATER TREATMENT SCHEMES,CONSTRUCTION-MAIN CONTRACTORS,97998/98179 STS STAFF DEC'15,98933,281.25
DEPARTMENT OF ENERGY AND CLIMATE CHANGE,THE COAL AUTHORITY,26/02/2016,M/W CONTRCTR OPRNTL MTHLY MAIN,MINE WATER TREATMENT SCHEMES,CONSTRUCTION-MAIN CONTRACTORS,97998/98179 STS STAFF DEC'15,98933,74.97
DEPARTMENT OF ENERGY AND CLIMATE CHANGE,THE COAL AUTHORITY,26/02/2016,M/W CONTRCTR OPRNTL MTHLY MAIN,MINE WATER TREATMENT SCHEMES,CONSTRUCTION-MAIN CONTRACTORS,97998/98179 STS STAFF DEC'15,98933,884.32
DEPARTMENT OF ENERGY AND CLIMATE CHANGE,THE COAL AUTHORITY,26/02/2016,M/W CONTRCTR OPRNTL MTHLY MAIN,MINE WATER TREATMENT SCHEMES,CONSTRUCTION-MAIN CONTRACTORS,97998/98179 STS STAFF DEC'15,98933,375.90
DEPARTMENT OF ENERGY AND CLIMATE CHANGE,THE COAL AUTHORITY,26/02/2016,M/W CONTRCTR OPRNTL MTHLY MAIN,MINE WATER TREATMENT SCHEMES,CONSTRUCTION-MAIN CONTRACTORS,97998/98179 STS STAFF DEC'15,98933,261.01
DEPARTMENT OF ENERGY AND CLIMATE CHANGE,THE COAL AUTHORITY,26/02/2016,M/W CONTRCTR OPRNTL MTHLY MAIN,MINE WATER TREATMENT SCHEMES,CONSTRUCTION-MAIN CONTRACTORS,97998/98179 STS STAFF DEC'15,98933,469.25
DEPARTMENT OF ENERGY AND CLIMATE CHANGE,THE COAL AUTHORITY,26/02/2016,M/W CONTRCTR OPRNTL MTHLY MAIN,MINE WATER TREATMENT SCHEMES,CONSTRUCTION-MAIN CONTRACTORS,97998/98179 STS STAFF DEC'15,98933,297.48
DEPARTMENT OF ENERGY AND CLIMATE CHANGE,THE COAL AUTHORITY,26/02/2016,M/W CONTRCTR OPRNTL MTHLY MAIN,MINE WATER TREATMENT SCHEMES,CONSTRUCTION-MAIN CONTRACTORS,97998/98179 STS STAFF DEC'15,98933,605.31
DEPARTMENT OF ENERGY AND CLIMATE CHANGE,THE COAL AUTHORITY,26/02/2016,M/W CONTRCTR OPRNTL MTHLY MAIN,MINE WATER TREATMENT SCHEMES,CONSTRUCTION-MAIN CONTRACTORS,97998/98179 STS STAFF DEC'15,98933,116.62
DEPARTMENT OF ENERGY AND CLIMATE CHANGE,THE COAL AUTHORITY,26/02/2016,M/W CONTRCTR OPRNTL MTHLY MAIN,MINE WATER TREATMENT SCHEMES,CONSTRUCTION-MAIN CONTRACTORS,97998/98179 STS STAFF DEC'15,98933,199.92
DEPARTMENT OF ENERGY AND CLIMATE CHANGE,THE COAL AUTHORITY,26/02/2016,M/W CONTRCTR OPRNTL MTHLY MAIN,MINE WATER TREATMENT SCHEMES,CONSTRUCTION-MAIN CONTRACTORS,97998/98179 STS STAFF DEC'15,98933,183.90
DEPARTMENT OF ENERGY AND CLIMATE CHANGE,THE COAL AUTHORITY,26/02/2016,M/W CONTRCTR OPRNTL MTHLY MAIN,MINE WATER TREATMENT SCHEMES,CONSTRUCTION-MAIN CONTRACTORS,97998/98179 STS STAFF DEC'15,98933,56.79
DEPARTMENT OF ENERGY AND CLIMATE CHANGE,THE COAL AUTHORITY,26/02/2016,M/W CONTRCTR OPRNTL MTHLY MAIN,MINE WATER TREATMENT SCHEMES,CONSTRUCTION-MAIN CONTRACTORS,97998/98179 STS STAFF DEC'15,98933,7198.96
DEPARTMENT OF ENERGY AND CLIMATE CHANGE,THE COAL AUTHORITY,26/02/2016,M/W CONTRCTR OPRNTL MTHLY MAIN,MINE WATER TREATMENT SCHEMES,CONSTRUCTION-MAIN CONTRACTORS,97998/98179 STS STAFF DEC'15,98933,408.17
DEPARTMENT OF ENERGY AND CLIMATE CHANGE,THE COAL AUTHORITY,26/02/2016,M/W CONTRCTR OPRNTL MTHLY MAIN,MINE WATER TREATMENT SCHEMES,CONSTRUCTION-MAIN CONTRACTORS,97998/98179 STS STAFF DEC'15,98933,55.53
DEPARTMENT OF ENERGY AND CLIMATE CHANGE,THE COAL AUTHORITY,26/02/2016,M/W CONTRCTR OPRNTL MTHLY MAIN,MINE WATER TREATMENT SCHEMES,CONSTRUCTION-MAIN CONTRACTORS,97998/98179 STS STAFF DEC'15,98933,248.80
DEPARTMENT OF ENERGY AND CLIMATE CHANGE,THE COAL AUTHORITY,26/02/2016,M/W CONTRCTR OPRNTL MTHLY MAIN,MINE WATER TREATMENT SCHEMES,CONSTRUCTION-MAIN CONTRACTORS,97998/98179 STS STAFF DEC'15,98933,75.72
DEPARTMENT OF ENERGY AND CLIMATE CHANGE,THE COAL AUTHORITY,26/02/2016,M/W CONTRCTR OPRNTL MTHLY MAIN,MINE WATER TREATMENT SCHEMES,CONSTRUCTION-MAIN CONTRACTORS,97998/98179 STS STAFF DEC'15,98933,36.10
DEPARTMENT OF ENERGY AND CLIMATE CHANGE,THE COAL AUTHORITY,26/02/2016,M/W CONTRCTR OPRNTL MTHLY MAIN,MINE WATER TREATMENT SCHEMES,CONSTRUCTION-MAIN CONTRACTORS,97998/98179 STS STAFF DEC'15,98933,221.76
DEPARTMENT OF ENERGY AND CLIMATE CHANGE,THE COAL AUTHORITY,26/02/2016,M/W CONTRCTR OPRNTL MTHLY MAIN,MINE WATER TREATMENT SCHEMES,CONSTRUCTION-MAIN CONTRACTORS,97998/98179 STS STAFF DEC'15,98933,99.96
DEPARTMENT OF ENERGY AND CLIMATE CHANGE,THE COAL AUTHORITY,26/02/2016,M/W CONTRCTR OPRNTL MTHLY MAIN,MINE WATER TREATMENT SCHEMES,CONSTRUCTION-MAIN CONTRACTORS,97998/98179 STS STAFF DEC'15,98933,64.90
DEPARTMENT OF ENERGY AND CLIMATE CHANGE,THE COAL AUTHORITY,26/02/2016,M/W CONTRCTR OPRNTL MTHLY MAIN,MINE WATER TREATMENT SCHEMES,CONSTRUCTION-MAIN CONTRACTORS,97998/98179 STS STAFF DEC'15,98933,166.60
DEPARTMENT OF ENERGY AND CLIMATE CHANGE,THE COAL AUTHORITY,26/02/2016,M/W CONTRCTR OPRNTL MTHLY MAIN,MINE WATER TREATMENT SCHEMES,CONSTRUCTION-MAIN CONTRACTORS,97998/98179 STS STAFF DEC'15,98933,649.04
DEPARTMENT OF ENERGY AND CLIMATE CHANGE,THE COAL AUTHORITY,26/02/2016,M/W CONTRCTR OPRNTL MTHLY MAIN,MINE WATER TREATMENT SCHEMES,CONSTRUCTION-MAIN CONTRACTORS,97998/98179 STS STAFF DEC'15,98933,73.02
DEPARTMENT OF ENERGY AND CLIMATE CHANGE,THE COAL AUTHORITY,26/02/2016,M/W CONTRCTR OPRNTL MTHLY MAIN,MINE WATER TREATMENT SCHEMES,CONSTRUCTION-MAIN CONTRACTORS,97998/98179 STS STAFF DEC'15,98933,324.52
DEPARTMENT OF ENERGY AND CLIMATE CHANGE,THE COAL AUTHORITY,26/02/2016,M/W CONTRCTR OPRNTL MTHLY MAIN,MINE WATER TREATMENT SCHEMES,CONSTRUCTION-MAIN CONTRACTORS,97998/98179 STS STAFF DEC'15,98933,178.49
DEPARTMENT OF ENERGY AND CLIMATE CHANGE,THE COAL AUTHORITY,26/02/2016,M/W CONTRCTR OPRNTL MTHLY MAIN,MINE WATER TREATMENT SCHEMES,CONSTRUCTION-MAIN CONTRACTORS,97998/98179 STS STAFF DEC'15,98933,124.40
DEPARTMENT OF ENERGY AND CLIMATE CHANGE,THE COAL AUTHORITY,26/02/2016,M/W CONTRCTR OPRNTL MTHLY MAIN,MINE WATER TREATMENT SCHEMES,CONSTRUCTION-MAIN CONTRACTORS,97998/98179 STS STAFF DEC'15,98933,77.75
DEPARTMENT OF ENERGY AND CLIMATE CHANGE,THE COAL AUTHORITY,26/02/2016,M/W CONTRCTR OPRNTL MTHLY MAIN,MINE WATER TREATMENT SCHEMES,CONSTRUCTION-MAIN CONTRACTORS,97998/98179 STS STAFF DEC'15,98933,232.57
DEPARTMENT OF ENERGY AND CLIMATE CHANGE,THE COAL AUTHORITY,26/02/2016,M/W CONTRCTR OPRNTL MTHLY MAIN,MINE WATER TREATMENT SCHEMES,CONSTRUCTION-MAIN CONTRACTORS,97998/98179 STS STAFF DEC'15,98933,21.63
DEPARTMENT OF ENERGY AND CLIMATE CHANGE,THE COAL AUTHORITY,26/02/2016,M/W CONTRCTR OPRNTL MTHLY MAIN,MINE WATER TREATMENT SCHEMES,CONSTRUCTION-MAIN CONTRACTORS,97998/98179 STS STAFF DEC'15,98933,77.75
DEPARTMENT OF ENERGY AND CLIMATE CHANGE,THE COAL AUTHORITY,26/02/2016,M/W CONTRCTR OPRNTL MTHLY MAIN,MINE WATER TREATMENT SCHEMES,CONSTRUCTION-MAIN CONTRACTORS,97998/98179 STS STAFF DEC'15,98933,73.02
DEPARTMENT OF ENERGY AND CLIMATE CHANGE,THE COAL AUTHORITY,26/02/2016,M/W CONTRCTR OPRNTL MTHLY MAIN,MINE WATER TREATMENT SCHEMES,CONSTRUCTION-MAIN CONTRACTORS,97998/98179 STS STAFF DEC'15,98933,455.37
DEPARTMENT OF ENERGY AND CLIMATE CHANGE,THE COAL AUTHORITY,26/02/2016,M/W CONTRCTR OPRNTL MTHLY MAIN,MINE WATER TREATMENT SCHEMES,CONSTRUCTION-MAIN CONTRACTORS,97998/98179 STS STAFF DEC'15,98933,56.79
DEPARTMENT OF ENERGY AND CLIMATE CHANGE,THE COAL AUTHORITY,26/02/2016,M/W CONTRCTR OPRNTL MTHLY MAIN,MINE WATER TREATMENT SCHEMES,CONSTRUCTION-MAIN CONTRACTORS,97998/98179 STS STAFF DEC'15,98933,597.66
DEPARTMENT OF ENERGY AND CLIMATE CHANGE,THE COAL AUTHORITY,26/02/2016,M/W CONTRCTR OPRNTL MTHLY MAIN,MINE WATER TREATMENT SCHEMES,CONSTRUCTION-MAIN CONTRACTORS,97998/98179 STS STAFF DEC'15,98933,113.58
DEPARTMENT OF ENERGY AND CLIMATE CHANGE,THE COAL AUTHORITY,26/02/2016,M/W CONTRCTR OPRNTL MTHLY MAIN,MINE WATER TREATMENT SCHEMES,CONSTRUCTION-MAIN CONTRACTORS,97998/98179 STS STAFF DEC'15,98933,202.83
DEPARTMENT OF ENERGY AND CLIMATE CHANGE,THE COAL AUTHORITY,26/02/2016,M/W CONTRCTR OPRNTL MTHLY MAIN,MINE WATER TREATMENT SCHEMES,CONSTRUCTION-MAIN CONTRACTORS,97998/98179 STS STAFF DEC'15,98933,58.31
DEPARTMENT OF ENERGY AND CLIMATE CHANGE,THE COAL AUTHORITY,26/02/2016,M/W CONTRCTR OPRNTL MTHLY MAIN,MINE WATER TREATMENT SCHEMES,CONSTRUCTION-MAIN CONTRACTORS,97998/98179 STS STAFF DEC'15,98933,188.81
DEPARTMENT OF ENERGY AND CLIMATE CHANGE,THE COAL AUTHORITY,26/02/2016,M/W CONTRCTR OPRNTL MTHLY MAIN,MINE WATER TREATMENT SCHEMES,CONSTRUCTION-MAIN CONTRACTORS,97998/98179 STS STAFF DEC'15,98933,374.85
DEPARTMENT OF ENERGY AND CLIMATE CHANGE,THE COAL AUTHORITY,26/02/2016,M/W CONTRCTR OPRNTL MTHLY MAIN,MINE WATER TREATMENT SCHEMES,CONSTRUCTION-MAIN CONTRACTORS,97998/98179 STS STAFF DEC'15,98933,129.81
DEPARTMENT OF ENERGY AND CLIMATE CHANGE,THE COAL AUTHORITY,26/02/2016,M/W CONTRCTR OPRNTL MTHLY MAIN,MINE WATER TREATMENT SCHEMES,CONSTRUCTION-MAIN CONTRACTORS,97998/98179 STS STAFF DEC'15,98933,141.61
DEPARTMENT OF ENERGY AND CLIMATE CHANGE,THE COAL AUTHORITY,26/02/2016,M/W CONTRCTR OPRNTL MTHLY MAIN,MINE WATER TREATMENT SCHEMES,CONSTRUCTION-MAIN CONTRACTORS,97998/98179 STS STAFF DEC'15,98933,69.42
DEPARTMENT OF ENERGY AND CLIMATE CHANGE,THE COAL AUTHORITY,26/02/2016,M/W CONTRCTR OPRNTL MTHLY MAIN,MINE WATER TREATMENT SCHEMES,CONSTRUCTION-MAIN CONTRACTORS,97998/98179 STS STAFF DEC'15,98933,186.04
DEPARTMENT OF ENERGY AND CLIMATE CHANGE,THE COAL AUTHORITY,26/02/2016,M/W CONTRCTR OPRNTL MTHLY MAIN,MINE WATER TREATMENT SCHEMES,CONSTRUCTION-MAIN CONTRACTORS,97998/98179 STS STAFF DEC'15,98933,259.62
DEPARTMENT OF ENERGY AND CLIMATE CHANGE,THE COAL AUTHORITY,26/02/2016,M/W CONTRCTR OPRNTL MTHLY MAIN,MINE WATER TREATMENT SCHEMES,CONSTRUCTION-MAIN CONTRACTORS,97998/98179 STS STAFF DEC'15,98933,319.31
DEPARTMENT OF ENERGY AND CLIMATE CHANGE,THE COAL AUTHORITY,26/02/2016,M/W CONTRCTR OPRNTL MTHLY MAIN,MINE WATER TREATMENT SCHEMES,CONSTRUCTION-MAIN CONTRACTORS,97998/98179 STS STAFF DEC'15,98933,233.24
DEPARTMENT OF ENERGY AND CLIMATE CHANGE,THE COAL AUTHORITY,26/02/2016,M/W CONTRCTR OPRNTL MTHLY MAIN,MINE WATER TREATMENT SCHEMES,CONSTRUCTION-MAIN CONTRACTORS,97998/98179 STS STAFF DEC'15,98933,4073.35
DEPARTMENT OF ENERGY AND CLIMATE CHANGE,THE COAL AUTHORITY,26/02/2016,M/W CONTRCTR OPRNTL MTHLY MAIN,MINE WATER TREATMENT SCHEMES,CONSTRUCTION-MAIN CONTRACTORS,97998/98179 STS STAFF DEC'15,98933,66.64
DEPARTMENT OF ENERGY AND CLIMATE CHANGE,THE COAL AUTHORITY,26/02/2016,M/W CONTRCTR OPRNTL MTHLY MAIN,MINE WATER TREATMENT SCHEMES,CONSTRUCTION-MAIN CONTRACTORS,97998/98179 STS STAFF DEC'15,98933,613.64
DEPARTMENT OF ENERGY AND CLIMATE CHANGE,THE COAL AUTHORITY,26/02/2016,M/W CONTRCTR OPRNTL MTHLY MAIN,MINE WATER TREATMENT SCHEMES,CONSTRUCTION-MAIN CONTRACTORS,97998/98179 STS STAFF DEC'15,98933,91.95
DEPARTMENT OF ENERGY AND CLIMATE CHANGE,THE COAL AUTHORITY,26/02/2016,M/W CONTRCTR OPRNTL MTHLY MAIN,MINE WATER TREATMENT SCHEMES,CONSTRUCTION-MAIN CONTRACTORS,97998/98179 STS STAFF DEC'15,98933,113.58
DEPARTMENT OF ENERGY AND CLIMATE CHANGE,THE COAL AUTHORITY,26/02/2016,M/W CONTRCTR OPRNTL MTHLY MAIN,MINE WATER TREATMENT SCHEMES,CONSTRUCTION-MAIN CONTRACTORS,97998/98179 STS STAFF DEC'15,98933,137.92
DEPARTMENT OF ENERGY AND CLIMATE CHANGE,THE COAL AUTHORITY,26/02/2016,M/W CONTRCTR OPRNTL MTHLY MAIN,MINE WATER TREATMENT SCHEMES,CONSTRUCTION-MAIN CONTRACTORS,97998/98179 STS STAFF DEC'15,98933,-27.04
DEPARTMENT OF ENERGY AND CLIMATE CHANGE,THE COAL AUTHORITY,26/02/2016,M/W CONTRCTR OPRNTL MTHLY MAIN,MINE WATER TREATMENT SCHEMES,CONSTRUCTION-MAIN CONTRACTORS,97998/98179 STS STAFF DEC'15,98933,58.31
DEPARTMENT OF ENERGY AND CLIMATE CHANGE,THE COAL AUTHORITY,26/02/2016,M/W LANDSCAPING,MINE WATER TREATMENT SCHEMES,CONSTRUCTION-MAIN CONTRACTORS,97998/98179 STS SC DEC'15,98933,4383.99
DEPARTMENT OF ENERGY AND CLIMATE CHANGE,THE COAL AUTHORITY,26/02/2016,M/W LANDSCAPING,MINE WATER TREATMENT SCHEMES,CONSTRUCTION-MAIN CONTRACTORS,97998/98179 STS SC DEC'15,98933,7851.46
DEPARTMENT OF ENERGY AND CLIMATE CHANGE,THE COAL AUTHORITY,26/02/2016,M/W LANDSCAPING,MINE WATER TREATMENT SCHEMES,CONSTRUCTION-MAIN CONTRACTORS,97998/98179 STS SC DEC'15,98933,5972.20
DEPARTMENT OF ENERGY AND CLIMATE CHANGE,THE COAL AUTHORITY,26/02/2016,M/W PUMPING TESTS,MINE WATER TREATMENT SCHEMES,CONSTRUCTION-MAIN CONTRACTORS,97998/98179 STS STAFF DEC'15,98933,1595.45
DEPARTMENT OF ENERGY AND CLIMATE CHANGE,THE COAL AUTHORITY,26/02/2016,M/W PUMPING TESTS,MINE WATER TREATMENT SCHEMES,CONSTRUCTION-MAIN CONTRACTORS,97998/98179 STS SC DEC'15,98933,14295.83
DEPARTMENT OF ENERGY AND CLIMATE CHANGE,THE COAL AUTHORITY,26/02/2016,M/W REMEDIATION,MINE WATER TREATMENT SCHEMES,CONSTRUCTION-MAIN CONTRACTORS,97998/98179 STS STAFF DEC'15,98933,80.96
DEPARTMENT OF ENERGY AND CLIMATE CHANGE,THE COAL AUTHORITY,26/02/2016,M/W REMEDIATION,MINE WATER TREATMENT SCHEMES,CONSTRUCTION-MAIN CONTRACTORS,97998/98179 STS SC DEC'15,98933,47343.10
DEPARTMENT OF ENERGY AND CLIMATE CHANGE,THE COAL AUTHORITY,26/02/2016,M/W SLUDGE DISPOSAL,MINE WATER TREATMENT SCHEMES,CONSTRUCTION-MAIN CONTRACTORS,97998/98179 STS STAFF DEC'15,98933,242.89
DEPARTMENT OF ENERGY AND CLIMATE CHANGE,THE COAL AUTHORITY,26/02/2016,M/W SLUDGE DISPOSAL,MINE WATER TREATMENT SCHEMES,CONSTRUCTION-MAIN CONTRACTORS,97998/98179 STS STAFF DEC'15,98933,405.81
DEPARTMENT OF ENERGY AND CLIMATE CHANGE,THE COAL AUTHORITY,26/02/2016,M/W SLUDGE DISPOSAL,MINE WATER TREATMENT SCHEMES,CONSTRUCTION-MAIN CONTRACTORS,97998/98179 STS STAFF DEC'15,98933,63.68
DEPARTMENT OF ENERGY AND CLIMATE CHANGE,THE COAL AUTHORITY,26/02/2016,M/W SLUDGE DISPOSAL,MINE WATER TREATMENT SCHEMES,CONSTRUCTION-MAIN CONTRACTORS,97998/98179 STS STAFF DEC'15,98933,229.37
DEPARTMENT OF ENERGY AND CLIMATE CHANGE,THE COAL AUTHORITY,26/02/2016,M/W SLUDGE DISPOSAL,MINE WATER TREATMENT SCHEMES,CONSTRUCTION-MAIN CONTRACTORS,97998/98179 STS STAFF DEC'15,98933,486.95
DEPARTMENT OF ENERGY AND CLIMATE CHANGE,THE COAL AUTHORITY,26/02/2016,M/W SLUDGE DISPOSAL,MINE WATER TREATMENT SCHEMES,CONSTRUCTION-MAIN CONTRACTORS,97998/98179 STS SC DEC'15,98933,10907.99
DEPARTMENT OF ENERGY AND CLIMATE CHANGE,THE COAL AUTHORITY,26/02/2016,M/W SLUDGE DISPOSAL,MINE WATER TREATMENT SCHEMES,CONSTRUCTION-MAIN CONTRACTORS,97998/98179 STS SC DEC'15,98933,90440.06
DEPARTMENT OF ENERGY AND CLIMATE CHANGE,THE COAL AUTHORITY,26/02/2016,M/W SLUDGE DISPOSAL,MINE WATER TREATMENT SCHEMES,CONSTRUCTION-MAIN CONTRACTORS,97998/98179 STS SC DEC'15,98933,23200.27
DEPARTMENT OF ENERGY AND CLIMATE CHANGE,THE COAL AUTHORITY,26/02/2016,M/W SLUDGE DISPOSAL,MINE WATER TREATMENT SCHEMES,CONSTRUCTION-MAIN CONTRACTORS,97998/98179 STS SC DEC'15,98933,143.67
DEPARTMENT OF ENERGY AND CLIMATE CHANGE,THE COAL AUTHORITY,26/02/2016,M/W SLUDGE DISPOSAL,MINE WATER TREATMENT SCHEMES,CONSTRUCTION-MAIN CONTRACTORS,97998/98179 STS SC DEC'15,98933,2472.06
DEPARTMENT OF ENERGY AND CLIMATE CHANGE,THE COAL AUTHORITY,26/02/2016,MONITORING & FLOW MEASUREMENT,MINE WATER TREATMENT SCHEMES,CONSTRUCTION-MAIN CONTRACTORS,97998/98179 STS STAFF DEC'15,98933,5779.17
DEPARTMENT OF ENERGY AND CLIMATE CHANGE,THE COAL AUTHORITY,26/02/2016,MONITORING AND EQUIPMENT,TIP MAINTENANCE/IMPROVEMENTS,CONSTRUCTION-MAIN CONTRACTORS,97998/98179 STS STAFF DEC'15,98933,269.33
DEPARTMENT OF ENERGY AND CLIMATE CHANGE,THE COAL AUTHORITY,26/02/2016,MONITORING AND EQUIPMENT,TIP MAINTENANCE/IMPROVEMENTS,CONSTRUCTION-MAIN CONTRACTORS,97998/98179 STS STAFF DEC'15,98933,1724.30
DEPARTMENT OF ENERGY AND CLIMATE CHANGE,THE COAL AUTHORITY,26/02/2016,PROPERTY /TIP MAINTENANCE,PROPERTY MANAGEMENT & SALES,CONSTRUCTION-MAIN CONTRACTORS,97998/98179 STS STAFF DEC'15,98933,91.63
DEPARTMENT OF ENERGY AND CLIMATE CHANGE,THE COAL AUTHORITY,26/02/2016,SUB PUMP STTN MAINTENANCE-OTHR,SUBSIDENCE PUMPING STATIONS,CONSTRUCTION-MAIN CONTRACTORS,97998/98179 STS STAFF DEC'15,98933,41.65
DEPARTMENT OF ENERGY AND CLIMATE CHANGE,THE COAL AUTHORITY,26/02/2016,SUB PUMP STTN MAINTENANCE-OTHR,SUBSIDENCE PUMPING STATIONS,CONSTRUCTION-MAIN CONTRACTORS,97998/98179 STS STAFF DEC'15,98933,94.40
DEPARTMENT OF ENERGY AND CLIMATE CHANGE,THE COAL AUTHORITY,26/02/2016,SUB PUMP STTN MAINTENANCE-OTHR,SUBSIDENCE PUMPING STATIONS,CONSTRUCTION-MAIN CONTRACTORS,97998/98179 STS STAFF DEC'15,98933,113.84
DEPARTMENT OF ENERGY AND CLIMATE CHANGE,THE COAL AUTHORITY,26/02/2016,SUB PUMP STTN MAINTENANCE-OTHR,SUBSIDENCE PUMPING STATIONS,CONSTRUCTION-MAIN CONTRACTORS,97998/98179 STS STAFF DEC'15,98933,94.40
DEPARTMENT OF ENERGY AND CLIMATE CHANGE,THE COAL AUTHORITY,26/02/2016,SUB PUMP STTN MAINTENANCE-OTHR,SUBSIDENCE PUMPING STATIONS,CONSTRUCTION-MAIN CONTRACTORS,97998/98179 STS STAFF DEC'15,98933,133.28
DEPARTMENT OF ENERGY AND CLIMATE CHANGE,THE COAL AUTHORITY,26/02/2016,WATER SAMPLING - DEVELOPMENT,MINE WATER TREATMENT SCHEMES,CONSTRUCTION-MAIN CONTRACTORS,97998/98179 STS SC DEC'15,98933,5918.50
DEPARTMENT OF ENERGY AND CLIMATE CHANGE,THE COAL AUTHORITY,26/02/2016,WATER SAMPLING - OPERATIONAL,DEFRA PROGRAMME,CONSTRUCTION-MAIN CONTRACTORS,97998/98179 STS SC DEC'15,98933,259.24
DEPARTMENT OF ENERGY AND CLIMATE CHANGE,THE COAL AUTHORITY,26/02/2016,WATER SAMPLING - OPERATIONAL,DEFRA PROGRAMME,CONSTRUCTION-MAIN CONTRACTORS,97998/98179 STS SC DEC'15,98933,129.62
DEPARTMENT OF ENERGY AND CLIMATE CHANGE,THE COAL AUTHORITY,26/02/2016,WATER SAMPLING - OPERATIONAL,DEFRA PROGRAMME,CONSTRUCTION-MAIN CONTRACTORS,97998/98179 STS SC DEC'15,98933,129.62
DEPARTMENT OF ENERGY AND CLIMATE CHANGE,THE COAL AUTHORITY,26/02/2016,WATER SAMPLING - OPERATIONAL,DEFRA PROGRAMME,CONSTRUCTION-MAIN CONTRACTORS,97998/98179 STS SC DEC'15,98933,129.62
DEPARTMENT OF ENERGY AND CLIMATE CHANGE,THE COAL AUTHORITY,26/02/2016,WATER SAMPLING - OPERATIONAL,DEFRA PROGRAMME,CONSTRUCTION-MAIN CONTRACTORS,97998/98179 STS SC DEC'15,98933,2697.28
DEPARTMENT OF ENERGY AND CLIMATE CHANGE,THE COAL AUTHORITY,26/02/2016,WATER SAMPLING - OPERATIONAL,DEFRA PROGRAMME,CONSTRUCTION-MAIN CONTRACTORS,97998/98179 STS SC DEC'15,98933,138.99
DEPARTMENT OF ENERGY AND CLIMATE CHANGE,THE COAL AUTHORITY,26/02/2016,WATER SAMPLING - OPERATIONAL,DEFRA PROGRAMME,CONSTRUCTION-MAIN CONTRACTORS,97998/98179 STS SC DEC'15,98933,3251.70
DEPARTMENT OF ENERGY AND CLIMATE CHANGE,THE COAL AUTHORITY,26/02/2016,WATER SAMPLING - OPERATIONAL,DEFRA PROGRAMME,CONSTRUCTION-MAIN CONTRACTORS,97998/98179 STS SC DEC'15,98933,518.48
DEPARTMENT OF ENERGY AND CLIMATE CHANGE,THE COAL AUTHORITY,26/02/2016,WATER SAMPLING - OPERATIONAL,DEFRA PROGRAMME,CONSTRUCTION-MAIN CONTRACTORS,97998/98179 STS SC DEC'15,98933,129.62
DEPARTMENT OF ENERGY AND CLIMATE CHANGE,THE COAL AUTHORITY,26/02/2016,WATER SAMPLING - OPERATIONAL,DEFRA PROGRAMME,CONSTRUCTION-MAIN CONTRACTORS,97998/98179 STS SC DEC'15,98933,64.81
DEPARTMENT OF ENERGY AND CLIMATE CHANGE,THE COAL AUTHORITY,26/02/2016,WATER SAMPLING - OPERATIONAL,MINE WATER TREATMENT SCHEMES,CONSTRUCTION-MAIN CONTRACTORS,97998/98179 STS SC DEC'15,98933,239.83
DEPARTMENT OF ENERGY AND CLIMATE CHANGE,THE COAL AUTHORITY,26/02/2016,WATER SAMPLING - OPERATIONAL,MINE WATER TREATMENT SCHEMES,CONSTRUCTION-MAIN CONTRACTORS,97998/98179 STS SC DEC'15,98933,208.25
DEPARTMENT OF ENERGY AND CLIMATE CHANGE,THE COAL AUTHORITY,26/02/2016,WATER SAMPLING - OPERATIONAL,MINE WATER TREATMENT SCHEMES,CONSTRUCTION-MAIN CONTRACTORS,97998/98179 STS SC DEC'15,98933,186.03
DEPARTMENT OF ENERGY AND CLIMATE CHANGE,THE COAL AUTHORITY,26/02/2016,WATER SAMPLING - OPERATIONAL,MINE WATER TREATMENT SCHEMES,CONSTRUCTION-MAIN CONTRACTORS,97998/98179 STS SC DEC'15,98933,154.45
DEPARTMENT OF ENERGY AND CLIMATE CHANGE,THE COAL AUTHORITY,26/02/2016,WATER SAMPLING - OPERATIONAL,MINE WATER TREATMENT SCHEMES,CONSTRUCTION-MAIN CONTRACTORS,97998/98179 STS SC DEC'15,98933,163.82
DEPARTMENT OF ENERGY AND CLIMATE CHANGE,THE COAL AUTHORITY,26/02/2016,WATER SAMPLING - OPERATIONAL,MINE WATER TREATMENT SCHEMES,CONSTRUCTION-MAIN CONTRACTORS,97998/98179 STS SC DEC'15,98933,293.10
DEPARTMENT OF ENERGY AND CLIMATE CHANGE,THE COAL AUTHORITY,26/02/2016,WATER SAMPLING - OPERATIONAL,MINE WATER TREATMENT SCHEMES,CONSTRUCTION-MAIN CONTRACTORS,97998/98179 STS SC DEC'15,98933,379.01
DEPARTMENT OF ENERGY AND CLIMATE CHANGE,THE COAL AUTHORITY,26/02/2016,WATER SAMPLING - OPERATIONAL,MINE WATER TREATMENT SCHEMES,CONSTRUCTION-MAIN CONTRACTORS,97998/98179 STS SC DEC'15,98933,140.39
DEPARTMENT OF ENERGY AND CLIMATE CHANGE,THE COAL AUTHORITY,26/02/2016,WATER SAMPLING - OPERATIONAL,MINE WATER TREATMENT SCHEMES,CONSTRUCTION-MAIN CONTRACTORS,97998/98179 STS SC DEC'15,98933,95.97
DEPARTMENT OF ENERGY AND CLIMATE CHANGE,THE COAL AUTHORITY,26/02/2016,WATER SAMPLING - OPERATIONAL,MINE WATER TREATMENT SCHEMES,CONSTRUCTION-MAIN CONTRACTORS,97998/98179 STS SC DEC'15,98933,290.34
DEPARTMENT OF ENERGY AND CLIMATE CHANGE,THE COAL AUTHORITY,26/02/2016,WATER SAMPLING - OPERATIONAL,MINE WATER TREATMENT SCHEMES,CONSTRUCTION-MAIN CONTRACTORS,97998/98179 STS SC DEC'15,98933,435.86
DEPARTMENT OF ENERGY AND CLIMATE CHANGE,THE COAL AUTHORITY,26/02/2016,WATER SAMPLING - OPERATIONAL,MINE WATER TREATMENT SCHEMES,CONSTRUCTION-MAIN CONTRACTORS,97998/98179 STS SC DEC'15,98933,31.58
DEPARTMENT OF ENERGY AND CLIMATE CHANGE,THE COAL AUTHORITY,26/02/2016,WATER SAMPLING - OPERATIONAL,MINE WATER TREATMENT SCHEMES,CONSTRUCTION-MAIN CONTRACTORS,97998/98179 STS SC DEC'15,98933,164.56
DEPARTMENT OF ENERGY AND CLIMATE CHANGE,THE COAL AUTHORITY,26/02/2016,WATER SAMPLING - OPERATIONAL,MINE WATER TREATMENT SCHEMES,CONSTRUCTION-MAIN CONTRACTORS,97998/98179 STS SC DEC'15,98933,194.19
DEPARTMENT OF ENERGY AND CLIMATE CHANGE,THE COAL AUTHORITY,26/02/2016,WATER SAMPLING - OPERATIONAL,MINE WATER TREATMENT SCHEMES,CONSTRUCTION-MAIN CONTRACTORS,97998/98179 STS SC DEC'15,98933,31.58
DEPARTMENT OF ENERGY AND CLIMATE CHANGE,THE COAL AUTHORITY,26/02/2016,WATER SAMPLING - OPERATIONAL,MINE WATER TREATMENT SCHEMES,CONSTRUCTION-MAIN CONTRACTORS,97998/98179 STS SC DEC'15,98933,77.23
DEPARTMENT OF ENERGY AND CLIMATE CHANGE,THE COAL AUTHORITY,26/02/2016,WATER SAMPLING - OPERATIONAL,MINE WATER TREATMENT SCHEMES,CONSTRUCTION-MAIN CONTRACTORS,97998/98179 STS SC DEC'15,98933,31.58
DEPARTMENT OF ENERGY AND CLIMATE CHANGE,THE COAL AUTHORITY,26/02/2016,WATER SAMPLING - OPERATIONAL,MINE WATER TREATMENT SCHEMES,CONSTRUCTION-MAIN CONTRACTORS,97998/98179 STS SC DEC'15,98933,401.75
DEPARTMENT OF ENERGY AND CLIMATE CHANGE,THE COAL AUTHORITY,26/02/2016,WATER SAMPLING - OPERATIONAL,MINE WATER TREATMENT SCHEMES,CONSTRUCTION-MAIN CONTRACTORS,97998/98179 STS SC DEC'15,98933,363.16
DEPARTMENT OF ENERGY AND CLIMATE CHANGE,THE COAL AUTHORITY,26/02/2016,WATER SAMPLING - OPERATIONAL,MINE WATER TREATMENT SCHEMES,CONSTRUCTION-MAIN CONTRACTORS,97998/98179 STS SC DEC'15,98933,72.54
DEPARTMENT OF ENERGY AND CLIMATE CHANGE,THE COAL AUTHORITY,26/02/2016,WATER SAMPLING - OPERATIONAL,MINE WATER TREATMENT SCHEMES,CONSTRUCTION-MAIN CONTRACTORS,97998/98179 STS SC DEC'15,98933,120.02
DEPARTMENT OF ENERGY AND CLIMATE CHANGE,THE COAL AUTHORITY,26/02/2016,WATER SAMPLING - OPERATIONAL,MINE WATER TREATMENT SCHEMES,CONSTRUCTION-MAIN CONTRACTORS,97998/98179 STS SC DEC'15,98933,186.03
DEPARTMENT OF ENERGY AND CLIMATE CHANGE,THE COAL AUTHORITY,26/02/2016,WATER SAMPLING - OPERATIONAL,MINE WATER TREATMENT SCHEMES,CONSTRUCTION-MAIN CONTRACTORS,97998/98179 STS SC DEC'15,98933,72.54
DEPARTMENT OF ENERGY AND CLIMATE CHANGE,THE COAL AUTHORITY,26/02/2016,WATER SAMPLING - OPERATIONAL,MINE WATER TREATMENT SCHEMES,CONSTRUCTION-MAIN CONTRACTORS,97998/98179 STS SC DEC'15,98933,126.34
DEPARTMENT OF ENERGY AND CLIMATE CHANGE,THE COAL AUTHORITY,26/02/2016,WATER SAMPLING - OPERATIONAL,MINE WATER TREATMENT SCHEMES,CONSTRUCTION-MAIN CONTRACTORS,97998/98179 STS SC DEC'15,98933,560.84
DEPARTMENT OF ENERGY AND CLIMATE CHANGE,THE COAL AUTHORITY,26/02/2016,WATER SAMPLING - OPERATIONAL,MINE WATER TREATMENT SCHEMES,CONSTRUCTION-MAIN CONTRACTORS,97998/98179 STS SC DEC'15,98933,81.91
DEPARTMENT OF ENERGY AND CLIMATE CHANGE,THE COAL AUTHORITY,26/02/2016,WATER SAMPLING - OPERATIONAL,MINE WATER TREATMENT SCHEMES,CONSTRUCTION-MAIN CONTRACTORS,97998/98179 STS SC DEC'15,98933,31.58
DEPARTMENT OF ENERGY AND CLIMATE CHANGE,THE COAL AUTHORITY,26/02/2016,WATER SAMPLING - OPERATIONAL,MINE WATER TREATMENT SCHEMES,CONSTRUCTION-MAIN CONTRACTORS,97998/98179 STS SC DEC'15,98933,77.23
DEPARTMENT OF ENERGY AND CLIMATE CHANGE,THE COAL AUTHORITY,26/02/2016,WATER SAMPLING - OPERATIONAL,MINE WATER TREATMENT SCHEMES,CONSTRUCTION-MAIN CONTRACTORS,97998/98179 STS SC DEC'15,98933,169.61
DEPARTMENT OF ENERGY AND CLIMATE CHANGE,THE COAL AUTHORITY,26/02/2016,WATER SAMPLING - OPERATIONAL,MINE WATER TREATMENT SCHEMES,CONSTRUCTION-MAIN CONTRACTORS,97998/98179 STS SC DEC'15,98933,173.19
DEPARTMENT OF ENERGY AND CLIMATE CHANGE,THE COAL AUTHORITY,26/02/2016,WATER SAMPLING - OPERATIONAL,MINE WATER TREATMENT SCHEMES,CONSTRUCTION-MAIN CONTRACTORS,97998/98179 STS SC DEC'15,98933,63.17
DEPARTMENT OF ENERGY AND CLIMATE CHANGE,THE COAL AUTHORITY,26/02/2016,WATER SAMPLING - OPERATIONAL,MINE WATER TREATMENT SCHEMES,CONSTRUCTION-MAIN CONTRACTORS,97998/98179 STS SC DEC'15,98933,63.17
DEPARTMENT OF ENERGY AND CLIMATE CHANGE,THE COAL AUTHORITY,26/02/2016,WATER SAMPLING - OPERATIONAL,MINE WATER TREATMENT SCHEMES,CONSTRUCTION-MAIN CONTRACTORS,97998/98179 STS SC DEC'15,98933,81.91
DEPARTMENT OF ENERGY AND CLIMATE CHANGE,THE COAL AUTHORITY,26/02/2016,WATER SAMPLING - OPERATIONAL,MINE WATER TREATMENT SCHEMES,CONSTRUCTION-MAIN CONTRACTORS,97998/98179 STS SC DEC'15,98933,77.23
DEPARTMENT OF ENERGY AND CLIMATE CHANGE,THE COAL AUTHORITY,26/02/2016,WATER SAMPLING - OPERATIONAL,MINE WATER TREATMENT SCHEMES,CONSTRUCTION-MAIN CONTRACTORS,97998/98179 STS SC DEC'15,98933,126.34
DEPARTMENT OF ENERGY AND CLIMATE CHANGE,THE COAL AUTHORITY,26/02/2016,WATER SAMPLING - OPERATIONAL,MINE WATER TREATMENT SCHEMES,CONSTRUCTION-MAIN CONTRACTORS,97998/98179 STS SC DEC'15,98933,99.44
DEPARTMENT OF ENERGY AND CLIMATE CHANGE,THE COAL AUTHORITY,26/02/2016,WATER SAMPLING - OPERATIONAL,MINE WATER TREATMENT SCHEMES,CONSTRUCTION-MAIN CONTRACTORS,97998/98179 STS SC DEC'15,98933,81.91
DEPARTMENT OF ENERGY AND CLIMATE CHANGE,THE COAL AUTHORITY,26/02/2016,WATER SAMPLING - OPERATIONAL,MINE WATER TREATMENT SCHEMES,CONSTRUCTION-MAIN CONTRACTORS,97998/98179 STS SC DEC'15,98933,72.54
DEPARTMENT OF ENERGY AND CLIMATE CHANGE,THE COAL AUTHORITY,26/02/2016,WATER SAMPLING - OPERATIONAL,MINE WATER TREATMENT SCHEMES,CONSTRUCTION-MAIN CONTRACTORS,97998/98179 STS SC DEC'15,98933,72.54
DEPARTMENT OF ENERGY AND CLIMATE CHANGE,THE COAL AUTHORITY,26/02/2016,WATER SAMPLING - OPERATIONAL,MINE WATER TREATMENT SCHEMES,CONSTRUCTION-MAIN CONTRACTORS,97998/98179 STS SC DEC'15,98933,322.73
DEPARTMENT OF ENERGY AND CLIMATE CHANGE,THE COAL AUTHORITY,26/02/2016,WATER SAMPLING - OPERATIONAL,MINE WATER TREATMENT SCHEMES,CONSTRUCTION-MAIN CONTRACTORS,97998/98179 STS SC DEC'15,98933,145.08
DEPARTMENT OF ENERGY AND CLIMATE CHANGE,THE COAL AUTHORITY,26/02/2016,WATER SAMPLING - OPERATIONAL,MINE WATER TREATMENT SCHEMES,CONSTRUCTION-MAIN CONTRACTORS,97998/98179 STS SC DEC'15,98933,189.50
DEPARTMENT OF ENERGY AND CLIMATE CHANGE,THE COAL AUTHORITY,26/02/2016,WATER SAMPLING - OPERATIONAL,MINE WATER TREATMENT SCHEMES,CONSTRUCTION-MAIN CONTRACTORS,97998/98179 STS SC DEC'15,98933,70.38
DEPARTMENT OF ENERGY AND CLIMATE CHANGE,THE COAL AUTHORITY,26/02/2016,WATER SAMPLING - OPERATIONAL,MINE WATER TREATMENT SCHEMES,CONSTRUCTION-MAIN CONTRACTORS,97998/98179 STS SC DEC'15,98933,72.54
DEPARTMENT OF ENERGY AND CLIMATE CHANGE,THE COAL AUTHORITY,26/02/2016,WATER SAMPLING - OPERATIONAL,MINE WATER TREATMENT SCHEMES,CONSTRUCTION-MAIN CONTRACTORS,97998/98179 STS SC DEC'15,98933,81.91
DEPARTMENT OF ENERGY AND CLIMATE CHANGE,THE COAL AUTHORITY,26/02/2016,WATER SAMPLING - OPERATIONAL,MINE WATER TREATMENT SCHEMES,CONSTRUCTION-MAIN CONTRACTORS,97998/98179 STS SC DEC'15,98933,224.14
DEPARTMENT OF ENERGY AND CLIMATE CHANGE,THE COAL AUTHORITY,26/02/2016,WATER SAMPLING - OPERATIONAL,MINE WATER TREATMENT SCHEMES,CONSTRUCTION-MAIN CONTRACTORS,97998/98179 STS SC DEC'15,98933,104.12
DEPARTMENT OF ENERGY AND CLIMATE CHANGE,THE COAL AUTHORITY,26/02/2016,WATER SAMPLING - OPERATIONAL,MINE WATER TREATMENT SCHEMES,CONSTRUCTION-MAIN CONTRACTORS,97998/98179 STS SC DEC'15,98933,140.39
DEPARTMENT OF ENERGY AND CLIMATE CHANGE,THE COAL AUTHORITY,26/02/2016,WATER SAMPLING - OPERATIONAL,MINE WATER TREATMENT SCHEMES,CONSTRUCTION-MAIN CONTRACTORS,97998/98179 STS SC DEC'15,98933,326.54
DEPARTMENT OF ENERGY AND CLIMATE CHANGE,THE COAL AUTHORITY,26/02/2016,WATER SAMPLING - OPERATIONAL,MINE WATER TREATMENT SCHEMES,CONSTRUCTION-MAIN CONTRACTORS,97998/98179 STS SC DEC'15,98933,217.62
DEPARTMENT OF ENERGY AND CLIMATE CHANGE,THE COAL AUTHORITY,26/02/2016,WATER SAMPLING - OPERATIONAL,MINE WATER TREATMENT SCHEMES,CONSTRUCTION-MAIN CONTRACTORS,97998/98179 STS SC DEC'15,98933,207.60
DEPARTMENT OF ENERGY AND CLIMATE CHANGE,THE COAL AUTHORITY,26/02/2016,WATER SAMPLING - OPERATIONAL,MINE WATER TREATMENT SCHEMES,CONSTRUCTION-MAIN CONTRACTORS,97998/98179 STS SC DEC'15,98933,257.72
DEPARTMENT OF ENERGY AND CLIMATE CHANGE,THE COAL AUTHORITY,26/02/2016,WATER SAMPLING - OPERATIONAL,MINE WATER TREATMENT SCHEMES,CONSTRUCTION-MAIN CONTRACTORS,97998/98179 STS SC DEC'15,98933,63.17
DEPARTMENT OF ENERGY AND CLIMATE CHANGE,THE COAL AUTHORITY,26/02/2016,WATER SAMPLING - OPERATIONAL,MINE WATER TREATMENT SCHEMES,CONSTRUCTION-MAIN CONTRACTORS,97998/98179 STS SC DEC'15,98933,581.74
DEPARTMENT OF ENERGY AND CLIMATE CHANGE,THE COAL AUTHORITY,26/02/2016,WATER SAMPLING - OPERATIONAL,MINE WATER TREATMENT SCHEMES,CONSTRUCTION-MAIN CONTRACTORS,97998/98179 STS SC DEC'15,98933,63.17
DEPARTMENT OF ENERGY AND CLIMATE CHANGE,THE COAL AUTHORITY,26/02/2016,WATER SAMPLING - OPERATIONAL,MINE WATER TREATMENT SCHEMES,CONSTRUCTION-MAIN CONTRACTORS,97998/98179 STS SC DEC'15,98933,265.30
DEPARTMENT OF ENERGY AND CLIMATE CHANGE,THE COAL AUTHORITY,26/02/2016,WATER SAMPLING - OPERATIONAL,MINE WATER TREATMENT SCHEMES,CONSTRUCTION-MAIN CONTRACTORS,97998/98179 STS SC DEC'15,98933,145.08
DEPARTMENT OF ENERGY AND CLIMATE CHANGE,THE COAL AUTHORITY,26/02/2016,WATER SAMPLING - OPERATIONAL,MINE WATER TREATMENT SCHEMES,CONSTRUCTION-MAIN CONTRACTORS,97998/98179 STS SC DEC'15,98933,214.36
DEPARTMENT OF ENERGY AND CLIMATE CHANGE,THE COAL AUTHORITY,26/02/2016,WATER SAMPLING - OPERATIONAL,MINE WATER TREATMENT SCHEMES,CONSTRUCTION-MAIN CONTRACTORS,97998/98179 STS SC DEC'15,98933,176.87
DEPARTMENT OF ENERGY AND CLIMATE CHANGE,THE COAL AUTHORITY,26/02/2016,WATER SAMPLING - OPERATIONAL,MINE WATER TREATMENT SCHEMES,CONSTRUCTION-MAIN CONTRACTORS,97998/98179 STS SC DEC'15,98933,367.80
DEPARTMENT OF ENERGY AND CLIMATE CHANGE,THE COAL AUTHORITY,26/02/2016,CONTRACTORS AND CLAIM COSTS,DEFRA PROGRAMME,CONSTRUCTION-MAIN CONTRACTORS,98897 IWS,98935,-489.12
DEPARTMENT OF ENERGY AND CLIMATE CHANGE,THE COAL AUTHORITY,26/02/2016,M/W PUMPING TESTS,DEFRA PROGRAMME,CONSTRUCTION-MAIN CONTRACTORS,98897 IWS,98935,489.12
DEPARTMENT OF ENERGY AND CLIMATE CHANGE,THE COAL AUTHORITY,26/02/2016,CURR YR ADDNS MINEWATER SCHEME,MINE WATER TREATMENT SCHEMES,CONSTRUCTION-MAIN CONTRACTORS,98805 NCME,98936,14472.62
DEPARTMENT OF ENERGY AND CLIMATE CHANGE,THE COAL AUTHORITY,26/02/2016,M/W CONTRCTR OPRNTL MTHLY MAIN,MINE WATER TREATMENT SCHEMES,CONSTRUCTION-MAIN CONTRACTORS,98805 NCME,98936,-14472.62
DEPARTMENT OF ENERGY AND CLIMATE CHANGE,THE COAL AUTHORITY,23/02/2016,CONTRACTORS AND CLAIM COSTS,SUBSIDENCE,CONSTRUCTION-MAIN CONTRACTORS,NAL PLANT LIMITED,98940,733.16
DEPARTMENT OF ENERGY AND CLIMATE CHANGE,THE COAL AUTHORITY,25/02/2016,BUSINESS ENTERTAINMENT,BUSINESS DEVELOPMENT,FACILITIES - FOOD,IRRCVRBLE VAT-CLIENT ENTRTMNT,98941,2.04
DEPARTMENT OF ENERGY AND CLIMATE CHANGE,THE COAL AUTHORITY,25/02/2016,MEETINGS,FACILITIES MANAGEMENT,FACILITIES - FOOD,IRRCVRBLE VAT-CLIENT ENTRTMNT,98941,60.28
DEPARTMENT OF ENERGY AND CLIMATE CHANGE,THE COAL AUTHORITY,23/02/2016,CONTRACTORS AND CLAIM COSTS,HATFIELD COLLIERY,CONSTRUCTION-MAIN CONTRACTORS,NAL PLANT LIMITED,98946,669.75
DEPARTMENT OF ENERGY AND CLIMATE CHANGE,THE COAL AUTHORITY,23/02/2016,CONTRACTORS AND CLAIM COSTS,HATFIELD COLLIERY,CONSTRUCTION-MAIN CONTRACTORS,NAL PLANT LIMITED,98947,230.75
DEPARTMENT OF ENERGY AND CLIMATE CHANGE,THE COAL AUTHORITY,26/02/2016,CENTRAL TRAINING BUDGET,SHE,PROF SER LRNG&DEV-STAFF TRNING,RISK & SAFETY MANAGEMENT SERV,98950,299.00
DEPARTMENT OF ENERGY AND CLIMATE CHANGE,THE COAL AUTHORITY,26/02/2016,PROPERTY /TIP MAINTENANCE,PROPERTY MANAGEMENT & SALES,CONSTRUCTION-MAIN CONTRACTORS,ALLIANCE GROUP SOLUTIONS LTD,98952,938.05
DEPARTMENT OF ENERGY AND CLIMATE CHANGE,THE COAL AUTHORITY,26/02/2016,TRAINING AND EDUCATION,BUSINESS DEVELOPMENT,PROF SER LRNG&DEV-STAFF TRNING,FAVERSHAM HOUSE LTD,98953,545.00
DEPARTMENT OF ENERGY AND CLIMATE CHANGE,THE COAL AUTHORITY,25/02/2016,M/W COST BENEFIT ANALYSIS,MINE WATER TREATMENT SCHEMES,PROF SER TECH-ENGINEERING SER,RISK & POLICY ANALYSTS LTD,98954,7635.00
DEPARTMENT OF ENERGY AND CLIMATE CHANGE,THE COAL AUTHORITY,29/02/2016,CONTRACTORS AND CLAIM COSTS,HATFIELD COLLIERY,CONSTRUCTION-MAIN CONTRACTORS,96774 JBA,98965,-2304.50
DEPARTMENT OF ENERGY AND CLIMATE CHANGE,THE COAL AUTHORITY,29/02/2016,CONTRACTORS AND CLAIM COSTS,HATFIELD COLLIERY,CONSTRUCTION-MAIN CONTRACTORS,97552 JBA,98965,-1882.50
DEPARTMENT OF ENERGY AND CLIMATE CHANGE,THE COAL AUTHORITY,29/02/2016,CONTRACTORS AND CLAIM COSTS,HATFIELD COLLIERY,CONSTRUCTION-MAIN CONTRACTORS,96846 DANVM,98965,-34677.34
DEPARTMENT OF ENERGY AND CLIMATE CHANGE,THE COAL AUTHORITY,29/02/2016,CURR YR ADDNS SUBS PMPNG STNS,SUBSIDENCE PUMPING STATIONS,CONSTRUCTION-MAIN CONTRACTORS,96774 JBA,98965,2304.50
DEPARTMENT OF ENERGY AND CLIMATE CHANGE,THE COAL AUTHORITY,29/02/2016,CURR YR ADDNS SUBS PMPNG STNS,SUBSIDENCE PUMPING STATIONS,CONSTRUCTION-MAIN CONTRACTORS,97552 JBA,98965,1882.50
DEPARTMENT OF ENERGY AND CLIMATE CHANGE,THE COAL AUTHORITY,29/02/2016,CURR YR ADDNS SUBS PMPNG STNS,SUBSIDENCE PUMPING STATIONS,CONSTRUCTION-MAIN CONTRACTORS,96846 DANVM,98965,34677.34
DEPARTMENT OF ENERGY AND CLIMATE CHANGE,THE COAL AUTHORITY,03/03/2016,PAYMENTS TO AGENCIES FOR TEMPS,ICT-TECH SUPPORT&SYSTM DVLPMNT,PROF SER TMP STFF-SPCLST CNTRT,98142 - Playcool,99174,-1000.00
